Publisher Label,Publisher URI,"Directorate code","Directorate","Service code","Service","Revenue or capital code","Revenue capital","Cost centre","Cost centre description","Bvsub Category","Bvsub description","Bvsum code","Bvsum description","Account code","Account description","Transaction No","Period","Transaction Date","Amount","Classification code","Classification description","Supplier ID","Supplier description","Company registration number","Company registration number Uri","VAT registration number"
"London Borough of Redbridge","http://opendatacommunities.org/doc/london-borough-council/redbridge","5BGFHOUSING","General Fund Housing","5CHOMELESS","Homelessness","REV","Revenue","R5630","HAC Temporary Accomodation","05-THIRD","Third Party Payments","05H","Private contractors","6900","Nightly Let Plus Charges","3579508","202011",02/02/2020 00:00:00,495,"31230","Employment and Recruitment Agencies","REDACTED DATA","ADAM HTT LIMITED T/A ADAM","7718565","http://opencorporates.com/companies/gb/7718565","198573349"
"London Borough of Redbridge","http://opendatacommunities.org/doc/london-borough-council/redbridge","5BGFHOUSING","General Fund Housing","5CHOMELESS","Homelessness","REV","Revenue","R5630","HAC Temporary Accomodation","05-THIRD","Third Party Payments","05H","Private contractors","6900","Nightly Let Plus Charges","3579508","202011",02/02/2020 00:00:00,1098.33,"31230","Employment and Recruitment Agencies","REDACTED DATA","ADAM HTT LIMITED T/A ADAM","7718565","http://opencorporates.com/companies/gb/7718565","198573349"
"London Borough of Redbridge","http://opendatacommunities.org/doc/london-borough-council/redbridge","5BGFHOUSING","General Fund Housing","5CHOMELESS","Homelessness","REV","Revenue","R5630","HAC Temporary Accomodation","05-THIRD","Third Party Payments","05H","Private contractors","6900","Nightly Let Plus Charges","3579508","202011",02/02/2020 00:00:00,1550,"31230","Employment and Recruitment Agencies","REDACTED DATA","ADAM HTT LIMITED T/A ADAM","7718565","http://opencorporates.com/companies/gb/7718565","198573349"
"London Borough of Redbridge","http://opendatacommunities.org/doc/london-borough-council/redbridge","5BGFHOUSING","General Fund Housing","5CHOMELESS","Homelessness","REV","Revenue","R5630","HAC Temporary Accomodation","05-THIRD","Third Party Payments","05H","Private contractors","6900","Nightly Let Plus Charges","3579508","202011",02/02/2020 00:00:00,1550,"31230","Employment and Recruitment Agencies","REDACTED DATA","ADAM HTT LIMITED T/A ADAM","7718565","http://opencorporates.com/companies/gb/7718565","198573349"
"London Borough of Redbridge","http://opendatacommunities.org/doc/london-borough-council/redbridge","5BGFHOUSING","General Fund Housing","5CHOMELESS","Homelessness","REV","Revenue","R5630","HAC Temporary Accomodation","05-THIRD","Third Party Payments","05H","Private contractors","6900","Nightly Let Plus Charges","3579508","202011",02/02/2020 00:00:00,1395,"31230","Employment and Recruitment Agencies","REDACTED DATA","ADAM HTT LIMITED T/A ADAM","7718565","http://opencorporates.com/companies/gb/7718565","198573349"
"London Borough of Redbridge","http://opendatacommunities.org/doc/london-borough-council/redbridge","5BGFHOUSING","General Fund Housing","5CHOMELESS","Homelessness","REV","Revenue","R5630","HAC Temporary Accomodation","05-THIRD","Third Party Payments","05H","Private contractors","6900","Nightly Let Plus Charges","3579508","202011",02/02/2020 00:00:00,1550,"31230","Employment and Recruitment Agencies","REDACTED DATA","ADAM HTT LIMITED T/A ADAM","7718565","http://opencorporates.com/companies/gb/7718565","198573349"
"London Borough of Redbridge","http://opendatacommunities.org/doc/london-borough-council/redbridge","5BGFHOUSING","General Fund Housing","5CHOMELESS","Homelessness","REV","Revenue","R5630","HAC Temporary Accomodation","05-THIRD","Third Party Payments","05H","Private contractors","6900","Nightly Let Plus Charges","3579508","202011",02/02/2020 00:00:00,1395,"31230","Employment and Recruitment Agencies","REDACTED DATA","ADAM HTT LIMITED T/A ADAM","7718565","http://opencorporates.com/companies/gb/7718565","198573349"
"London Borough of Redbridge","http://opendatacommunities.org/doc/london-borough-council/redbridge","5BGFHOUSING","General Fund Housing","5CHOMELESS","Homelessness","REV","Revenue","R5630","HAC Temporary Accomodation","05-THIRD","Third Party Payments","05H","Private contractors","6900","Nightly Let Plus Charges","3579508","202011",02/02/2020 00:00:00,1550,"31230","Employment and Recruitment Agencies","REDACTED DATA","ADAM HTT LIMITED T/A ADAM","7718565","http://opencorporates.com/companies/gb/7718565","198573349"
"London Borough of Redbridge","http://opendatacommunities.org/doc/london-borough-council/redbridge","5BGFHOUSING","General Fund Housing","5CHOMELESS","Homelessness","REV","Revenue","R5630","HAC Temporary Accomodation","05-THIRD","Third Party Payments","05H","Private contractors","6900","Nightly Let Plus Charges","3579508","202011",02/02/2020 00:00:00,1023,"31230","Employment and Recruitment Agencies","REDACTED DATA","ADAM HTT LIMITED T/A ADAM","7718565","http://opencorporates.com/companies/gb/7718565","198573349"
"London Borough of Redbridge","http://opendatacommunities.org/doc/london-borough-council/redbridge","5BGFHOUSING","General Fund Housing","5CHOMELESS","Homelessness","REV","Revenue","R5630","HAC Temporary Accomodation","05-THIRD","Third Party Payments","05H","Private contractors","6900","Nightly Let Plus Charges","3579508","202011",02/02/2020 00:00:00,1395,"31230","Employment and Recruitment Agencies","REDACTED DATA","ADAM HTT LIMITED T/A ADAM","7718565","http://opencorporates.com/companies/gb/7718565","198573349"
"London Borough of Redbridge","http://opendatacommunities.org/doc/london-borough-council/redbridge","5BGFHOUSING","General Fund Housing","5CHOMELESS","Homelessness","REV","Revenue","R5630","HAC Temporary Accomodation","05-THIRD","Third Party Payments","05H","Private contractors","6900","Nightly Let Plus Charges","3579508","202011",02/02/2020 00:00:00,1395,"31230","Employment and Recruitment Agencies","REDACTED DATA","ADAM HTT LIMITED T/A ADAM","7718565","http://opencorporates.com/companies/gb/7718565","198573349"
"London Borough of Redbridge","http://opendatacommunities.org/doc/london-borough-council/redbridge","5BGFHOUSING","General Fund Housing","5CHOMELESS","Homelessness","REV","Revenue","R5630","HAC Temporary Accomodation","05-THIRD","Third Party Payments","05H","Private contractors","6900","Nightly Let Plus Charges","3579508","202011",02/02/2020 00:00:00,1178,"31230","Employment and Recruitment Agencies","REDACTED DATA","ADAM HTT LIMITED T/A ADAM","7718565","http://opencorporates.com/companies/gb/7718565","198573349"
"London Borough of Redbridge","http://opendatacommunities.org/doc/london-borough-council/redbridge","5BGFHOUSING","General Fund Housing","5CHOMELESS","Homelessness","REV","Revenue","R5630","HAC Temporary Accomodation","05-THIRD","Third Party Payments","05H","Private contractors","6900","Nightly Let Plus Charges","3579508","202011",02/02/2020 00:00:00,1441.5,"31230","Employment and Recruitment Agencies","REDACTED DATA","ADAM HTT LIMITED T/A ADAM","7718565","http://opencorporates.com/companies/gb/7718565","198573349"
"London Borough of Redbridge","http://opendatacommunities.org/doc/london-borough-council/redbridge","5BGFHOUSING","General Fund Housing","5CHOMELESS","Homelessness","REV","Revenue","R5630","HAC Temporary Accomodation","05-THIRD","Third Party Payments","05H","Private contractors","6900","Nightly Let Plus Charges","3579508","202011",02/02/2020 00:00:00,1860,"31230","Employment and Recruitment Agencies","REDACTED DATA","ADAM HTT LIMITED T/A ADAM","7718565","http://opencorporates.com/companies/gb/7718565","198573349"
"London Borough of Redbridge","http://opendatacommunities.org/doc/london-borough-council/redbridge","5BGFHOUSING","General Fund Housing","5CHOMELESS","Homelessness","REV","Revenue","R5630","HAC Temporary Accomodation","05-THIRD","Third Party Payments","05H","Private contractors","6900","Nightly Let Plus Charges","3579508","202011",02/02/2020 00:00:00,899,"31230","Employment and Recruitment Agencies","REDACTED DATA","ADAM HTT LIMITED T/A ADAM","7718565","http://opencorporates.com/companies/gb/7718565","198573349"
"London Borough of Redbridge","http://opendatacommunities.org/doc/london-borough-council/redbridge","5BGFHOUSING","General Fund Housing","5CHOMELESS","Homelessness","REV","Revenue","R5630","HAC Temporary Accomodation","05-THIRD","Third Party Payments","05H","Private contractors","6900","Nightly Let Plus Charges","3579508","202011",02/02/2020 00:00:00,1478.7,"31230","Employment and Recruitment Agencies","REDACTED DATA","ADAM HTT LIMITED T/A ADAM","7718565","http://opencorporates.com/companies/gb/7718565","198573349"
"London Borough of Redbridge","http://opendatacommunities.org/doc/london-borough-council/redbridge","5BGFHOUSING","General Fund Housing","5CHOMELESS","Homelessness","REV","Revenue","R5630","HAC Temporary Accomodation","05-THIRD","Third Party Payments","05H","Private contractors","6900","Nightly Let Plus Charges","3579508","202011",02/02/2020 00:00:00,1178,"31230","Employment and Recruitment Agencies","REDACTED DATA","ADAM HTT LIMITED T/A ADAM","7718565","http://opencorporates.com/companies/gb/7718565","198573349"
"London Borough of Redbridge","http://opendatacommunities.org/doc/london-borough-council/redbridge","5BGFHOUSING","General Fund Housing","5CHOMELESS","Homelessness","REV","Revenue","R5630","HAC Temporary Accomodation","05-THIRD","Third Party Payments","05H","Private contractors","6900","Nightly Let Plus Charges","3579508","202011",02/02/2020 00:00:00,1705,"31230","Employment and Recruitment Agencies","REDACTED DATA","ADAM HTT LIMITED T/A ADAM","7718565","http://opencorporates.com/companies/gb/7718565","198573349"
"London Borough of Redbridge","http://opendatacommunities.org/doc/london-borough-council/redbridge","5BGFHOUSING","General Fund Housing","5CHOMELESS","Homelessness","REV","Revenue","R5630","HAC Temporary Accomodation","05-THIRD","Third Party Payments","05H","Private contractors","6900","Nightly Let Plus Charges","3579508","202011",02/02/2020 00:00:00,1550,"31230","Employment and Recruitment Agencies","REDACTED DATA","ADAM HTT LIMITED T/A ADAM","7718565","http://opencorporates.com/companies/gb/7718565","198573349"
"London Borough of Redbridge","http://opendatacommunities.org/doc/london-borough-council/redbridge","5BGFHOUSING","General Fund Housing","5CHOMELESS","Homelessness","REV","Revenue","R5630","HAC Temporary Accomodation","05-THIRD","Third Party Payments","05H","Private contractors","6900","Nightly Let Plus Charges","3579508","202011",02/02/2020 00:00:00,1023,"31230","Employment and Recruitment Agencies","REDACTED DATA","ADAM HTT LIMITED T/A ADAM","7718565","http://opencorporates.com/companies/gb/7718565","198573349"
"London Borough of Redbridge","http://opendatacommunities.org/doc/london-borough-council/redbridge","5BGFHOUSING","General Fund Housing","5CHOMELESS","Homelessness","REV","Revenue","R5630","HAC Temporary Accomodation","05-THIRD","Third Party Payments","05H","Private contractors","6900","Nightly Let Plus Charges","3579508","202011",02/02/2020 00:00:00,899,"31230","Employment and Recruitment Agencies","REDACTED DATA","ADAM HTT LIMITED T/A ADAM","7718565","http://opencorporates.com/companies/gb/7718565","198573349"
"London Borough of Redbridge","http://opendatacommunities.org/doc/london-borough-council/redbridge","5BGFHOUSING","General Fund Housing","5CHOMELESS","Homelessness","REV","Revenue","R5630","HAC Temporary Accomodation","05-THIRD","Third Party Payments","05H","Private contractors","6900","Nightly Let Plus Charges","3579508","202011",02/02/2020 00:00:00,1550,"31230","Employment and Recruitment Agencies","REDACTED DATA","ADAM HTT LIMITED T/A ADAM","7718565","http://opencorporates.com/companies/gb/7718565","198573349"
"London Borough of Redbridge","http://opendatacommunities.org/doc/london-borough-council/redbridge","5BGFHOUSING","General Fund Housing","5CHOMELESS","Homelessness","REV","Revenue","R5630","HAC Temporary Accomodation","05-THIRD","Third Party Payments","05H","Private contractors","6900","Nightly Let Plus Charges","3579508","202011",02/02/2020 00:00:00,958.83,"31230","Employment and Recruitment Agencies","REDACTED DATA","ADAM HTT LIMITED T/A ADAM","7718565","http://opencorporates.com/companies/gb/7718565","198573349"
"London Borough of Redbridge","http://opendatacommunities.org/doc/london-borough-council/redbridge","5BGFHOUSING","General Fund Housing","5CHOMELESS","Homelessness","REV","Revenue","R5630","HAC Temporary Accomodation","05-THIRD","Third Party Payments","05H","Private contractors","6900","Nightly Let Plus Charges","3579508","202011",02/02/2020 00:00:00,1178,"31230","Employment and Recruitment Agencies","REDACTED DATA","ADAM HTT LIMITED T/A ADAM","7718565","http://opencorporates.com/companies/gb/7718565","198573349"
"London Borough of Redbridge","http://opendatacommunities.org/doc/london-borough-council/redbridge","5BGFHOUSING","General Fund Housing","5CHOMELESS","Homelessness","REV","Revenue","R5630","HAC Temporary Accomodation","05-THIRD","Third Party Payments","05H","Private contractors","6900","Nightly Let Plus Charges","3579508","202011",02/02/2020 00:00:00,1395,"31230","Employment and Recruitment Agencies","REDACTED DATA","ADAM HTT LIMITED T/A ADAM","7718565","http://opencorporates.com/companies/gb/7718565","198573349"
"London Borough of Redbridge","http://opendatacommunities.org/doc/london-borough-council/redbridge","5BGFHOUSING","General Fund Housing","5CHOMELESS","Homelessness","REV","Revenue","R5630","HAC Temporary Accomodation","05-THIRD","Third Party Payments","05H","Private contractors","6900","Nightly Let Plus Charges","3579508","202011",02/02/2020 00:00:00,1550,"31230","Employment and Recruitment Agencies","REDACTED DATA","ADAM HTT LIMITED T/A ADAM","7718565","http://opencorporates.com/companies/gb/7718565","198573349"
"London Borough of Redbridge","http://opendatacommunities.org/doc/london-borough-council/redbridge","5BGFHOUSING","General Fund Housing","5CHOMELESS","Homelessness","REV","Revenue","R5630","HAC Temporary Accomodation","05-THIRD","Third Party Payments","05H","Private contractors","6900","Nightly Let Plus Charges","3579508","202011",02/02/2020 00:00:00,1395,"31230","Employment and Recruitment Agencies","REDACTED DATA","ADAM HTT LIMITED T/A ADAM","7718565","http://opencorporates.com/companies/gb/7718565","198573349"
"London Borough of Redbridge","http://opendatacommunities.org/doc/london-borough-council/redbridge","5BGFHOUSING","General Fund Housing","5CHOMELESS","Homelessness","REV","Revenue","R5630","HAC Temporary Accomodation","05-THIRD","Third Party Payments","05H","Private contractors","6900","Nightly Let Plus Charges","3579508","202011",02/02/2020 00:00:00,1302,"31230","Employment and Recruitment Agencies","REDACTED DATA","ADAM HTT LIMITED T/A ADAM","7718565","http://opencorporates.com/companies/gb/7718565","198573349"
"London Borough of Redbridge","http://opendatacommunities.org/doc/london-borough-council/redbridge","5BGFHOUSING","General Fund Housing","5CHOMELESS","Homelessness","REV","Revenue","R5630","HAC Temporary Accomodation","05-THIRD","Third Party Payments","05H","Private contractors","6900","Nightly Let Plus Charges","3579508","202011",02/02/2020 00:00:00,2015,"31230","Employment and Recruitment Agencies","REDACTED DATA","ADAM HTT LIMITED T/A ADAM","7718565","http://opencorporates.com/companies/gb/7718565","198573349"
"London Borough of Redbridge","http://opendatacommunities.org/doc/london-borough-council/redbridge","5BGFHOUSING","General Fund Housing","5CHOMELESS","Homelessness","REV","Revenue","R5630","HAC Temporary Accomodation","05-THIRD","Third Party Payments","05H","Private contractors","6900","Nightly Let Plus Charges","3579508","202011",02/02/2020 00:00:00,1446.77,"31230","Employment and Recruitment Agencies","REDACTED DATA","ADAM HTT LIMITED T/A ADAM","7718565","http://opencorporates.com/companies/gb/7718565","198573349"
"London Borough of Redbridge","http://opendatacommunities.org/doc/london-borough-council/redbridge","5BGFHOUSING","General Fund Housing","5CHOMELESS","Homelessness","REV","Revenue","R5630","HAC Temporary Accomodation","05-THIRD","Third Party Payments","05H","Private contractors","6900","Nightly Let Plus Charges","3579508","202011",02/02/2020 00:00:00,1891,"31230","Employment and Recruitment Agencies","REDACTED DATA","ADAM HTT LIMITED T/A ADAM","7718565","http://opencorporates.com/companies/gb/7718565","198573349"
"London Borough of Redbridge","http://opendatacommunities.org/doc/london-borough-council/redbridge","5BGFHOUSING","General Fund Housing","5CHOMELESS","Homelessness","REV","Revenue","R5630","HAC Temporary Accomodation","05-THIRD","Third Party Payments","05H","Private contractors","6900","Nightly Let Plus Charges","3579508","202011",02/02/2020 00:00:00,1271,"31230","Employment and Recruitment Agencies","REDACTED DATA","ADAM HTT LIMITED T/A ADAM","7718565","http://opencorporates.com/companies/gb/7718565","198573349"
"London Borough of Redbridge","http://opendatacommunities.org/doc/london-borough-council/redbridge","5BGFHOUSING","General Fund Housing","5CHOMELESS","Homelessness","REV","Revenue","R5630","HAC Temporary Accomodation","05-THIRD","Third Party Payments","05H","Private contractors","6900","Nightly Let Plus Charges","3579508","202011",02/02/2020 00:00:00,1178,"31230","Employment and Recruitment Agencies","REDACTED DATA","ADAM HTT LIMITED T/A ADAM","7718565","http://opencorporates.com/companies/gb/7718565","198573349"
"London Borough of Redbridge","http://opendatacommunities.org/doc/london-borough-council/redbridge","5BGFHOUSING","General Fund Housing","5CHOMELESS","Homelessness","REV","Revenue","R5630","HAC Temporary Accomodation","05-THIRD","Third Party Payments","05H","Private contractors","6900","Nightly Let Plus Charges","3579508","202011",31/01/2020 00:00:00,-1386.67,"31230","Employment and Recruitment Agencies","REDACTED DATA","ADAM HTT LIMITED T/A ADAM","7718565","http://opencorporates.com/companies/gb/7718565","198573349"
"London Borough of Redbridge","http://opendatacommunities.org/doc/london-borough-council/redbridge","5BGFHOUSING","General Fund Housing","5CHOMELESS","Homelessness","REV","Revenue","R5630","HAC Temporary Accomodation","05-THIRD","Third Party Payments","05H","Private contractors","6900","Nightly Let Plus Charges","3579508","202011",02/02/2020 00:00:00,1550,"31230","Employment and Recruitment Agencies","REDACTED DATA","ADAM HTT LIMITED T/A ADAM","7718565","http://opencorporates.com/companies/gb/7718565","198573349"
"London Borough of Redbridge","http://opendatacommunities.org/doc/london-borough-council/redbridge","5BGFHOUSING","General Fund Housing","5CHOMELESS","Homelessness","REV","Revenue","R5630","HAC Temporary Accomodation","05-THIRD","Third Party Payments","05H","Private contractors","6900","Nightly Let Plus Charges","3579508","202011",02/02/2020 00:00:00,1550,"31230","Employment and Recruitment Agencies","REDACTED DATA","ADAM HTT LIMITED T/A ADAM","7718565","http://opencorporates.com/companies/gb/7718565","198573349"
"London Borough of Redbridge","http://opendatacommunities.org/doc/london-borough-council/redbridge","5BGFHOUSING","General Fund Housing","5CHOMELESS","Homelessness","REV","Revenue","R5630","HAC Temporary Accomodation","05-THIRD","Third Party Payments","05H","Private contractors","6900","Nightly Let Plus Charges","3579508","202011",02/02/2020 00:00:00,930,"31230","Employment and Recruitment Agencies","REDACTED DATA","ADAM HTT LIMITED T/A ADAM","7718565","http://opencorporates.com/companies/gb/7718565","198573349"
"London Borough of Redbridge","http://opendatacommunities.org/doc/london-borough-council/redbridge","5BGFHOUSING","General Fund Housing","5CHOMELESS","Homelessness","REV","Revenue","R5630","HAC Temporary Accomodation","05-THIRD","Third Party Payments","05H","Private contractors","6900","Nightly Let Plus Charges","3579508","202011",02/02/2020 00:00:00,1550,"31230","Employment and Recruitment Agencies","REDACTED DATA","ADAM HTT LIMITED T/A ADAM","7718565","http://opencorporates.com/companies/gb/7718565","198573349"
"London Borough of Redbridge","http://opendatacommunities.org/doc/london-borough-council/redbridge","5BGFHOUSING","General Fund Housing","5CHOMELESS","Homelessness","REV","Revenue","R5630","HAC Temporary Accomodation","05-THIRD","Third Party Payments","05H","Private contractors","6900","Nightly Let Plus Charges","3579508","202011",02/02/2020 00:00:00,1705,"31230","Employment and Recruitment Agencies","REDACTED DATA","ADAM HTT LIMITED T/A ADAM","7718565","http://opencorporates.com/companies/gb/7718565","198573349"
"London Borough of Redbridge","http://opendatacommunities.org/doc/london-borough-council/redbridge","5BGFHOUSING","General Fund Housing","5CHOMELESS","Homelessness","REV","Revenue","R5630","HAC Temporary Accomodation","05-THIRD","Third Party Payments","05H","Private contractors","6900","Nightly Let Plus Charges","3579508","202011",02/02/2020 00:00:00,1178,"31230","Employment and Recruitment Agencies","REDACTED DATA","ADAM HTT LIMITED T/A ADAM","7718565","http://opencorporates.com/companies/gb/7718565","198573349"
"London Borough of Redbridge","http://opendatacommunities.org/doc/london-borough-council/redbridge","5BGFHOUSING","General Fund Housing","5CHOMELESS","Homelessness","REV","Revenue","R5630","HAC Temporary Accomodation","05-THIRD","Third Party Payments","05H","Private contractors","6900","Nightly Let Plus Charges","3579508","202011",02/02/2020 00:00:00,958.83,"31230","Employment and Recruitment Agencies","REDACTED DATA","ADAM HTT LIMITED T/A ADAM","7718565","http://opencorporates.com/companies/gb/7718565","198573349"
"London Borough of Redbridge","http://opendatacommunities.org/doc/london-borough-council/redbridge","5BGFHOUSING","General Fund Housing","5CHOMELESS","Homelessness","REV","Revenue","R5630","HAC Temporary Accomodation","05-THIRD","Third Party Payments","05H","Private contractors","6900","Nightly Let Plus Charges","3579508","202011",02/02/2020 00:00:00,1671.83,"31230","Employment and Recruitment Agencies","REDACTED DATA","ADAM HTT LIMITED T/A ADAM","7718565","http://opencorporates.com/companies/gb/7718565","198573349"
"London Borough of Redbridge","http://opendatacommunities.org/doc/london-borough-council/redbridge","5BGFHOUSING","General Fund Housing","5CHOMELESS","Homelessness","REV","Revenue","R5630","HAC Temporary Accomodation","05-THIRD","Third Party Payments","05H","Private contractors","6900","Nightly Let Plus Charges","3579508","202011",02/02/2020 00:00:00,1302,"31230","Employment and Recruitment Agencies","REDACTED DATA","ADAM HTT LIMITED T/A ADAM","7718565","http://opencorporates.com/companies/gb/7718565","198573349"
"London Borough of Redbridge","http://opendatacommunities.org/doc/london-borough-council/redbridge","5BGFHOUSING","General Fund Housing","5CHOMELESS","Homelessness","REV","Revenue","R5630","HAC Temporary Accomodation","05-THIRD","Third Party Payments","05H","Private contractors","6900","Nightly Let Plus Charges","3579508","202011",02/02/2020 00:00:00,1302,"31230","Employment and Recruitment Agencies","REDACTED DATA","ADAM HTT LIMITED T/A ADAM","7718565","http://opencorporates.com/companies/gb/7718565","198573349"
"London Borough of Redbridge","http://opendatacommunities.org/doc/london-borough-council/redbridge","5BGFHOUSING","General Fund Housing","5CHOMELESS","Homelessness","REV","Revenue","R5641","Uxbridge","02-PREMISES","Premises","02A","Repairs, alteration and maintenance of buildings","3027","Miscellaneous Maintenance","60426245","202011",27/02/2020 00:00:00,496.8,"61961","Property Maintenance and Repairs","REDACTED DATA","MORRISONS FACILITIES SERVICES LTD","SC120550","http://opencorporates.com/companies/gb/SC120550","297280913"
"London Borough of Redbridge","http://opendatacommunities.org/doc/london-borough-council/redbridge","2BECODEV","Economic Development","","","REV","Revenue","R9870","School planned & reactive works","02-PREMISES","Premises","02A","Repairs, alteration and maintenance of buildings","3037","Service Contracts","3581272","202011",30/01/2020 00:00:00,496.66,"84085","Water Treatment Equipment and Service","REDACTED DATA","P H WATER TECHNOLOGIES LTD","5042025","http://opencorporates.com/companies/gb/5042025","834219240"
"London Borough of Redbridge","http://opendatacommunities.org/doc/london-borough-council/redbridge","2BECODEV","Economic Development","","","REV","Revenue","R9870","School planned & reactive works","02-PREMISES","Premises","02A","Repairs, alteration and maintenance of buildings","3037","Service Contracts","3581272","202011",30/01/2020 00:00:00,0,"84085","Water Treatment Equipment and Service","REDACTED DATA","P H WATER TECHNOLOGIES LTD","5042025","http://opencorporates.com/companies/gb/5042025","834219240"
"London Borough of Redbridge","http://opendatacommunities.org/doc/london-borough-council/redbridge","2BECODEV","Economic Development","","","REV","Revenue","R9870","School planned & reactive works","02-PREMISES","Premises","02A","Repairs, alteration and maintenance of buildings","3037","Service Contracts","3580197","202011",31/12/2019 00:00:00,0,"84085","Water Treatment Equipment and Service","REDACTED DATA","P H WATER TECHNOLOGIES LTD","5042025","http://opencorporates.com/companies/gb/5042025","834219240"
"London Borough of Redbridge","http://opendatacommunities.org/doc/london-borough-council/redbridge","2BECODEV","Economic Development","","","REV","Revenue","R9870","School planned & reactive works","02-PREMISES","Premises","02A","Repairs, alteration and maintenance of buildings","3037","Service Contracts","3580197","202011",31/12/2019 00:00:00,496.66,"84085","Water Treatment Equipment and Service","REDACTED DATA","P H WATER TECHNOLOGIES LTD","5042025","http://opencorporates.com/companies/gb/5042025","834219240"
"London Borough of Redbridge","http://opendatacommunities.org/doc/london-borough-council/redbridge","2BECODEV","Economic Development","","","REV","Revenue","R9870","School planned & reactive works","02-PREMISES","Premises","02A","Repairs, alteration and maintenance of buildings","3037","Service Contracts","3579109","202011",30/09/2019 00:00:00,0,"84085","Water Treatment Equipment and Service","REDACTED DATA","P H WATER TECHNOLOGIES LTD","5042025","http://opencorporates.com/companies/gb/5042025","834219240"
"London Borough of Redbridge","http://opendatacommunities.org/doc/london-borough-council/redbridge","2BECODEV","Economic Development","","","REV","Revenue","R9870","School planned & reactive works","02-PREMISES","Premises","02A","Repairs, alteration and maintenance of buildings","3037","Service Contracts","3579109","202011",30/09/2019 00:00:00,496.66,"84085","Water Treatment Equipment and Service","REDACTED DATA","P H WATER TECHNOLOGIES LTD","5042025","http://opencorporates.com/companies/gb/5042025","834219240"
"London Borough of Redbridge","http://opendatacommunities.org/doc/london-borough-council/redbridge","2BECODEV","Economic Development","","","REV","Revenue","R9870","School planned & reactive works","02-PREMISES","Premises","02A","Repairs, alteration and maintenance of buildings","3037","Service Contracts","3579110","202011",30/09/2019 00:00:00,0,"84085","Water Treatment Equipment and Service","REDACTED DATA","P H WATER TECHNOLOGIES LTD","5042025","http://opencorporates.com/companies/gb/5042025","834219240"
"London Borough of Redbridge","http://opendatacommunities.org/doc/london-borough-council/redbridge","2BECODEV","Economic Development","","","REV","Revenue","R9870","School planned & reactive works","02-PREMISES","Premises","02A","Repairs, alteration and maintenance of buildings","3037","Service Contracts","3579110","202011",30/09/2019 00:00:00,496.66,"84085","Water Treatment Equipment and Service","REDACTED DATA","P H WATER TECHNOLOGIES LTD","5042025","http://opencorporates.com/companies/gb/5042025","834219240"
"London Borough of Redbridge","http://opendatacommunities.org/doc/london-borough-council/redbridge","6BADULTSOCIA","Adult Social Care","6CLONGT65","Long-Term Support 65+ Years","REV","Revenue","R4446","Learning Disabilities - Wanstead and Woodford","06-TRANSFER","Transfer Payments","06B","Social Services Clients","7053","Direct Payments","3578477","202010",31/01/2020 00:00:00,758.6,"90005","Home Care Services DP","REDACTED DATA","REDACTED DATA","",,""
"London Borough of Redbridge","http://opendatacommunities.org/doc/london-borough-council/redbridge","6BADULTSOCIA","Adult Social Care","6CLONGT65","Long-Term Support 65+ Years","REV","Revenue","R4446","Learning Disabilities - Wanstead and Woodford","09-INCOME","Income","09C","Customer and Client Receipts","8545","Direct Payments Income","3578477","202010",31/01/2020 00:00:00,-162.8,"90005","Home Care Services DP","REDACTED DATA","REDACTED DATA","",,""
"London Borough of Redbridge","http://opendatacommunities.org/doc/london-borough-council/redbridge","5BGFHOUSING","General Fund Housing","5CHOMELESS","Homelessness","REV","Revenue","R5630","HAC Temporary Accomodation","05-THIRD","Third Party Payments","05H","Private contractors","6900","Nightly Let Plus Charges","3579508","202011",02/02/2020 00:00:00,1333,"31230","Employment and Recruitment Agencies","REDACTED DATA","ADAM HTT LIMITED T/A ADAM","7718565","http://opencorporates.com/companies/gb/7718565","198573349"
"London Borough of Redbridge","http://opendatacommunities.org/doc/london-borough-council/redbridge","5BGFHOUSING","General Fund Housing","5CHOMELESS","Homelessness","REV","Revenue","R5630","HAC Temporary Accomodation","05-THIRD","Third Party Payments","05H","Private contractors","6900","Nightly Let Plus Charges","3579508","202011",02/02/2020 00:00:00,1333,"31230","Employment and Recruitment Agencies","REDACTED DATA","ADAM HTT LIMITED T/A ADAM","7718565","http://opencorporates.com/companies/gb/7718565","198573349"
"London Borough of Redbridge","http://opendatacommunities.org/doc/london-borough-council/redbridge","5BGFHOUSING","General Fund Housing","5CHOMELESS","Homelessness","REV","Revenue","R5630","HAC Temporary Accomodation","05-THIRD","Third Party Payments","05H","Private contractors","6900","Nightly Let Plus Charges","3579508","202011",22/01/2020 00:00:00,930,"31230","Employment and Recruitment Agencies","REDACTED DATA","ADAM HTT LIMITED T/A ADAM","7718565","http://opencorporates.com/companies/gb/7718565","198573349"
"London Borough of Redbridge","http://opendatacommunities.org/doc/london-borough-council/redbridge","5BGFHOUSING","General Fund Housing","5CHOMELESS","Homelessness","REV","Revenue","R5630","HAC Temporary Accomodation","05-THIRD","Third Party Payments","05H","Private contractors","6900","Nightly Let Plus Charges","3579508","202011",22/01/2020 00:00:00,900,"31230","Employment and Recruitment Agencies","REDACTED DATA","ADAM HTT LIMITED T/A ADAM","7718565","http://opencorporates.com/companies/gb/7718565","198573349"
"London Borough of Redbridge","http://opendatacommunities.org/doc/london-borough-council/redbridge","5BGFHOUSING","General Fund Housing","5CHOMELESS","Homelessness","REV","Revenue","R5630","HAC Temporary Accomodation","05-THIRD","Third Party Payments","05H","Private contractors","6900","Nightly Let Plus Charges","3579508","202011",02/02/2020 00:00:00,1834.27,"31230","Employment and Recruitment Agencies","REDACTED DATA","ADAM HTT LIMITED T/A ADAM","7718565","http://opencorporates.com/companies/gb/7718565","198573349"
"London Borough of Redbridge","http://opendatacommunities.org/doc/london-borough-council/redbridge","5BGFHOUSING","General Fund Housing","5CHOMELESS","Homelessness","REV","Revenue","R5630","HAC Temporary Accomodation","05-THIRD","Third Party Payments","05H","Private contractors","6900","Nightly Let Plus Charges","3579508","202011",02/02/2020 00:00:00,899,"31230","Employment and Recruitment Agencies","REDACTED DATA","ADAM HTT LIMITED T/A ADAM","7718565","http://opencorporates.com/companies/gb/7718565","198573349"
"London Borough of Redbridge","http://opendatacommunities.org/doc/london-borough-council/redbridge","5BGFHOUSING","General Fund Housing","5CHOMELESS","Homelessness","REV","Revenue","R5630","HAC Temporary Accomodation","05-THIRD","Third Party Payments","05H","Private contractors","6900","Nightly Let Plus Charges","3579508","202011",02/02/2020 00:00:00,1705,"31230","Employment and Recruitment Agencies","REDACTED DATA","ADAM HTT LIMITED T/A ADAM","7718565","http://opencorporates.com/companies/gb/7718565","198573349"
"London Borough of Redbridge","http://opendatacommunities.org/doc/london-borough-council/redbridge","5BGFHOUSING","General Fund Housing","5CHOMELESS","Homelessness","REV","Revenue","R5630","HAC Temporary Accomodation","05-THIRD","Third Party Payments","05H","Private contractors","6900","Nightly Let Plus Charges","3579508","202011",02/02/2020 00:00:00,930,"31230","Employment and Recruitment Agencies","REDACTED DATA","ADAM HTT LIMITED T/A ADAM","7718565","http://opencorporates.com/companies/gb/7718565","198573349"
"London Borough of Redbridge","http://opendatacommunities.org/doc/london-borough-council/redbridge","5BGFHOUSING","General Fund Housing","5CHOMELESS","Homelessness","REV","Revenue","R5630","HAC Temporary Accomodation","05-THIRD","Third Party Payments","05H","Private contractors","6900","Nightly Let Plus Charges","3579508","202011",02/02/2020 00:00:00,1860,"31230","Employment and Recruitment Agencies","REDACTED DATA","ADAM HTT LIMITED T/A ADAM","7718565","http://opencorporates.com/companies/gb/7718565","198573349"
"London Borough of Redbridge","http://opendatacommunities.org/doc/london-borough-council/redbridge","5BGFHOUSING","General Fund Housing","5CHOMELESS","Homelessness","REV","Revenue","R5630","HAC Temporary Accomodation","05-THIRD","Third Party Payments","05H","Private contractors","6900","Nightly Let Plus Charges","3579508","202011",02/02/2020 00:00:00,1674,"31230","Employment and Recruitment Agencies","REDACTED DATA","ADAM HTT LIMITED T/A ADAM","7718565","http://opencorporates.com/companies/gb/7718565","198573349"
"London Borough of Redbridge","http://opendatacommunities.org/doc/london-borough-council/redbridge","5BGFHOUSING","General Fund Housing","5CHOMELESS","Homelessness","REV","Revenue","R5630","HAC Temporary Accomodation","05-THIRD","Third Party Payments","05H","Private contractors","6900","Nightly Let Plus Charges","3579508","202011",02/02/2020 00:00:00,1767,"31230","Employment and Recruitment Agencies","REDACTED DATA","ADAM HTT LIMITED T/A ADAM","7718565","http://opencorporates.com/companies/gb/7718565","198573349"
"London Borough of Redbridge","http://opendatacommunities.org/doc/london-borough-council/redbridge","5BGFHOUSING","General Fund Housing","5CHOMELESS","Homelessness","REV","Revenue","R5630","HAC Temporary Accomodation","05-THIRD","Third Party Payments","05H","Private contractors","6900","Nightly Let Plus Charges","3579508","202011",02/02/2020 00:00:00,1674,"31230","Employment and Recruitment Agencies","REDACTED DATA","ADAM HTT LIMITED T/A ADAM","7718565","http://opencorporates.com/companies/gb/7718565","198573349"
"London Borough of Redbridge","http://opendatacommunities.org/doc/london-borough-council/redbridge","5BGFHOUSING","General Fund Housing","5CHOMELESS","Homelessness","REV","Revenue","R5630","HAC Temporary Accomodation","05-THIRD","Third Party Payments","05H","Private contractors","6900","Nightly Let Plus Charges","3579508","202011",02/02/2020 00:00:00,1054,"31230","Employment and Recruitment Agencies","REDACTED DATA","ADAM HTT LIMITED T/A ADAM","7718565","http://opencorporates.com/companies/gb/7718565","198573349"
"London Borough of Redbridge","http://opendatacommunities.org/doc/london-borough-council/redbridge","5BGFHOUSING","General Fund Housing","5CHOMELESS","Homelessness","REV","Revenue","R5630","HAC Temporary Accomodation","05-THIRD","Third Party Payments","05H","Private contractors","6900","Nightly Let Plus Charges","3579508","202011",02/02/2020 00:00:00,1478.7,"31230","Employment and Recruitment Agencies","REDACTED DATA","ADAM HTT LIMITED T/A ADAM","7718565","http://opencorporates.com/companies/gb/7718565","198573349"
"London Borough of Redbridge","http://opendatacommunities.org/doc/london-borough-council/redbridge","5BGFHOUSING","General Fund Housing","5CHOMELESS","Homelessness","REV","Revenue","R5630","HAC Temporary Accomodation","05-THIRD","Third Party Payments","05H","Private contractors","6900","Nightly Let Plus Charges","3579508","202011",02/02/2020 00:00:00,1085,"31230","Employment and Recruitment Agencies","REDACTED DATA","ADAM HTT LIMITED T/A ADAM","7718565","http://opencorporates.com/companies/gb/7718565","198573349"
"London Borough of Redbridge","http://opendatacommunities.org/doc/london-borough-council/redbridge","5BGFHOUSING","General Fund Housing","5CHOMELESS","Homelessness","REV","Revenue","R5630","HAC Temporary Accomodation","05-THIRD","Third Party Payments","05H","Private contractors","6900","Nightly Let Plus Charges","3579508","202011",02/02/2020 00:00:00,1395,"31230","Employment and Recruitment Agencies","REDACTED DATA","ADAM HTT LIMITED T/A ADAM","7718565","http://opencorporates.com/companies/gb/7718565","198573349"
"London Borough of Redbridge","http://opendatacommunities.org/doc/london-borough-council/redbridge","5BGFHOUSING","General Fund Housing","5CHOMELESS","Homelessness","REV","Revenue","R5630","HAC Temporary Accomodation","05-THIRD","Third Party Payments","05H","Private contractors","6900","Nightly Let Plus Charges","3579508","202011",02/02/2020 00:00:00,1426,"31230","Employment and Recruitment Agencies","REDACTED DATA","ADAM HTT LIMITED T/A ADAM","7718565","http://opencorporates.com/companies/gb/7718565","198573349"
"London Borough of Redbridge","http://opendatacommunities.org/doc/london-borough-council/redbridge","5BGFHOUSING","General Fund Housing","5CHOMELESS","Homelessness","REV","Revenue","R5630","HAC Temporary Accomodation","05-THIRD","Third Party Payments","05H","Private contractors","6900","Nightly Let Plus Charges","3579508","202011",02/02/2020 00:00:00,899,"31230","Employment and Recruitment Agencies","REDACTED DATA","ADAM HTT LIMITED T/A ADAM","7718565","http://opencorporates.com/companies/gb/7718565","198573349"
"London Borough of Redbridge","http://opendatacommunities.org/doc/london-borough-council/redbridge","5BGFHOUSING","General Fund Housing","5CHOMELESS","Homelessness","REV","Revenue","R5630","HAC Temporary Accomodation","05-THIRD","Third Party Payments","05H","Private contractors","6900","Nightly Let Plus Charges","3579508","202011",22/01/2020 00:00:00,930,"31230","Employment and Recruitment Agencies","REDACTED DATA","ADAM HTT LIMITED T/A ADAM","7718565","http://opencorporates.com/companies/gb/7718565","198573349"
"London Borough of Redbridge","http://opendatacommunities.org/doc/london-borough-council/redbridge","5BGFHOUSING","General Fund Housing","5CHOMELESS","Homelessness","REV","Revenue","R5630","HAC Temporary Accomodation","05-THIRD","Third Party Payments","05H","Private contractors","6900","Nightly Let Plus Charges","3579508","202011",02/02/2020 00:00:00,930,"31230","Employment and Recruitment Agencies","REDACTED DATA","ADAM HTT LIMITED T/A ADAM","7718565","http://opencorporates.com/companies/gb/7718565","198573349"
"London Borough of Redbridge","http://opendatacommunities.org/doc/london-borough-council/redbridge","5BGFHOUSING","General Fund Housing","5CHOMELESS","Homelessness","REV","Revenue","R5630","HAC Temporary Accomodation","05-THIRD","Third Party Payments","05H","Private contractors","6900","Nightly Let Plus Charges","3579508","202011",02/02/2020 00:00:00,2015,"31230","Employment and Recruitment Agencies","REDACTED DATA","ADAM HTT LIMITED T/A ADAM","7718565","http://opencorporates.com/companies/gb/7718565","198573349"
"London Borough of Redbridge","http://opendatacommunities.org/doc/london-borough-council/redbridge","5BGFHOUSING","General Fund Housing","5CHOMELESS","Homelessness","REV","Revenue","R5630","HAC Temporary Accomodation","05-THIRD","Third Party Payments","05H","Private contractors","6900","Nightly Let Plus Charges","3579508","202011",02/02/2020 00:00:00,1705,"31230","Employment and Recruitment Agencies","REDACTED DATA","ADAM HTT LIMITED T/A ADAM","7718565","http://opencorporates.com/companies/gb/7718565","198573349"
"London Borough of Redbridge","http://opendatacommunities.org/doc/london-borough-council/redbridge","6BSOCIALSERV","Social Services","6CCHILLOOKED","Children Looked After","REV","Revenue","R2117","SEN and CD Care and Support Packages Social Care","06-TRANSFER","Transfer Payments","06B","Social Services Clients","7050","Agency Homecare","60425067","202011",03/02/2020 00:00:00,594.5,"43419","Home Care Services","REDACTED DATA","CARE AVENUES LIMITED","",,""
"London Borough of Redbridge","http://opendatacommunities.org/doc/london-borough-council/redbridge","3BNONSCHFUND","Non-School Funding","3CNONSCH","Non Schools","REV","Revenue","R3962","Early Years - 3 and 4 Year Olds","05-THIRD","Third Party Payments","05A","Independent units within the council","6517","Non-Maintained Schools","3580947","202011",26/02/2020 00:00:00,594.47,"17600","Childminders","REDACTED DATA","KATERINA SIMMONDS","5387092091","http://opencorporates.com/companies/gb/5387092091",""
"London Borough of Redbridge","http://opendatacommunities.org/doc/london-borough-council/redbridge","3BNONSCHFUND","Non-School Funding","3CNONSCH","Non Schools","REV","Revenue","R3963","Early Years - 2 Year Olds - Statutory Place Funding","05-THIRD","Third Party Payments","05A","Independent units within the council","6517","Non-Maintained Schools","3581080","202011",18/02/2020 00:00:00,594.3,"17600","Childminders","REDACTED DATA","PROFESSIONAL CHILDCARE LTD","3086844234","http://opencorporates.com/companies/gb/3086844234",""
"London Borough of Redbridge","http://opendatacommunities.org/doc/london-borough-council/redbridge","1BOTHEROPI&E","Other Operating Income & Expenditure","1CTRADSURDEF","Trading Account Surpluses & Deficits","REV","Revenue","R9551","CLM Maintenance","02-PREMISES","Premises","02A","Repairs, alteration and maintenance of buildings","3037","Service Contracts","3581344","202011",31/01/2020 00:00:00,0,"84085","Water Treatment Equipment and Service","REDACTED DATA","P H WATER TECHNOLOGIES LTD","5042025","http://opencorporates.com/companies/gb/5042025","834219240"
"London Borough of Redbridge","http://opendatacommunities.org/doc/london-borough-council/redbridge","1BOTHEROPI&E","Other Operating Income & Expenditure","1CTRADSURDEF","Trading Account Surpluses & Deficits","REV","Revenue","R9551","CLM Maintenance","02-PREMISES","Premises","02A","Repairs, alteration and maintenance of buildings","3037","Service Contracts","3581344","202011",31/01/2020 00:00:00,495,"84085","Water Treatment Equipment and Service","REDACTED DATA","P H WATER TECHNOLOGIES LTD","5042025","http://opencorporates.com/companies/gb/5042025","834219240"
"London Borough of Redbridge","http://opendatacommunities.org/doc/london-borough-council/redbridge","1BOTHEROPI&E","Other Operating Income & Expenditure","1CTRADSURDEF","Trading Account Surpluses & Deficits","REV","Revenue","R9551","CLM Maintenance","02-PREMISES","Premises","02A","Repairs, alteration and maintenance of buildings","3037","Service Contracts","3581300","202011",31/01/2020 00:00:00,495,"84085","Water Treatment Equipment and Service","REDACTED DATA","P H WATER TECHNOLOGIES LTD","5042025","http://opencorporates.com/companies/gb/5042025","834219240"
"London Borough of Redbridge","http://opendatacommunities.org/doc/london-borough-council/redbridge","1BOTHEROPI&E","Other Operating Income & Expenditure","1CTRADSURDEF","Trading Account Surpluses & Deficits","REV","Revenue","R9551","CLM Maintenance","02-PREMISES","Premises","02A","Repairs, alteration and maintenance of buildings","3037","Service Contracts","3581300","202011",31/01/2020 00:00:00,0,"84085","Water Treatment Equipment and Service","REDACTED DATA","P H WATER TECHNOLOGIES LTD","5042025","http://opencorporates.com/companies/gb/5042025","834219240"
"London Borough of Redbridge","http://opendatacommunities.org/doc/london-borough-council/redbridge","6BADULTSOCIA","Adult Social Care","6CLONGT65","Long-Term Support 65+ Years","REV","Revenue","R4438","Older People - Cranbrook & Loxford","06-TRANSFER","Transfer Payments","06B","Social Services Clients","7053","Direct Payments","3578600","202010",31/01/2020 00:00:00,681.2,"90005","Home Care Services DP","REDACTED DATA","REDACTED DATA","",,""
"London Borough of Redbridge","http://opendatacommunities.org/doc/london-borough-council/redbridge","6BADULTSOCIA","Adult Social Care","6CLONGT65","Long-Term Support 65+ Years","REV","Revenue","R4438","Older People - Cranbrook & Loxford","09-INCOME","Income","09C","Customer and Client Receipts","8545","Direct Payments Income","3578600","202010",31/01/2020 00:00:00,-88.68,"90005","Home Care Services DP","REDACTED DATA","REDACTED DATA","",,""
"London Borough of Redbridge","http://opendatacommunities.org/doc/london-borough-council/redbridge","4BMANGT&SUPP","Management & Support Services","4CHIGHRDROUT","Highways/Roads (Routine)","REV","Revenue","R7061","Lighting Energy","05-THIRD","Third Party Payments","05H","Private contractors","6915","Contractor Payments","80036322","202011",13/02/2020 00:00:00,492.33,"39564","Gas Companies","REDACTED DATA","KENT COUNTY COUNCIL (GAS & ELECTRIC)","",,"204269191"
"London Borough of Redbridge","http://opendatacommunities.org/doc/london-borough-council/redbridge","9BNONBVO","Outside the BVACOP Objective Structure","9CNONBVO","Outside the BVACOP Objective Structure","REV","Revenue","R5132","Repairs and Maintenance - Other","02-PREMISES","Premises","02A","Repairs, alteration and maintenance of buildings","3038","Service Repairs","80036304","202011",04/02/2020 00:00:00,491.12,"9321","Boilers - Servicing, Replacements and Repairs","REDACTED DATA","ATLAS MAINTENANCE SERVICES LTD","8203263","http://opencorporates.com/companies/gb/8203263","313820630"
"London Borough of Redbridge","http://opendatacommunities.org/doc/london-borough-council/redbridge","5BGFHOUSING","General Fund Housing","5CHOMELESS","Homelessness","REV","Revenue","R5630","HAC Temporary Accomodation","05-THIRD","Third Party Payments","05H","Private contractors","6900","Nightly Let Plus Charges","3579508","202011",02/02/2020 00:00:00,1085,"31230","Employment and Recruitment Agencies","REDACTED DATA","ADAM HTT LIMITED T/A ADAM","7718565","http://opencorporates.com/companies/gb/7718565","198573349"
"London Borough of Redbridge","http://opendatacommunities.org/doc/london-borough-council/redbridge","5BGFHOUSING","General Fund Housing","5CHOMELESS","Homelessness","REV","Revenue","R5630","HAC Temporary Accomodation","05-THIRD","Third Party Payments","05H","Private contractors","6900","Nightly Let Plus Charges","3579508","202011",02/02/2020 00:00:00,1142.97,"31230","Employment and Recruitment Agencies","REDACTED DATA","ADAM HTT LIMITED T/A ADAM","7718565","http://opencorporates.com/companies/gb/7718565","198573349"
"London Borough of Redbridge","http://opendatacommunities.org/doc/london-borough-council/redbridge","5BGFHOUSING","General Fund Housing","5CHOMELESS","Homelessness","REV","Revenue","R5630","HAC Temporary Accomodation","05-THIRD","Third Party Payments","05H","Private contractors","6900","Nightly Let Plus Charges","3579508","202011",02/02/2020 00:00:00,797.94,"31230","Employment and Recruitment Agencies","REDACTED DATA","ADAM HTT LIMITED T/A ADAM","7718565","http://opencorporates.com/companies/gb/7718565","198573349"
"London Borough of Redbridge","http://opendatacommunities.org/doc/london-borough-council/redbridge","5BGFHOUSING","General Fund Housing","5CHOMELESS","Homelessness","REV","Revenue","R5630","HAC Temporary Accomodation","05-THIRD","Third Party Payments","05H","Private contractors","6900","Nightly Let Plus Charges","3579508","202011",02/02/2020 00:00:00,775,"31230","Employment and Recruitment Agencies","REDACTED DATA","ADAM HTT LIMITED T/A ADAM","7718565","http://opencorporates.com/companies/gb/7718565","198573349"
"London Borough of Redbridge","http://opendatacommunities.org/doc/london-borough-council/redbridge","5BGFHOUSING","General Fund Housing","5CHOMELESS","Homelessness","REV","Revenue","R5630","HAC Temporary Accomodation","05-THIRD","Third Party Payments","05H","Private contractors","6900","Nightly Let Plus Charges","3579508","202011",02/02/2020 00:00:00,1193.5,"31230","Employment and Recruitment Agencies","REDACTED DATA","ADAM HTT LIMITED T/A ADAM","7718565","http://opencorporates.com/companies/gb/7718565","198573349"
"London Borough of Redbridge","http://opendatacommunities.org/doc/london-borough-council/redbridge","5BGFHOUSING","General Fund Housing","5CHOMELESS","Homelessness","REV","Revenue","R5630","HAC Temporary Accomodation","05-THIRD","Third Party Payments","05H","Private contractors","6900","Nightly Let Plus Charges","3579508","202011",02/02/2020 00:00:00,1705,"31230","Employment and Recruitment Agencies","REDACTED DATA","ADAM HTT LIMITED T/A ADAM","7718565","http://opencorporates.com/companies/gb/7718565","198573349"
"London Borough of Redbridge","http://opendatacommunities.org/doc/london-borough-council/redbridge","5BGFHOUSING","General Fund Housing","5CHOMELESS","Homelessness","REV","Revenue","R5630","HAC Temporary Accomodation","05-THIRD","Third Party Payments","05H","Private contractors","6900","Nightly Let Plus Charges","3579508","202011",02/02/2020 00:00:00,1023,"31230","Employment and Recruitment Agencies","REDACTED DATA","ADAM HTT LIMITED T/A ADAM","7718565","http://opencorporates.com/companies/gb/7718565","198573349"
"London Borough of Redbridge","http://opendatacommunities.org/doc/london-borough-council/redbridge","5BGFHOUSING","General Fund Housing","5CHOMELESS","Homelessness","REV","Revenue","R5630","HAC Temporary Accomodation","05-THIRD","Third Party Payments","05H","Private contractors","6900","Nightly Let Plus Charges","3579508","202011",02/02/2020 00:00:00,420,"31230","Employment and Recruitment Agencies","REDACTED DATA","ADAM HTT LIMITED T/A ADAM","7718565","http://opencorporates.com/companies/gb/7718565","198573349"
"London Borough of Redbridge","http://opendatacommunities.org/doc/london-borough-council/redbridge","5BGFHOUSING","General Fund Housing","5CHOMELESS","Homelessness","REV","Revenue","R5630","HAC Temporary Accomodation","05-THIRD","Third Party Payments","05H","Private contractors","6900","Nightly Let Plus Charges","3579508","202011",02/02/2020 00:00:00,1395,"31230","Employment and Recruitment Agencies","REDACTED DATA","ADAM HTT LIMITED T/A ADAM","7718565","http://opencorporates.com/companies/gb/7718565","198573349"
"London Borough of Redbridge","http://opendatacommunities.org/doc/london-borough-council/redbridge","5BGFHOUSING","General Fund Housing","5CHOMELESS","Homelessness","REV","Revenue","R5630","HAC Temporary Accomodation","05-THIRD","Third Party Payments","05H","Private contractors","6900","Nightly Let Plus Charges","3579508","202011",02/02/2020 00:00:00,1395,"31230","Employment and Recruitment Agencies","REDACTED DATA","ADAM HTT LIMITED T/A ADAM","7718565","http://opencorporates.com/companies/gb/7718565","198573349"
"London Borough of Redbridge","http://opendatacommunities.org/doc/london-borough-council/redbridge","5BGFHOUSING","General Fund Housing","5CHOMELESS","Homelessness","REV","Revenue","R5630","HAC Temporary Accomodation","05-THIRD","Third Party Payments","05H","Private contractors","6900","Nightly Let Plus Charges","3579508","202011",02/02/2020 00:00:00,1550,"31230","Employment and Recruitment Agencies","REDACTED DATA","ADAM HTT LIMITED T/A ADAM","7718565","http://opencorporates.com/companies/gb/7718565","198573349"
"London Borough of Redbridge","http://opendatacommunities.org/doc/london-borough-council/redbridge","6BADULTSOCIA","Adult Social Care","6CLONGT65","Long-Term Support 65+ Years","REV","Revenue","R4446","Learning Disabilities - Wanstead and Woodford","06-TRANSFER","Transfer Payments","06B","Social Services Clients","7053","Direct Payments","3578321","202010",31/01/2020 00:00:00,681.6,"90005","Home Care Services DP","REDACTED DATA","REDACTED DATA","",,""
"London Borough of Redbridge","http://opendatacommunities.org/doc/london-borough-council/redbridge","6BADULTSOCIA","Adult Social Care","6CLONGT65","Long-Term Support 65+ Years","REV","Revenue","R4446","Learning Disabilities - Wanstead and Woodford","09-INCOME","Income","09C","Customer and Client Receipts","8545","Direct Payments Income","3578321","202010",31/01/2020 00:00:00,-93,"90005","Home Care Services DP","REDACTED DATA","REDACTED DATA","",,""
"London Borough of Redbridge","http://opendatacommunities.org/doc/london-borough-council/redbridge","6BADULTSOCIA","Adult Social Care","6COTHADSERV","Other Adult Services","REV","Revenue","R4447","Older People - Wanstead & Woodford","06-TRANSFER","Transfer Payments","06B","Social Services Clients","7053","Direct Payments","3578694","202010",31/01/2020 00:00:00,1048,"90005","Home Care Services DP","REDACTED DATA","REDACTED DATA","",,""
"London Borough of Redbridge","http://opendatacommunities.org/doc/london-borough-council/redbridge","6BADULTSOCIA","Adult Social Care","6COTHADSERV","Other Adult Services","REV","Revenue","R4447","Older People - Wanstead & Woodford","09-INCOME","Income","09C","Customer and Client Receipts","8545","Direct Payments Income","3578694","202010",31/01/2020 00:00:00,-459.96,"90005","Home Care Services DP","REDACTED DATA","REDACTED DATA","",,""
"London Borough of Redbridge","http://opendatacommunities.org/doc/london-borough-council/redbridge","1BOTHEROPI&E","Other Operating Income & Expenditure","1CTRADSURDEF","Trading Account Surpluses & Deficits","REV","Revenue","R9462","HR Employee Experience","04-SUPPLIES","Supplies And Services","04H","Grants and subscriptions","5954","Professional Fees","60425773","202011",28/01/2020 00:00:00,490,"11584","Oocupational Health","REDACTED DATA","MEDIGOLD HEALTH CONSULTANCY LTD","3507491","http://opencorporates.com/companies/gb/3507491","705029661"
"London Borough of Redbridge","http://opendatacommunities.org/doc/london-borough-council/redbridge","6BADULTSOCIA","Adult Social Care","6COTHADSERV","Other Adult Services","REV","Revenue","R4390","CCG HIV Home Care","05-THIRD","Third Party Payments","05A","Independent units within the council","6502","Agency Homecare","91120834","202011",18/12/2019 00:00:00,587.58,"43419","Home Care Services","REDACTED DATA","J.C.MICHAEL GROUPS LTD","5571458","http://opencorporates.com/companies/gb/5571458","975674560"
"London Borough of Redbridge","http://opendatacommunities.org/doc/london-borough-council/redbridge","6BADULTSOCIA","Adult Social Care","6COTHADSERV","Other Adult Services","REV","Revenue","R4390","CCG HIV Home Care","05-THIRD","Third Party Payments","05A","Independent units within the council","6502","Agency Homecare","91120822","202011",18/12/2019 00:00:00,587.58,"43419","Home Care Services","REDACTED DATA","J.C.MICHAEL GROUPS LTD","5571458","http://opencorporates.com/companies/gb/5571458","975674560"
"London Borough of Redbridge","http://opendatacommunities.org/doc/london-borough-council/redbridge","6BADULTSOCIA","Adult Social Care","6COTHADSERV","Other Adult Services","REV","Revenue","R4390","CCG HIV Home Care","05-THIRD","Third Party Payments","05A","Independent units within the council","6502","Agency Homecare","91120824","202011",19/12/2019 00:00:00,587.58,"43419","Home Care Services","REDACTED DATA","J.C.MICHAEL GROUPS LTD","5571458","http://opencorporates.com/companies/gb/5571458","975674560"
"London Borough of Redbridge","http://opendatacommunities.org/doc/london-borough-council/redbridge","6BADULTSOCIA","Adult Social Care","6COTHADSERV","Other Adult Services","REV","Revenue","R4390","CCG HIV Home Care","05-THIRD","Third Party Payments","05A","Independent units within the council","6502","Agency Homecare","91120826","202011",20/12/2019 00:00:00,587.58,"43419","Home Care Services","REDACTED DATA","J.C.MICHAEL GROUPS LTD","5571458","http://opencorporates.com/companies/gb/5571458","975674560"
"London Borough of Redbridge","http://opendatacommunities.org/doc/london-borough-council/redbridge","6BADULTSOCIA","Adult Social Care","6COTHADSERV","Other Adult Services","REV","Revenue","R4390","CCG HIV Home Care","05-THIRD","Third Party Payments","05A","Independent units within the council","6502","Agency Homecare","91120828","202011",20/12/2019 00:00:00,587.58,"43419","Home Care Services","REDACTED DATA","J.C.MICHAEL GROUPS LTD","5571458","http://opencorporates.com/companies/gb/5571458","975674560"
"London Borough of Redbridge","http://opendatacommunities.org/doc/london-borough-council/redbridge","6BADULTSOCIA","Adult Social Care","6CLONGT65","Long-Term Support 65+ Years","REV","Revenue","R4446","Learning Disabilities - Wanstead and Woodford","05-THIRD","Third Party Payments","05A","Independent units within the council","6502","Agency Homecare","91120373","202011",03/02/2020 00:00:00,587.25,"17580","Childcare Services","REDACTED DATA","LORABLOOMS CARE SERVICES LIMITED","",,""
"London Borough of Redbridge","http://opendatacommunities.org/doc/london-borough-council/redbridge","6BADULTSOCIA","Adult Social Care","6CLONGT65","Long-Term Support 65+ Years","REV","Revenue","R4446","Learning Disabilities - Wanstead and Woodford","05-THIRD","Third Party Payments","05A","Independent units within the council","6502","Agency Homecare","91120374","202011",03/02/2020 00:00:00,587.25,"17580","Childcare Services","REDACTED DATA","LORABLOOMS CARE SERVICES LIMITED","",,""
"London Borough of Redbridge","http://opendatacommunities.org/doc/london-borough-council/redbridge","6BADULTSOCIA","Adult Social Care","6CLONGT65","Long-Term Support 65+ Years","REV","Revenue","R4446","Learning Disabilities - Wanstead and Woodford","05-THIRD","Third Party Payments","05A","Independent units within the council","6502","Agency Homecare","91120375","202011",03/02/2020 00:00:00,587.25,"17580","Childcare Services","REDACTED DATA","LORABLOOMS CARE SERVICES LIMITED","",,""
"London Borough of Redbridge","http://opendatacommunities.org/doc/london-borough-council/redbridge","6BADULTSOCIA","Adult Social Care","6CLONGT65","Long-Term Support 65+ Years","REV","Revenue","R4446","Learning Disabilities - Wanstead and Woodford","05-THIRD","Third Party Payments","05A","Independent units within the council","6502","Agency Homecare","91120376","202011",03/02/2020 00:00:00,587.25,"17580","Childcare Services","REDACTED DATA","LORABLOOMS CARE SERVICES LIMITED","",,""
"London Borough of Redbridge","http://opendatacommunities.org/doc/london-borough-council/redbridge","6BADULTSOCIA","Adult Social Care","6CLONGT65","Long-Term Support 65+ Years","REV","Revenue","R4446","Learning Disabilities - Wanstead and Woodford","05-THIRD","Third Party Payments","05A","Independent units within the council","6502","Agency Homecare","91120377","202011",03/02/2020 00:00:00,587.25,"17580","Childcare Services","REDACTED DATA","LORABLOOMS CARE SERVICES LIMITED","",,""
"London Borough of Redbridge","http://opendatacommunities.org/doc/london-borough-council/redbridge","6BADULTSOCIA","Adult Social Care","6CLONGT65","Long-Term Support 65+ Years","REV","Revenue","R4446","Learning Disabilities - Wanstead and Woodford","05-THIRD","Third Party Payments","05A","Independent units within the council","6502","Agency Homecare","91120378","202011",03/02/2020 00:00:00,587.25,"17580","Childcare Services","REDACTED DATA","LORABLOOMS CARE SERVICES LIMITED","",,""
"London Borough of Redbridge","http://opendatacommunities.org/doc/london-borough-council/redbridge","1BOTHEROPI&E","Other Operating Income & Expenditure","1CTRADSURDEF","Trading Account Surpluses & Deficits","REV","Revenue","R9557","CLM Utilities","02-PREMISES","Premises","02B","Energy costs","4002","Gas","80036310","202011",13/02/2020 00:00:00,488.67,"39564","Gas Companies","REDACTED DATA","KENT COUNTY COUNCIL (GAS & ELECTRIC)","",,"204269191"
"London Borough of Redbridge","http://opendatacommunities.org/doc/london-borough-council/redbridge","1BOTHEROPI&E","Other Operating Income & Expenditure","1CTRADSURDEF","Trading Account Surpluses & Deficits","REV","Revenue","R9557","CLM Utilities","02-PREMISES","Premises","02B","Energy costs","4002","Gas","80036312","202011",13/02/2020 00:00:00,488.65,"39564","Gas Companies","REDACTED DATA","KENT COUNTY COUNCIL (GAS & ELECTRIC)","",,"204269191"
"London Borough of Redbridge","http://opendatacommunities.org/doc/london-borough-council/redbridge","3BINDSCHFUND","Individual School Funds","3CDELSECOND","Delegated Individual Secondary School Budgets","REV","Revenue","S2013","TRINITY : Repairs and Maintenance Upper Site","02-PREMISES","Premises","02A","Repairs, alteration and maintenance of buildings","3056","Schools ONLY - Minor Maintenance","60424123","202010",16/01/2020 00:00:00,488.34,"11040","Builders","REDACTED DATA","M & G CONSTRUCTION LTD.","1918880","http://opencorporates.com/companies/gb/1918880","406392853"
"London Borough of Redbridge","http://opendatacommunities.org/doc/london-borough-council/redbridge","6BSOCIALSERV","Social Services","6CCHILLOOKED","Children Looked After","REV","Revenue","R2117","SEN and CD Care and Support Packages Social Care","06-TRANSFER","Transfer Payments","06B","Social Services Clients","7050","Agency Homecare","60425181","202011",10/02/2020 00:00:00,586,"31230","Employment and Recruitment Agencies","REDACTED DATA","SHARED CARE SERVICES LTD","4704680","http://opencorporates.com/companies/gb/4704680",""
"London Borough of Redbridge","http://opendatacommunities.org/doc/london-borough-council/redbridge","6BSOCIALSERV","Social Services","6CASYLUMSEEK","Asylum Seekers","REV","Revenue","R2129","Unaccompanied Asylum Seekers","05-THIRD","Third Party Payments","05E","Government departments","6962","Semi-Independent (Children Services)","60424327","202011",01/02/2020 00:00:00,487.01,"64710","Residential Care Homes","REDACTED DATA","LCS PARTNERSHIPS LTD (LEAVING CARE SOLUTIONS)","6820538","http://opencorporates.com/companies/gb/6820538","975528279"
"London Borough of Redbridge","http://opendatacommunities.org/doc/london-borough-council/redbridge","6BADULTSOCIA","Adult Social Care","6CLONGT1864","Long-Term Support 18 - 64 Years","REV","Revenue","R4441","Older People - Seven Kings","05-THIRD","Third Party Payments","05A","Independent units within the council","6502","Agency Homecare","91123379","202011",31/01/2020 00:00:00,583.05,"43419","Home Care Services","REDACTED DATA","REDSPOT CARE LTD","4391659","http://opencorporates.com/companies/gb/4391659",""
"London Borough of Redbridge","http://opendatacommunities.org/doc/london-borough-council/redbridge","4BMANGT&SUPP","Management & Support Services","4CHIGHRDROUT","Highways/Roads (Routine)","REV","Revenue","R7070","Reactive Maintenance","05-THIRD","Third Party Payments","05H","Private contractors","6915","Contractor Payments","3579854","202011",13/02/2020 00:00:00,485.8,"18632","Civil Engineers","REDACTED DATA","KENSON CONTRACTORS BENINGTON LTD","1314691","http://opencorporates.com/companies/gb/1314691","301629589"
"London Borough of Redbridge","http://opendatacommunities.org/doc/london-borough-council/redbridge","6BADULTSOCIA","Adult Social Care","6CLONGT65","Long-Term Support 65+ Years","REV","Revenue","R4444","Older People - Fairlop","05-THIRD","Third Party Payments","05A","Independent units within the council","6502","Agency Homecare","91124535","202011",11/02/2020 00:00:00,581.45,"43419","Home Care Services","REDACTED DATA","RELINE CARE LTD","7728473","http://opencorporates.com/companies/gb/7728473",""
"London Borough of Redbridge","http://opendatacommunities.org/doc/london-borough-council/redbridge","3BNONSCHFUND","Non-School Funding","3CNONSCH","Non Schools","REV","Revenue","R3962","Early Years - 3 and 4 Year Olds","05-THIRD","Third Party Payments","05A","Independent units within the council","6517","Non-Maintained Schools","3580846","202011",26/02/2020 00:00:00,580.92,"59760","Playgroups, Nurseries and Creches","REDACTED DATA","GROVE HILL CHRISTIAN PRE-SCHOOL","",,""
"London Borough of Redbridge","http://opendatacommunities.org/doc/london-borough-council/redbridge","6BADULTSOCIA","Adult Social Care","6CLONGT1864","Long-Term Support 18 - 64 Years","REV","Revenue","R4437","Learning Disabilities - Cranbrook & Loxford","06-TRANSFER","Transfer Payments","06B","Social Services Clients","7053","Direct Payments","3578827","202010",31/01/2020 00:00:00,580.44,"98758","Statutory Payments to Individuals","REDACTED DATA","REDACTED DATA","",,""
"London Borough of Redbridge","http://opendatacommunities.org/doc/london-borough-council/redbridge","6BADULTSOCIA","Adult Social Care","6CLONGT65","Long-Term Support 65+ Years","REV","Revenue","R4438","Older People - Cranbrook & Loxford","06-TRANSFER","Transfer Payments","06B","Social Services Clients","7053","Direct Payments","3578676","202010",31/01/2020 00:00:00,668.12,"90005","Home Care Services DP","REDACTED DATA","REDACTED DATA","",,""
"London Borough of Redbridge","http://opendatacommunities.org/doc/london-borough-council/redbridge","6BADULTSOCIA","Adult Social Care","6CLONGT65","Long-Term Support 65+ Years","REV","Revenue","R4438","Older People - Cranbrook & Loxford","09-INCOME","Income","09C","Customer and Client Receipts","8545","Direct Payments Income","3578676","202010",31/01/2020 00:00:00,-87.8,"90005","Home Care Services DP","REDACTED DATA","REDACTED DATA","",,""
"London Borough of Redbridge","http://opendatacommunities.org/doc/london-borough-council/redbridge","4BMANGT&SUPP","Management & Support Services","4CHIGHRDROUT","Highways/Roads (Routine)","REV","Revenue","R7070","Reactive Maintenance","05-THIRD","Third Party Payments","05H","Private contractors","6915","Contractor Payments","3579360","202011",06/02/2020 00:00:00,483.47,"18632","Civil Engineers","REDACTED DATA","KENSON CONTRACTORS BENINGTON LTD","1314691","http://opencorporates.com/companies/gb/1314691","301629589"
"London Borough of Redbridge","http://opendatacommunities.org/doc/london-borough-council/redbridge","6BADULTSOCIA","Adult Social Care","6CLONGT65","Long-Term Support 65+ Years","REV","Revenue","R4440","Learning Disabilities - Seven Kings","05-THIRD","Third Party Payments","05H","Private contractors","6904","Day Centres","91124736","202011",24/01/2020 00:00:00,290.22,"24200","Day Centres","REDACTED DATA","EASTWAY CARE LTD","",,""
"London Borough of Redbridge","http://opendatacommunities.org/doc/london-borough-council/redbridge","6BADULTSOCIA","Adult Social Care","6CLONGT65","Long-Term Support 65+ Years","REV","Revenue","R4440","Learning Disabilities - Seven Kings","05-THIRD","Third Party Payments","05H","Private contractors","6904","Day Centres","91124736","202011",24/01/2020 00:00:00,289.29,"24200","Day Centres","REDACTED DATA","EASTWAY CARE LTD","",,""
"London Borough of Redbridge","http://opendatacommunities.org/doc/london-borough-council/redbridge","6BADULTSOCIA","Adult Social Care","6CLONGT65","Long-Term Support 65+ Years","REV","Revenue","R4440","Learning Disabilities - Seven Kings","05-THIRD","Third Party Payments","05H","Private contractors","6904","Day Centres","91124769","202011",08/02/2020 00:00:00,290.22,"24200","Day Centres","REDACTED DATA","EASTWAY CARE LTD","",,""
"London Borough of Redbridge","http://opendatacommunities.org/doc/london-borough-council/redbridge","6BADULTSOCIA","Adult Social Care","6CLONGT65","Long-Term Support 65+ Years","REV","Revenue","R4440","Learning Disabilities - Seven Kings","05-THIRD","Third Party Payments","05H","Private contractors","6904","Day Centres","91124769","202011",08/02/2020 00:00:00,289.29,"24200","Day Centres","REDACTED DATA","EASTWAY CARE LTD","",,""
"London Borough of Redbridge","http://opendatacommunities.org/doc/london-borough-council/redbridge","6BADULTSOCIA","Adult Social Care","6CLONGT65","Long-Term Support 65+ Years","REV","Revenue","R4440","Learning Disabilities - Seven Kings","05-THIRD","Third Party Payments","05H","Private contractors","6904","Day Centres","91124747","202011",05/02/2020 00:00:00,290.22,"24200","Day Centres","REDACTED DATA","EASTWAY CARE LTD","",,""
"London Borough of Redbridge","http://opendatacommunities.org/doc/london-borough-council/redbridge","6BADULTSOCIA","Adult Social Care","6CLONGT65","Long-Term Support 65+ Years","REV","Revenue","R4440","Learning Disabilities - Seven Kings","05-THIRD","Third Party Payments","05H","Private contractors","6904","Day Centres","91124747","202011",05/02/2020 00:00:00,289.29,"24200","Day Centres","REDACTED DATA","EASTWAY CARE LTD","",,""
"London Borough of Redbridge","http://opendatacommunities.org/doc/london-borough-council/redbridge","6BADULTSOCIA","Adult Social Care","6CLONGT65","Long-Term Support 65+ Years","REV","Revenue","R4440","Learning Disabilities - Seven Kings","05-THIRD","Third Party Payments","05H","Private contractors","6904","Day Centres","91124758","202011",05/02/2020 00:00:00,290.22,"24200","Day Centres","REDACTED DATA","EASTWAY CARE LTD","",,""
"London Borough of Redbridge","http://opendatacommunities.org/doc/london-borough-council/redbridge","6BADULTSOCIA","Adult Social Care","6CLONGT65","Long-Term Support 65+ Years","REV","Revenue","R4440","Learning Disabilities - Seven Kings","05-THIRD","Third Party Payments","05H","Private contractors","6904","Day Centres","91124758","202011",05/02/2020 00:00:00,289.29,"24200","Day Centres","REDACTED DATA","EASTWAY CARE LTD","",,""
"London Borough of Redbridge","http://opendatacommunities.org/doc/london-borough-council/redbridge","9BNONBVO","Outside the BVACOP Objective Structure","9CNONBVO","Outside the BVACOP Objective Structure","REV","Revenue","R5048","HRA Consultancy Costs","02-PREMISES","Premises","02I","Grounds maintenance costs","4750","Grounds Maintenance","60426241","202011",03/02/2020 00:00:00,482.4,"31230","Employment and Recruitment Agencies","REDACTED DATA","AMBITIONS EMPLOYMENT AGENCY","6683811","http://opencorporates.com/companies/gb/6683811","542142969"
"London Borough of Redbridge","http://opendatacommunities.org/doc/london-borough-council/redbridge","9BNONBVO","Outside the BVACOP Objective Structure","9CNONBVO","Outside the BVACOP Objective Structure","REV","Revenue","R5214","Environmental Services Team","01-EMPLOYEES","Employees","01A","Direct employee expenses","4","Agency Staff - Pay","60426235","202011",27/01/2020 00:00:00,482.4,"31230","Employment and Recruitment Agencies","REDACTED DATA","AMBITIONS EMPLOYMENT AGENCY","6683811","http://opencorporates.com/companies/gb/6683811","542142969"
"London Borough of Redbridge","http://opendatacommunities.org/doc/london-borough-council/redbridge","9BNONBVO","Outside the BVACOP Objective Structure","9CNONBVO","Outside the BVACOP Objective Structure","REV","Revenue","R5214","Environmental Services Team","01-EMPLOYEES","Employees","01A","Direct employee expenses","4","Agency Staff - Pay","60426240","202011",03/02/2020 00:00:00,482.4,"31230","Employment and Recruitment Agencies","REDACTED DATA","AMBITIONS EMPLOYMENT AGENCY","6683811","http://opencorporates.com/companies/gb/6683811","542142969"
"London Borough of Redbridge","http://opendatacommunities.org/doc/london-borough-council/redbridge","9BNONBVO","Outside the BVACOP Objective Structure","9CNONBVO","Outside the BVACOP Objective Structure","BAL","Balance Sheet","B0059","DUMMY VAT ACCOUNT","99-NONBV","Capital, Balance Sheet and Control","50L","Debtors","9359","VAT only invoices","70112033","202010",16/01/2020 00:00:00,-578.17,"6130","Bailiffs","REDACTED DATA","REVENTUS LTD","4714602","http://opencorporates.com/companies/gb/4714602","836065524"
"London Borough of Redbridge","http://opendatacommunities.org/doc/london-borough-council/redbridge","9BNONBVO","Outside the BVACOP Objective Structure","9CNONBVO","Outside the BVACOP Objective Structure","BAL","Balance Sheet","B0059","DUMMY VAT ACCOUNT","99-NONBV","Capital, Balance Sheet and Control","50L","Debtors","9359","VAT only invoices","70112033","202010",16/01/2020 00:00:00,578.17,"6130","Bailiffs","REDACTED DATA","REVENTUS LTD","4714602","http://opencorporates.com/companies/gb/4714602","836065524"
"London Borough of Redbridge","http://opendatacommunities.org/doc/london-borough-council/redbridge","6BADULTSOCIA","Adult Social Care","6COTHADSERV","Other Adult Services","REV","Revenue","R4390","CCG HIV Home Care","05-THIRD","Third Party Payments","05A","Independent units within the council","6502","Agency Homecare","91120830","202011",20/12/2019 00:00:00,577.09,"43419","Home Care Services","REDACTED DATA","J.C.MICHAEL GROUPS LTD","5571458","http://opencorporates.com/companies/gb/5571458","975674560"
"London Borough of Redbridge","http://opendatacommunities.org/doc/london-borough-council/redbridge","6BADULTSOCIA","Adult Social Care","6CLONGT1864","Long-Term Support 18 - 64 Years","REV","Revenue","R4437","Learning Disabilities - Cranbrook & Loxford","05-THIRD","Third Party Payments","05H","Private contractors","6904","Day Centres","91124820","202011",17/02/2020 00:00:00,288.4,"17020","Charities and Voluntary Organisations","REDACTED DATA","UNITING FRIENDS LTD","6495763","http://opencorporates.com/companies/gb/6495763",""
"London Borough of Redbridge","http://opendatacommunities.org/doc/london-borough-council/redbridge","6BADULTSOCIA","Adult Social Care","6CLONGT1864","Long-Term Support 18 - 64 Years","REV","Revenue","R4437","Learning Disabilities - Cranbrook & Loxford","05-THIRD","Third Party Payments","05H","Private contractors","6904","Day Centres","91124793","202011",10/02/2020 00:00:00,288.4,"17020","Charities and Voluntary Organisations","REDACTED DATA","UNITING FRIENDS LTD","6495763","http://opencorporates.com/companies/gb/6495763",""
"London Borough of Redbridge","http://opendatacommunities.org/doc/london-borough-council/redbridge","6BADULTSOCIA","Adult Social Care","6CLONGT1864","Long-Term Support 18 - 64 Years","REV","Revenue","R4437","Learning Disabilities - Cranbrook & Loxford","05-THIRD","Third Party Payments","05H","Private contractors","6904","Day Centres","91124793","202011",10/02/2020 00:00:00,288.4,"17020","Charities and Voluntary Organisations","REDACTED DATA","UNITING FRIENDS LTD","6495763","http://opencorporates.com/companies/gb/6495763",""
"London Borough of Redbridge","http://opendatacommunities.org/doc/london-borough-council/redbridge","6BADULTSOCIA","Adult Social Care","6CLONGT1864","Long-Term Support 18 - 64 Years","REV","Revenue","R4437","Learning Disabilities - Cranbrook & Loxford","05-THIRD","Third Party Payments","05H","Private contractors","6904","Day Centres","91124820","202011",17/02/2020 00:00:00,288.4,"17020","Charities and Voluntary Organisations","REDACTED DATA","UNITING FRIENDS LTD","6495763","http://opencorporates.com/companies/gb/6495763",""
"London Borough of Redbridge","http://opendatacommunities.org/doc/london-borough-council/redbridge","6BADULTSOCIA","Adult Social Care","6CLONGT1864","Long-Term Support 18 - 64 Years","REV","Revenue","R4437","Learning Disabilities - Cranbrook & Loxford","05-THIRD","Third Party Payments","05H","Private contractors","6904","Day Centres","91121123","202011",03/02/2020 00:00:00,288.4,"17020","Charities and Voluntary Organisations","REDACTED DATA","UNITING FRIENDS LTD","6495763","http://opencorporates.com/companies/gb/6495763",""
"London Borough of Redbridge","http://opendatacommunities.org/doc/london-borough-council/redbridge","6BADULTSOCIA","Adult Social Care","6CLONGT1864","Long-Term Support 18 - 64 Years","REV","Revenue","R4437","Learning Disabilities - Cranbrook & Loxford","05-THIRD","Third Party Payments","05H","Private contractors","6904","Day Centres","91121123","202011",03/02/2020 00:00:00,288.4,"17020","Charities and Voluntary Organisations","REDACTED DATA","UNITING FRIENDS LTD","6495763","http://opencorporates.com/companies/gb/6495763",""
"London Borough of Redbridge","http://opendatacommunities.org/doc/london-borough-council/redbridge","6BADULTSOCIA","Adult Social Care","6CLONGT1864","Long-Term Support 18 - 64 Years","REV","Revenue","R4443","Learning Disabilities - Fairlop","05-THIRD","Third Party Payments","05H","Private contractors","6904","Day Centres","91121127","202011",03/02/2020 00:00:00,288.4,"17020","Charities and Voluntary Organisations","REDACTED DATA","UNITING FRIENDS LTD","6495763","http://opencorporates.com/companies/gb/6495763",""
"London Borough of Redbridge","http://opendatacommunities.org/doc/london-borough-council/redbridge","6BADULTSOCIA","Adult Social Care","6CLONGT1864","Long-Term Support 18 - 64 Years","REV","Revenue","R4443","Learning Disabilities - Fairlop","05-THIRD","Third Party Payments","05H","Private contractors","6904","Day Centres","91124797","202011",10/02/2020 00:00:00,288.4,"17020","Charities and Voluntary Organisations","REDACTED DATA","UNITING FRIENDS LTD","6495763","http://opencorporates.com/companies/gb/6495763",""
"London Borough of Redbridge","http://opendatacommunities.org/doc/london-borough-council/redbridge","6BADULTSOCIA","Adult Social Care","6CLONGT1864","Long-Term Support 18 - 64 Years","REV","Revenue","R4443","Learning Disabilities - Fairlop","05-THIRD","Third Party Payments","05H","Private contractors","6904","Day Centres","91124824","202011",17/02/2020 00:00:00,288.4,"17020","Charities and Voluntary Organisations","REDACTED DATA","UNITING FRIENDS LTD","6495763","http://opencorporates.com/companies/gb/6495763",""
"London Borough of Redbridge","http://opendatacommunities.org/doc/london-borough-council/redbridge","6BADULTSOCIA","Adult Social Care","6CLONGT1864","Long-Term Support 18 - 64 Years","REV","Revenue","R4443","Learning Disabilities - Fairlop","05-THIRD","Third Party Payments","05H","Private contractors","6904","Day Centres","91124824","202011",17/02/2020 00:00:00,288.4,"17020","Charities and Voluntary Organisations","REDACTED DATA","UNITING FRIENDS LTD","6495763","http://opencorporates.com/companies/gb/6495763",""
"London Borough of Redbridge","http://opendatacommunities.org/doc/london-borough-council/redbridge","6BADULTSOCIA","Adult Social Care","6CLONGT1864","Long-Term Support 18 - 64 Years","REV","Revenue","R4443","Learning Disabilities - Fairlop","05-THIRD","Third Party Payments","05H","Private contractors","6904","Day Centres","91124797","202011",10/02/2020 00:00:00,288.4,"17020","Charities and Voluntary Organisations","REDACTED DATA","UNITING FRIENDS LTD","6495763","http://opencorporates.com/companies/gb/6495763",""
"London Borough of Redbridge","http://opendatacommunities.org/doc/london-borough-council/redbridge","6BADULTSOCIA","Adult Social Care","6CLONGT1864","Long-Term Support 18 - 64 Years","REV","Revenue","R4443","Learning Disabilities - Fairlop","05-THIRD","Third Party Payments","05H","Private contractors","6904","Day Centres","91121127","202011",03/02/2020 00:00:00,288.4,"17020","Charities and Voluntary Organisations","REDACTED DATA","UNITING FRIENDS LTD","6495763","http://opencorporates.com/companies/gb/6495763",""
"London Borough of Redbridge","http://opendatacommunities.org/doc/london-borough-council/redbridge","6BADULTSOCIA","Adult Social Care","6CLONGT65","Long-Term Support 65+ Years","REV","Revenue","R4440","Learning Disabilities - Seven Kings","05-THIRD","Third Party Payments","05H","Private contractors","6904","Day Centres","91121132","202011",03/02/2020 00:00:00,288.4,"17020","Charities and Voluntary Organisations","REDACTED DATA","UNITING FRIENDS LTD","6495763","http://opencorporates.com/companies/gb/6495763",""
"London Borough of Redbridge","http://opendatacommunities.org/doc/london-borough-council/redbridge","6BADULTSOCIA","Adult Social Care","6CLONGT65","Long-Term Support 65+ Years","REV","Revenue","R4440","Learning Disabilities - Seven Kings","05-THIRD","Third Party Payments","05H","Private contractors","6904","Day Centres","91121132","202011",03/02/2020 00:00:00,288.4,"17020","Charities and Voluntary Organisations","REDACTED DATA","UNITING FRIENDS LTD","6495763","http://opencorporates.com/companies/gb/6495763",""
"London Borough of Redbridge","http://opendatacommunities.org/doc/london-borough-council/redbridge","6BADULTSOCIA","Adult Social Care","6CLONGT65","Long-Term Support 65+ Years","REV","Revenue","R4440","Learning Disabilities - Seven Kings","05-THIRD","Third Party Payments","05H","Private contractors","6904","Day Centres","91124829","202011",17/02/2020 00:00:00,288.4,"17020","Charities and Voluntary Organisations","REDACTED DATA","UNITING FRIENDS LTD","6495763","http://opencorporates.com/companies/gb/6495763",""
"London Borough of Redbridge","http://opendatacommunities.org/doc/london-borough-council/redbridge","6BADULTSOCIA","Adult Social Care","6CLONGT65","Long-Term Support 65+ Years","REV","Revenue","R4440","Learning Disabilities - Seven Kings","05-THIRD","Third Party Payments","05H","Private contractors","6904","Day Centres","91124802","202011",10/02/2020 00:00:00,288.4,"17020","Charities and Voluntary Organisations","REDACTED DATA","UNITING FRIENDS LTD","6495763","http://opencorporates.com/companies/gb/6495763",""
"London Borough of Redbridge","http://opendatacommunities.org/doc/london-borough-council/redbridge","6BADULTSOCIA","Adult Social Care","6CLONGT65","Long-Term Support 65+ Years","REV","Revenue","R4440","Learning Disabilities - Seven Kings","05-THIRD","Third Party Payments","05H","Private contractors","6904","Day Centres","91124829","202011",17/02/2020 00:00:00,288.4,"17020","Charities and Voluntary Organisations","REDACTED DATA","UNITING FRIENDS LTD","6495763","http://opencorporates.com/companies/gb/6495763",""
"London Borough of Redbridge","http://opendatacommunities.org/doc/london-borough-council/redbridge","6BADULTSOCIA","Adult Social Care","6CLONGT65","Long-Term Support 65+ Years","REV","Revenue","R4440","Learning Disabilities - Seven Kings","05-THIRD","Third Party Payments","05H","Private contractors","6904","Day Centres","91124802","202011",10/02/2020 00:00:00,288.4,"17020","Charities and Voluntary Organisations","REDACTED DATA","UNITING FRIENDS LTD","6495763","http://opencorporates.com/companies/gb/6495763",""
"London Borough of Redbridge","http://opendatacommunities.org/doc/london-borough-council/redbridge","9BNONBVO","Outside the BVACOP Objective Structure","9CNONBVO","Outside the BVACOP Objective Structure","REV","Revenue","R5132","Repairs and Maintenance - Other","02-PREMISES","Premises","02A","Repairs, alteration and maintenance of buildings","3038","Service Repairs","80036254","202011",31/01/2020 00:00:00,480.61,"9321","Boilers - Servicing, Replacements and Repairs","REDACTED DATA","ATLAS MAINTENANCE SERVICES LTD","8203263","http://opencorporates.com/companies/gb/8203263","313820630"
"London Borough of Redbridge","http://opendatacommunities.org/doc/london-borough-council/redbridge","9BNONBVO","Outside the BVACOP Objective Structure","9CNONBVO","Outside the BVACOP Objective Structure","REV","Revenue","R5132","Repairs and Maintenance - Other","02-PREMISES","Premises","02A","Repairs, alteration and maintenance of buildings","3038","Service Repairs","80035999","202010",17/01/2020 00:00:00,480.61,"9321","Boilers - Servicing, Replacements and Repairs","REDACTED DATA","ATLAS MAINTENANCE SERVICES LTD","8203263","http://opencorporates.com/companies/gb/8203263","313820630"
"London Borough of Redbridge","http://opendatacommunities.org/doc/london-borough-council/redbridge","9BNONBVO","Outside the BVACOP Objective Structure","9CNONBVO","Outside the BVACOP Objective Structure","REV","Revenue","R5132","Repairs and Maintenance - Other","02-PREMISES","Premises","02A","Repairs, alteration and maintenance of buildings","3038","Service Repairs","80036003","202010",17/01/2020 00:00:00,480.61,"9321","Boilers - Servicing, Replacements and Repairs","REDACTED DATA","ATLAS MAINTENANCE SERVICES LTD","8203263","http://opencorporates.com/companies/gb/8203263","313820630"
"London Borough of Redbridge","http://opendatacommunities.org/doc/london-borough-council/redbridge","9BNONBVO","Outside the BVACOP Objective Structure","9CNONBVO","Outside the BVACOP Objective Structure","REV","Revenue","R5132","Repairs and Maintenance - Other","02-PREMISES","Premises","02A","Repairs, alteration and maintenance of buildings","3038","Service Repairs","80036029","202010",22/01/2020 00:00:00,480.61,"9321","Boilers - Servicing, Replacements and Repairs","REDACTED DATA","ATLAS MAINTENANCE SERVICES LTD","8203263","http://opencorporates.com/companies/gb/8203263","313820630"
"London Borough of Redbridge","http://opendatacommunities.org/doc/london-borough-council/redbridge","9BNONBVO","Outside the BVACOP Objective Structure","9CNONBVO","Outside the BVACOP Objective Structure","REV","Revenue","R5132","Repairs and Maintenance - Other","02-PREMISES","Premises","02A","Repairs, alteration and maintenance of buildings","3038","Service Repairs","80036033","202010",22/01/2020 00:00:00,480.61,"9321","Boilers - Servicing, Replacements and Repairs","REDACTED DATA","ATLAS MAINTENANCE SERVICES LTD","8203263","http://opencorporates.com/companies/gb/8203263","313820630"
"London Borough of Redbridge","http://opendatacommunities.org/doc/london-borough-council/redbridge","6BADULTSOCIA","Adult Social Care","6CLONGT1864","Long-Term Support 18 - 64 Years","REV","Revenue","R4437","Learning Disabilities - Cranbrook & Loxford","05-THIRD","Third Party Payments","05H","Private contractors","6904","Day Centres","91124664","202011",11/02/2020 00:00:00,288.2,"17020","Charities and Voluntary Organisations","REDACTED DATA","VIBRANCE","7094318","http://opencorporates.com/companies/gb/7094318",""
"London Borough of Redbridge","http://opendatacommunities.org/doc/london-borough-council/redbridge","5BGFHOUSING","General Fund Housing","5CHOMELESS","Homelessness","REV","Revenue","R5630","HAC Temporary Accomodation","05-THIRD","Third Party Payments","05H","Private contractors","6900","Nightly Let Plus Charges","3579508","202011",02/02/2020 00:00:00,1178,"31230","Employment and Recruitment Agencies","REDACTED DATA","ADAM HTT LIMITED T/A ADAM","7718565","http://opencorporates.com/companies/gb/7718565","198573349"
"London Borough of Redbridge","http://opendatacommunities.org/doc/london-borough-council/redbridge","5BGFHOUSING","General Fund Housing","5CHOMELESS","Homelessness","REV","Revenue","R5630","HAC Temporary Accomodation","05-THIRD","Third Party Payments","05H","Private contractors","6900","Nightly Let Plus Charges","3579508","202011",02/02/2020 00:00:00,797.94,"31230","Employment and Recruitment Agencies","REDACTED DATA","ADAM HTT LIMITED T/A ADAM","7718565","http://opencorporates.com/companies/gb/7718565","198573349"
"London Borough of Redbridge","http://opendatacommunities.org/doc/london-borough-council/redbridge","5BGFHOUSING","General Fund Housing","5CHOMELESS","Homelessness","REV","Revenue","R5630","HAC Temporary Accomodation","05-THIRD","Third Party Payments","05H","Private contractors","6900","Nightly Let Plus Charges","3579508","202011",27/01/2020 00:00:00,-1080,"31230","Employment and Recruitment Agencies","REDACTED DATA","ADAM HTT LIMITED T/A ADAM","7718565","http://opencorporates.com/companies/gb/7718565","198573349"
"London Borough of Redbridge","http://opendatacommunities.org/doc/london-borough-council/redbridge","5BGFHOUSING","General Fund Housing","5CHOMELESS","Homelessness","REV","Revenue","R5630","HAC Temporary Accomodation","05-THIRD","Third Party Payments","05H","Private contractors","6900","Nightly Let Plus Charges","3579508","202011",27/01/2020 00:00:00,-1116,"31230","Employment and Recruitment Agencies","REDACTED DATA","ADAM HTT LIMITED T/A ADAM","7718565","http://opencorporates.com/companies/gb/7718565","198573349"
"London Borough of Redbridge","http://opendatacommunities.org/doc/london-borough-council/redbridge","5BGFHOUSING","General Fund Housing","5CHOMELESS","Homelessness","REV","Revenue","R5630","HAC Temporary Accomodation","05-THIRD","Third Party Payments","05H","Private contractors","6900","Nightly Let Plus Charges","3579508","202011",27/01/2020 00:00:00,-1116,"31230","Employment and Recruitment Agencies","REDACTED DATA","ADAM HTT LIMITED T/A ADAM","7718565","http://opencorporates.com/companies/gb/7718565","198573349"
"London Borough of Redbridge","http://opendatacommunities.org/doc/london-borough-council/redbridge","5BGFHOUSING","General Fund Housing","5CHOMELESS","Homelessness","REV","Revenue","R5630","HAC Temporary Accomodation","05-THIRD","Third Party Payments","05H","Private contractors","6900","Nightly Let Plus Charges","3579508","202011",27/01/2020 00:00:00,1044,"31230","Employment and Recruitment Agencies","REDACTED DATA","ADAM HTT LIMITED T/A ADAM","7718565","http://opencorporates.com/companies/gb/7718565","198573349"
"London Borough of Redbridge","http://opendatacommunities.org/doc/london-borough-council/redbridge","5BGFHOUSING","General Fund Housing","5CHOMELESS","Homelessness","REV","Revenue","R5630","HAC Temporary Accomodation","05-THIRD","Third Party Payments","05H","Private contractors","6900","Nightly Let Plus Charges","3579508","202011",02/02/2020 00:00:00,1612,"31230","Employment and Recruitment Agencies","REDACTED DATA","ADAM HTT LIMITED T/A ADAM","7718565","http://opencorporates.com/companies/gb/7718565","198573349"
"London Borough of Redbridge","http://opendatacommunities.org/doc/london-borough-council/redbridge","5BGFHOUSING","General Fund Housing","5CHOMELESS","Homelessness","REV","Revenue","R5630","HAC Temporary Accomodation","05-THIRD","Third Party Payments","05H","Private contractors","6900","Nightly Let Plus Charges","3579508","202011",02/02/2020 00:00:00,1643,"31230","Employment and Recruitment Agencies","REDACTED DATA","ADAM HTT LIMITED T/A ADAM","7718565","http://opencorporates.com/companies/gb/7718565","198573349"
"London Borough of Redbridge","http://opendatacommunities.org/doc/london-borough-council/redbridge","5BGFHOUSING","General Fund Housing","5CHOMELESS","Homelessness","REV","Revenue","R5630","HAC Temporary Accomodation","05-THIRD","Third Party Payments","05H","Private contractors","6900","Nightly Let Plus Charges","3579508","202011",02/02/2020 00:00:00,1395,"31230","Employment and Recruitment Agencies","REDACTED DATA","ADAM HTT LIMITED T/A ADAM","7718565","http://opencorporates.com/companies/gb/7718565","198573349"
"London Borough of Redbridge","http://opendatacommunities.org/doc/london-borough-council/redbridge","5BGFHOUSING","General Fund Housing","5CHOMELESS","Homelessness","REV","Revenue","R5630","HAC Temporary Accomodation","05-THIRD","Third Party Payments","05H","Private contractors","6900","Nightly Let Plus Charges","3579508","202011",02/02/2020 00:00:00,1860,"31230","Employment and Recruitment Agencies","REDACTED DATA","ADAM HTT LIMITED T/A ADAM","7718565","http://opencorporates.com/companies/gb/7718565","198573349"
"London Borough of Redbridge","http://opendatacommunities.org/doc/london-borough-council/redbridge","5BGFHOUSING","General Fund Housing","5CHOMELESS","Homelessness","REV","Revenue","R5630","HAC Temporary Accomodation","05-THIRD","Third Party Payments","05H","Private contractors","6900","Nightly Let Plus Charges","3579508","202011",02/02/2020 00:00:00,1550,"31230","Employment and Recruitment Agencies","REDACTED DATA","ADAM HTT LIMITED T/A ADAM","7718565","http://opencorporates.com/companies/gb/7718565","198573349"
"London Borough of Redbridge","http://opendatacommunities.org/doc/london-borough-council/redbridge","6BADULTSOCIA","Adult Social Care","6CLONGT1864","Long-Term Support 18 - 64 Years","REV","Revenue","R4437","Learning Disabilities - Cranbrook & Loxford","05-THIRD","Third Party Payments","05H","Private contractors","6904","Day Centres","91124664","202011",11/02/2020 00:00:00,288.2,"17020","Charities and Voluntary Organisations","REDACTED DATA","VIBRANCE","7094318","http://opencorporates.com/companies/gb/7094318",""
"London Borough of Redbridge","http://opendatacommunities.org/doc/london-borough-council/redbridge","6BADULTSOCIA","Adult Social Care","6CLONGT1864","Long-Term Support 18 - 64 Years","REV","Revenue","R4437","Learning Disabilities - Cranbrook & Loxford","05-THIRD","Third Party Payments","05H","Private contractors","6904","Day Centres","91124678","202011",11/02/2020 00:00:00,288.2,"17020","Charities and Voluntary Organisations","REDACTED DATA","VIBRANCE","7094318","http://opencorporates.com/companies/gb/7094318",""
"London Borough of Redbridge","http://opendatacommunities.org/doc/london-borough-council/redbridge","6BADULTSOCIA","Adult Social Care","6CLONGT1864","Long-Term Support 18 - 64 Years","REV","Revenue","R4437","Learning Disabilities - Cranbrook & Loxford","05-THIRD","Third Party Payments","05H","Private contractors","6904","Day Centres","91124678","202011",11/02/2020 00:00:00,288.2,"17020","Charities and Voluntary Organisations","REDACTED DATA","VIBRANCE","7094318","http://opencorporates.com/companies/gb/7094318",""
"London Borough of Redbridge","http://opendatacommunities.org/doc/london-borough-council/redbridge","6BADULTSOCIA","Adult Social Care","6CLONGT1864","Long-Term Support 18 - 64 Years","REV","Revenue","R4437","Learning Disabilities - Cranbrook & Loxford","05-THIRD","Third Party Payments","05H","Private contractors","6904","Day Centres","91124636","202011",11/02/2020 00:00:00,288.2,"17020","Charities and Voluntary Organisations","REDACTED DATA","VIBRANCE","7094318","http://opencorporates.com/companies/gb/7094318",""
"London Borough of Redbridge","http://opendatacommunities.org/doc/london-borough-council/redbridge","6BADULTSOCIA","Adult Social Care","6CLONGT1864","Long-Term Support 18 - 64 Years","REV","Revenue","R4437","Learning Disabilities - Cranbrook & Loxford","05-THIRD","Third Party Payments","05H","Private contractors","6904","Day Centres","91124636","202011",11/02/2020 00:00:00,288.2,"17020","Charities and Voluntary Organisations","REDACTED DATA","VIBRANCE","7094318","http://opencorporates.com/companies/gb/7094318",""
"London Borough of Redbridge","http://opendatacommunities.org/doc/london-borough-council/redbridge","6BADULTSOCIA","Adult Social Care","6CLONGT65","Long-Term Support 65+ Years","REV","Revenue","R4440","Learning Disabilities - Seven Kings","06-TRANSFER","Transfer Payments","06B","Social Services Clients","7053","Direct Payments","3578625","202010",31/01/2020 00:00:00,814.92,"90005","Home Care Services DP","REDACTED DATA","REDACTED DATA","",,""
"London Borough of Redbridge","http://opendatacommunities.org/doc/london-borough-council/redbridge","6BADULTSOCIA","Adult Social Care","6CLONGT65","Long-Term Support 65+ Years","REV","Revenue","R4440","Learning Disabilities - Seven Kings","09-INCOME","Income","09C","Customer and Client Receipts","8545","Direct Payments Income","3578625","202010",31/01/2020 00:00:00,-238.8,"90005","Home Care Services DP","REDACTED DATA","REDACTED DATA","",,""
"London Borough of Redbridge","http://opendatacommunities.org/doc/london-borough-council/redbridge","6BADULTSOCIA","Adult Social Care","6CADLEARNDIS","Adults Under 65 with Learning Disabilities","REV","Revenue","R4218","LD Individual Budgets","05-THIRD","Third Party Payments","05H","Private contractors","6904","Day Centres","91125212","202011",04/02/2020 00:00:00,576,"64710","Residential Care Homes","REDACTED DATA","TEALK SERVICES LTD (THE BEECHES- ILFORD)","4203171","http://opencorporates.com/companies/gb/4203171",""
"London Borough of Redbridge","http://opendatacommunities.org/doc/london-borough-council/redbridge","6BADULTSOCIA","Adult Social Care","6CADLEARNDIS","Adults Under 65 with Learning Disabilities","REV","Revenue","R4218","LD Individual Budgets","05-THIRD","Third Party Payments","05H","Private contractors","6904","Day Centres","91125211","202011",04/02/2020 00:00:00,576,"64710","Residential Care Homes","REDACTED DATA","TEALK SERVICES LTD (THE BEECHES- ILFORD)","4203171","http://opencorporates.com/companies/gb/4203171",""
"London Borough of Redbridge","http://opendatacommunities.org/doc/london-borough-council/redbridge","6BADULTSOCIA","Adult Social Care","6COTHADSERV","Other Adult Services","REV","Revenue","R4447","Older People - Wanstead & Woodford","05-THIRD","Third Party Payments","05A","Independent units within the council","6502","Agency Homecare","91124525","202011",17/02/2020 00:00:00,575.96,"43419","Home Care Services","REDACTED DATA","J.C.MICHAEL GROUPS LTD","5571458","http://opencorporates.com/companies/gb/5571458","975674560"
"London Borough of Redbridge","http://opendatacommunities.org/doc/london-borough-council/redbridge","6BADULTSOCIA","Adult Social Care","6COTHADSERV","Other Adult Services","REV","Revenue","R4447","Older People - Wanstead & Woodford","05-THIRD","Third Party Payments","05A","Independent units within the council","6502","Agency Homecare","91124526","202011",17/02/2020 00:00:00,575.96,"43419","Home Care Services","REDACTED DATA","J.C.MICHAEL GROUPS LTD","5571458","http://opencorporates.com/companies/gb/5571458","975674560"
"London Borough of Redbridge","http://opendatacommunities.org/doc/london-borough-council/redbridge","5BGFHOUSING","General Fund Housing","5CHOMELESS","Homelessness","REV","Revenue","R5630","HAC Temporary Accomodation","05-THIRD","Third Party Payments","05H","Private contractors","6900","Nightly Let Plus Charges","3579508","202011",02/02/2020 00:00:00,1395,"31230","Employment and Recruitment Agencies","REDACTED DATA","ADAM HTT LIMITED T/A ADAM","7718565","http://opencorporates.com/companies/gb/7718565","198573349"
"London Borough of Redbridge","http://opendatacommunities.org/doc/london-borough-council/redbridge","5BGFHOUSING","General Fund Housing","5CHOMELESS","Homelessness","REV","Revenue","R5630","HAC Temporary Accomodation","05-THIRD","Third Party Payments","05H","Private contractors","6900","Nightly Let Plus Charges","3579508","202011",02/02/2020 00:00:00,1395,"31230","Employment and Recruitment Agencies","REDACTED DATA","ADAM HTT LIMITED T/A ADAM","7718565","http://opencorporates.com/companies/gb/7718565","198573349"
"London Borough of Redbridge","http://opendatacommunities.org/doc/london-borough-council/redbridge","5BGFHOUSING","General Fund Housing","5CHOMELESS","Homelessness","REV","Revenue","R5630","HAC Temporary Accomodation","05-THIRD","Third Party Payments","05H","Private contractors","6900","Nightly Let Plus Charges","3579508","202011",02/02/2020 00:00:00,1178,"31230","Employment and Recruitment Agencies","REDACTED DATA","ADAM HTT LIMITED T/A ADAM","7718565","http://opencorporates.com/companies/gb/7718565","198573349"
"London Borough of Redbridge","http://opendatacommunities.org/doc/london-borough-council/redbridge","5BGFHOUSING","General Fund Housing","5CHOMELESS","Homelessness","REV","Revenue","R5630","HAC Temporary Accomodation","05-THIRD","Third Party Payments","05H","Private contractors","6900","Nightly Let Plus Charges","3579508","202011",02/02/2020 00:00:00,1395,"31230","Employment and Recruitment Agencies","REDACTED DATA","ADAM HTT LIMITED T/A ADAM","7718565","http://opencorporates.com/companies/gb/7718565","198573349"
"London Borough of Redbridge","http://opendatacommunities.org/doc/london-borough-council/redbridge","5BGFHOUSING","General Fund Housing","5CHOMELESS","Homelessness","REV","Revenue","R5630","HAC Temporary Accomodation","05-THIRD","Third Party Payments","05H","Private contractors","6900","Nightly Let Plus Charges","3579508","202011",02/02/2020 00:00:00,930,"31230","Employment and Recruitment Agencies","REDACTED DATA","ADAM HTT LIMITED T/A ADAM","7718565","http://opencorporates.com/companies/gb/7718565","198573349"
"London Borough of Redbridge","http://opendatacommunities.org/doc/london-borough-council/redbridge","5BGFHOUSING","General Fund Housing","5CHOMELESS","Homelessness","REV","Revenue","R5630","HAC Temporary Accomodation","05-THIRD","Third Party Payments","05H","Private contractors","6900","Nightly Let Plus Charges","3579508","202011",02/02/2020 00:00:00,1705,"31230","Employment and Recruitment Agencies","REDACTED DATA","ADAM HTT LIMITED T/A ADAM","7718565","http://opencorporates.com/companies/gb/7718565","198573349"
"London Borough of Redbridge","http://opendatacommunities.org/doc/london-borough-council/redbridge","5BGFHOUSING","General Fund Housing","5CHOMELESS","Homelessness","REV","Revenue","R5630","HAC Temporary Accomodation","05-THIRD","Third Party Payments","05H","Private contractors","6900","Nightly Let Plus Charges","3579508","202011",02/02/2020 00:00:00,1333,"31230","Employment and Recruitment Agencies","REDACTED DATA","ADAM HTT LIMITED T/A ADAM","7718565","http://opencorporates.com/companies/gb/7718565","198573349"
"London Borough of Redbridge","http://opendatacommunities.org/doc/london-borough-council/redbridge","5BGFHOUSING","General Fund Housing","5CHOMELESS","Homelessness","REV","Revenue","R5630","HAC Temporary Accomodation","05-THIRD","Third Party Payments","05H","Private contractors","6900","Nightly Let Plus Charges","3579508","202011",02/02/2020 00:00:00,1085,"31230","Employment and Recruitment Agencies","REDACTED DATA","ADAM HTT LIMITED T/A ADAM","7718565","http://opencorporates.com/companies/gb/7718565","198573349"
"London Borough of Redbridge","http://opendatacommunities.org/doc/london-borough-council/redbridge","5BGFHOUSING","General Fund Housing","5CHOMELESS","Homelessness","REV","Revenue","R5630","HAC Temporary Accomodation","05-THIRD","Third Party Payments","05H","Private contractors","6900","Nightly Let Plus Charges","3579508","202011",02/02/2020 00:00:00,775,"31230","Employment and Recruitment Agencies","REDACTED DATA","ADAM HTT LIMITED T/A ADAM","7718565","http://opencorporates.com/companies/gb/7718565","198573349"
"London Borough of Redbridge","http://opendatacommunities.org/doc/london-borough-council/redbridge","5BGFHOUSING","General Fund Housing","5CHOMELESS","Homelessness","REV","Revenue","R5630","HAC Temporary Accomodation","05-THIRD","Third Party Payments","05H","Private contractors","6900","Nightly Let Plus Charges","3579508","202011",02/02/2020 00:00:00,1767,"31230","Employment and Recruitment Agencies","REDACTED DATA","ADAM HTT LIMITED T/A ADAM","7718565","http://opencorporates.com/companies/gb/7718565","198573349"
"London Borough of Redbridge","http://opendatacommunities.org/doc/london-borough-council/redbridge","5BGFHOUSING","General Fund Housing","5CHOMELESS","Homelessness","REV","Revenue","R5630","HAC Temporary Accomodation","05-THIRD","Third Party Payments","05H","Private contractors","6900","Nightly Let Plus Charges","3579508","202011",02/02/2020 00:00:00,1333,"31230","Employment and Recruitment Agencies","REDACTED DATA","ADAM HTT LIMITED T/A ADAM","7718565","http://opencorporates.com/companies/gb/7718565","198573349"
"London Borough of Redbridge","http://opendatacommunities.org/doc/london-borough-council/redbridge","6BADULTSOCIA","Adult Social Care","6COTHADSERV","Other Adult Services","REV","Revenue","R4447","Older People - Wanstead & Woodford","05-THIRD","Third Party Payments","05A","Independent units within the council","6502","Agency Homecare","91124527","202011",17/02/2020 00:00:00,575.96,"43419","Home Care Services","REDACTED DATA","J.C.MICHAEL GROUPS LTD","5571458","http://opencorporates.com/companies/gb/5571458","975674560"
"London Borough of Redbridge","http://opendatacommunities.org/doc/london-borough-council/redbridge","6BADULTSOCIA","Adult Social Care","6COTHADSERV","Other Adult Services","REV","Revenue","R4447","Older People - Wanstead & Woodford","05-THIRD","Third Party Payments","05A","Independent units within the council","6502","Agency Homecare","91124523","202011",17/02/2020 00:00:00,575.96,"43419","Home Care Services","REDACTED DATA","J.C.MICHAEL GROUPS LTD","5571458","http://opencorporates.com/companies/gb/5571458","975674560"
"London Borough of Redbridge","http://opendatacommunities.org/doc/london-borough-council/redbridge","6BADULTSOCIA","Adult Social Care","6COTHADSERV","Other Adult Services","REV","Revenue","R4447","Older People - Wanstead & Woodford","05-THIRD","Third Party Payments","05A","Independent units within the council","6502","Agency Homecare","91124524","202011",17/02/2020 00:00:00,575.96,"43419","Home Care Services","REDACTED DATA","J.C.MICHAEL GROUPS LTD","5571458","http://opencorporates.com/companies/gb/5571458","975674560"
"London Borough of Redbridge","http://opendatacommunities.org/doc/london-borough-council/redbridge","6BADULTSOCIA","Adult Social Care","6CLONGT1864","Long-Term Support 18 - 64 Years","REV","Revenue","R4441","Older People - Seven Kings","05-THIRD","Third Party Payments","05A","Independent units within the council","6502","Agency Homecare","91124385","202011",17/02/2020 00:00:00,575.68,"43419","Home Care Services","REDACTED DATA","MRA S SANSHU & MR S S SANDHU T/A DE VERE CARE","6573333","http://opencorporates.com/companies/gb/6573333",""
"London Borough of Redbridge","http://opendatacommunities.org/doc/london-borough-council/redbridge","6BADULTSOCIA","Adult Social Care","6CLONGT1864","Long-Term Support 18 - 64 Years","REV","Revenue","R4441","Older People - Seven Kings","05-THIRD","Third Party Payments","05A","Independent units within the council","6502","Agency Homecare","91124347","202011",17/02/2020 00:00:00,575.68,"43419","Home Care Services","REDACTED DATA","MRA S SANSHU & MR S S SANDHU T/A DE VERE CARE","6573333","http://opencorporates.com/companies/gb/6573333",""
"London Borough of Redbridge","http://opendatacommunities.org/doc/london-borough-council/redbridge","6BADULTSOCIA","Adult Social Care","6COTHADSERV","Other Adult Services","REV","Revenue","R4447","Older People - Wanstead & Woodford","05-THIRD","Third Party Payments","05A","Independent units within the council","6502","Agency Homecare","91124381","202011",17/02/2020 00:00:00,575.68,"43419","Home Care Services","REDACTED DATA","MRA S SANSHU & MR S S SANDHU T/A DE VERE CARE","6573333","http://opencorporates.com/companies/gb/6573333",""
"London Borough of Redbridge","http://opendatacommunities.org/doc/london-borough-council/redbridge","6BADULTSOCIA","Adult Social Care","6COTHADSERV","Other Adult Services","REV","Revenue","R4447","Older People - Wanstead & Woodford","05-THIRD","Third Party Payments","05A","Independent units within the council","6502","Agency Homecare","91124344","202011",17/02/2020 00:00:00,575.68,"43419","Home Care Services","REDACTED DATA","MRA S SANSHU & MR S S SANDHU T/A DE VERE CARE","6573333","http://opencorporates.com/companies/gb/6573333",""
"London Borough of Redbridge","http://opendatacommunities.org/doc/london-borough-council/redbridge","6BADULTSOCIA","Adult Social Care","6COTHADSERV","Other Adult Services","REV","Revenue","R4447","Older People - Wanstead & Woodford","05-THIRD","Third Party Payments","05A","Independent units within the council","6502","Agency Homecare","91121036","202011",03/02/2020 00:00:00,575.68,"43419","Home Care Services","REDACTED DATA","MRA S SANSHU & MR S S SANDHU T/A DE VERE CARE","6573333","http://opencorporates.com/companies/gb/6573333",""
"London Borough of Redbridge","http://opendatacommunities.org/doc/london-borough-council/redbridge","6BADULTSOCIA","Adult Social Care","6CLONGT65","Long-Term Support 65+ Years","REV","Revenue","R4444","Older People - Fairlop","05-THIRD","Third Party Payments","05A","Independent units within the council","6502","Agency Homecare","91121062","202011",31/01/2020 00:00:00,575.41,"43419","Home Care Services","REDACTED DATA","RELINE CARE LTD","7728473","http://opencorporates.com/companies/gb/7728473",""
"London Borough of Redbridge","http://opendatacommunities.org/doc/london-borough-council/redbridge","6BADULTSOCIA","Adult Social Care","6CLONGT65","Long-Term Support 65+ Years","REV","Revenue","R4440","Learning Disabilities - Seven Kings","05-THIRD","Third Party Payments","05A","Independent units within the council","6502","Agency Homecare","91124397","202011",07/02/2020 00:00:00,575.2,"53350","Nursing Homes","REDACTED DATA","ELEANOR NURSING & SOCIALCARE LTD","4393038","http://opencorporates.com/companies/gb/4393038",""
"London Borough of Redbridge","http://opendatacommunities.org/doc/london-borough-council/redbridge","6BADULTSOCIA","Adult Social Care","6CLONGT1864","Long-Term Support 18 - 64 Years","REV","Revenue","R4437","Learning Disabilities - Cranbrook & Loxford","05-THIRD","Third Party Payments","05H","Private contractors","6904","Day Centres","91121128","202011",03/02/2020 00:00:00,287.48,"17020","Charities and Voluntary Organisations","REDACTED DATA","UNITING FRIENDS LTD","6495763","http://opencorporates.com/companies/gb/6495763",""
"London Borough of Redbridge","http://opendatacommunities.org/doc/london-borough-council/redbridge","6BADULTSOCIA","Adult Social Care","6CLONGT1864","Long-Term Support 18 - 64 Years","REV","Revenue","R4437","Learning Disabilities - Cranbrook & Loxford","05-THIRD","Third Party Payments","05H","Private contractors","6904","Day Centres","91121128","202011",03/02/2020 00:00:00,287.48,"17020","Charities and Voluntary Organisations","REDACTED DATA","UNITING FRIENDS LTD","6495763","http://opencorporates.com/companies/gb/6495763",""
"London Borough of Redbridge","http://opendatacommunities.org/doc/london-borough-council/redbridge","6BADULTSOCIA","Adult Social Care","6CLONGT1864","Long-Term Support 18 - 64 Years","REV","Revenue","R4437","Learning Disabilities - Cranbrook & Loxford","05-THIRD","Third Party Payments","05H","Private contractors","6904","Day Centres","91124825","202011",17/02/2020 00:00:00,287.48,"17020","Charities and Voluntary Organisations","REDACTED DATA","UNITING FRIENDS LTD","6495763","http://opencorporates.com/companies/gb/6495763",""
"London Borough of Redbridge","http://opendatacommunities.org/doc/london-borough-council/redbridge","6BADULTSOCIA","Adult Social Care","6CLONGT1864","Long-Term Support 18 - 64 Years","REV","Revenue","R4437","Learning Disabilities - Cranbrook & Loxford","05-THIRD","Third Party Payments","05H","Private contractors","6904","Day Centres","91124798","202011",10/02/2020 00:00:00,287.48,"17020","Charities and Voluntary Organisations","REDACTED DATA","UNITING FRIENDS LTD","6495763","http://opencorporates.com/companies/gb/6495763",""
"London Borough of Redbridge","http://opendatacommunities.org/doc/london-borough-council/redbridge","6BADULTSOCIA","Adult Social Care","6CLONGT1864","Long-Term Support 18 - 64 Years","REV","Revenue","R4437","Learning Disabilities - Cranbrook & Loxford","05-THIRD","Third Party Payments","05H","Private contractors","6904","Day Centres","91124825","202011",17/02/2020 00:00:00,287.48,"17020","Charities and Voluntary Organisations","REDACTED DATA","UNITING FRIENDS LTD","6495763","http://opencorporates.com/companies/gb/6495763",""
"London Borough of Redbridge","http://opendatacommunities.org/doc/london-borough-council/redbridge","6BADULTSOCIA","Adult Social Care","6CLONGT1864","Long-Term Support 18 - 64 Years","REV","Revenue","R4437","Learning Disabilities - Cranbrook & Loxford","05-THIRD","Third Party Payments","05H","Private contractors","6904","Day Centres","91124798","202011",10/02/2020 00:00:00,287.48,"17020","Charities and Voluntary Organisations","REDACTED DATA","UNITING FRIENDS LTD","6495763","http://opencorporates.com/companies/gb/6495763",""
"London Borough of Redbridge","http://opendatacommunities.org/doc/london-borough-council/redbridge","6BADULTSOCIA","Adult Social Care","6CLONGT65","Long-Term Support 65+ Years","REV","Revenue","R4440","Learning Disabilities - Seven Kings","05-THIRD","Third Party Payments","05A","Independent units within the council","6502","Agency Homecare","91122520","202011",14/02/2020 00:00:00,76.45,"31230","Employment and Recruitment Agencies","REDACTED DATA","SHARED CARE SERVICES LTD","4704680","http://opencorporates.com/companies/gb/4704680",""
"London Borough of Redbridge","http://opendatacommunities.org/doc/london-borough-council/redbridge","6BADULTSOCIA","Adult Social Care","6CLONGT65","Long-Term Support 65+ Years","REV","Revenue","R4440","Learning Disabilities - Seven Kings","05-THIRD","Third Party Payments","05A","Independent units within the council","6502","Agency Homecare","91122520","202011",14/02/2020 00:00:00,145.74,"31230","Employment and Recruitment Agencies","REDACTED DATA","SHARED CARE SERVICES LTD","4704680","http://opencorporates.com/companies/gb/4704680",""
"London Borough of Redbridge","http://opendatacommunities.org/doc/london-borough-council/redbridge","6BADULTSOCIA","Adult Social Care","6CLONGT65","Long-Term Support 65+ Years","REV","Revenue","R4440","Learning Disabilities - Seven Kings","05-THIRD","Third Party Payments","05A","Independent units within the council","6502","Agency Homecare","91122520","202011",14/02/2020 00:00:00,352.32,"31230","Employment and Recruitment Agencies","REDACTED DATA","SHARED CARE SERVICES LTD","4704680","http://opencorporates.com/companies/gb/4704680",""
"London Borough of Redbridge","http://opendatacommunities.org/doc/london-borough-council/redbridge","6BADULTSOCIA","Adult Social Care","6CLONGT65","Long-Term Support 65+ Years","REV","Revenue","R4439","Physical Disabilities - Cranbrook & Loxford","06-TRANSFER","Transfer Payments","06B","Social Services Clients","7053","Direct Payments","3578853","202010",31/01/2020 00:00:00,574.4,"98758","Statutory Payments to Individuals","REDACTED DATA","REDACTED DATA","",,""
"London Borough of Redbridge","http://opendatacommunities.org/doc/london-borough-council/redbridge","6BADULTSOCIA","Adult Social Care","6CLONGT1864","Long-Term Support 18 - 64 Years","REV","Revenue","R4441","Older People - Seven Kings","05-THIRD","Third Party Payments","05A","Independent units within the council","6502","Agency Homecare","91123385","202011",31/01/2020 00:00:00,574.37,"43419","Home Care Services","REDACTED DATA","REDSPOT CARE LTD","4391659","http://opencorporates.com/companies/gb/4391659",""
"London Borough of Redbridge","http://opendatacommunities.org/doc/london-borough-council/redbridge","9BNONBVO","Outside the BVACOP Objective Structure","9CNONBVO","Outside the BVACOP Objective Structure","REV","Revenue","R5222","Home Ownership Team","04-SUPPLIES","Supplies And Services","04H","Grants and subscriptions","5954","Professional Fees","60424712","202011",29/01/2020 00:00:00,478,"47830","Legal Services","REDACTED DATA","BATCHELORS SOLICITORS","",,"238505069"
"London Borough of Redbridge","http://opendatacommunities.org/doc/london-borough-council/redbridge","6BADULTSOCIA","Adult Social Care","6COTHADSERV","Other Adult Services","REV","Revenue","R4447","Older People - Wanstead & Woodford","05-THIRD","Third Party Payments","05A","Independent units within the council","6502","Agency Homecare","91121923","202011",14/02/2020 00:00:00,572.88,"53280","Nursing Agencies","REDACTED DATA","IMMACULATE HEALTHCARE SERVICES LIMITED","",,""
"London Borough of Redbridge","http://opendatacommunities.org/doc/london-borough-council/redbridge","6BADULTSOCIA","Adult Social Care","6COTHADSERV","Other Adult Services","REV","Revenue","R4447","Older People - Wanstead & Woodford","05-THIRD","Third Party Payments","05A","Independent units within the council","6502","Agency Homecare","91119754","202011",28/01/2020 00:00:00,572.88,"53280","Nursing Agencies","REDACTED DATA","IMMACULATE HEALTHCARE SERVICES LIMITED","",,""
"London Borough of Redbridge","http://opendatacommunities.org/doc/london-borough-council/redbridge","6BADULTSOCIA","Adult Social Care","6COTHADSERV","Other Adult Services","REV","Revenue","R4447","Older People - Wanstead & Woodford","05-THIRD","Third Party Payments","05A","Independent units within the council","6502","Agency Homecare","91119720","202011",28/01/2020 00:00:00,572.88,"53280","Nursing Agencies","REDACTED DATA","IMMACULATE HEALTHCARE SERVICES LIMITED","",,""
"London Borough of Redbridge","http://opendatacommunities.org/doc/london-borough-council/redbridge","6BADULTSOCIA","Adult Social Care","6COTHADSERV","Other Adult Services","REV","Revenue","R4447","Older People - Wanstead & Woodford","05-THIRD","Third Party Payments","05A","Independent units within the council","6502","Agency Homecare","91121966","202011",17/02/2020 00:00:00,572.88,"53280","Nursing Agencies","REDACTED DATA","IMMACULATE HEALTHCARE SERVICES LIMITED","",,""
"London Borough of Redbridge","http://opendatacommunities.org/doc/london-borough-council/redbridge","6BADULTSOCIA","Adult Social Care","6CLONGT1864","Long-Term Support 18 - 64 Years","REV","Revenue","R4443","Learning Disabilities - Fairlop","06-TRANSFER","Transfer Payments","06B","Social Services Clients","7053","Direct Payments","3578671","202010",31/01/2020 00:00:00,749.2,"90005","Home Care Services DP","REDACTED DATA","REDACTED DATA","",,""
"London Borough of Redbridge","http://opendatacommunities.org/doc/london-borough-council/redbridge","6BADULTSOCIA","Adult Social Care","6CLONGT1864","Long-Term Support 18 - 64 Years","REV","Revenue","R4443","Learning Disabilities - Fairlop","09-INCOME","Income","09C","Customer and Client Receipts","8545","Direct Payments Income","3578671","202010",31/01/2020 00:00:00,-178.8,"90005","Home Care Services DP","REDACTED DATA","REDACTED DATA","",,""
"London Borough of Redbridge","http://opendatacommunities.org/doc/london-borough-council/redbridge","2BECODEV","Economic Development","","","REV","Revenue","R9870","School planned & reactive works","02-PREMISES","Premises","02A","Repairs, alteration and maintenance of buildings","3026","Minor Maintenance","3581155","202011",31/01/2020 00:00:00,475,"30250","Electrical Heating Equipment and Systems","REDACTED DATA","OAKRAY LTD","1458147","http://opencorporates.com/companies/gb/1458147","327787712"
"London Borough of Redbridge","http://opendatacommunities.org/doc/london-borough-council/redbridge","6BADULTSOCIA","Adult Social Care","6CLONGT65","Long-Term Support 65+ Years","REV","Revenue","R4446","Learning Disabilities - Wanstead and Woodford","05-THIRD","Third Party Payments","05H","Private contractors","6904","Day Centres","91124610","202011",14/02/2020 00:00:00,209.64,"17020","Charities and Voluntary Organisations","REDACTED DATA","VIBRANCE","7094318","http://opencorporates.com/companies/gb/7094318",""
"London Borough of Redbridge","http://opendatacommunities.org/doc/london-borough-council/redbridge","6BADULTSOCIA","Adult Social Care","6CLONGT65","Long-Term Support 65+ Years","REV","Revenue","R4446","Learning Disabilities - Wanstead and Woodford","05-THIRD","Third Party Payments","05H","Private contractors","6904","Day Centres","91124610","202011",14/02/2020 00:00:00,209.61,"17020","Charities and Voluntary Organisations","REDACTED DATA","VIBRANCE","7094318","http://opencorporates.com/companies/gb/7094318",""
"London Borough of Redbridge","http://opendatacommunities.org/doc/london-borough-council/redbridge","6BADULTSOCIA","Adult Social Care","6CLONGT65","Long-Term Support 65+ Years","REV","Revenue","R4446","Learning Disabilities - Wanstead and Woodford","05-THIRD","Third Party Payments","05H","Private contractors","6904","Day Centres","91124608","202011",14/02/2020 00:00:00,209.64,"17020","Charities and Voluntary Organisations","REDACTED DATA","VIBRANCE","7094318","http://opencorporates.com/companies/gb/7094318",""
"London Borough of Redbridge","http://opendatacommunities.org/doc/london-borough-council/redbridge","6BADULTSOCIA","Adult Social Care","6CLONGT65","Long-Term Support 65+ Years","REV","Revenue","R4446","Learning Disabilities - Wanstead and Woodford","05-THIRD","Third Party Payments","05H","Private contractors","6904","Day Centres","91124610","202011",14/02/2020 00:00:00,150.75,"17020","Charities and Voluntary Organisations","REDACTED DATA","VIBRANCE","7094318","http://opencorporates.com/companies/gb/7094318",""
"London Borough of Redbridge","http://opendatacommunities.org/doc/london-borough-council/redbridge","6BADULTSOCIA","Adult Social Care","6CLONGT65","Long-Term Support 65+ Years","REV","Revenue","R4446","Learning Disabilities - Wanstead and Woodford","05-THIRD","Third Party Payments","05H","Private contractors","6904","Day Centres","91124608","202011",14/02/2020 00:00:00,150.75,"17020","Charities and Voluntary Organisations","REDACTED DATA","VIBRANCE","7094318","http://opencorporates.com/companies/gb/7094318",""
"London Borough of Redbridge","http://opendatacommunities.org/doc/london-borough-council/redbridge","6BADULTSOCIA","Adult Social Care","6CLONGT65","Long-Term Support 65+ Years","REV","Revenue","R4446","Learning Disabilities - Wanstead and Woodford","05-THIRD","Third Party Payments","05H","Private contractors","6904","Day Centres","91124600","202011",14/02/2020 00:00:00,209.64,"17020","Charities and Voluntary Organisations","REDACTED DATA","VIBRANCE","7094318","http://opencorporates.com/companies/gb/7094318",""
"London Borough of Redbridge","http://opendatacommunities.org/doc/london-borough-council/redbridge","6BADULTSOCIA","Adult Social Care","6CLONGT65","Long-Term Support 65+ Years","REV","Revenue","R4446","Learning Disabilities - Wanstead and Woodford","05-THIRD","Third Party Payments","05H","Private contractors","6904","Day Centres","91124608","202011",14/02/2020 00:00:00,209.61,"17020","Charities and Voluntary Organisations","REDACTED DATA","VIBRANCE","7094318","http://opencorporates.com/companies/gb/7094318",""
"London Borough of Redbridge","http://opendatacommunities.org/doc/london-borough-council/redbridge","6BADULTSOCIA","Adult Social Care","6CLONGT65","Long-Term Support 65+ Years","REV","Revenue","R4446","Learning Disabilities - Wanstead and Woodford","05-THIRD","Third Party Payments","05H","Private contractors","6904","Day Centres","91124600","202011",14/02/2020 00:00:00,209.61,"17020","Charities and Voluntary Organisations","REDACTED DATA","VIBRANCE","7094318","http://opencorporates.com/companies/gb/7094318",""
"London Borough of Redbridge","http://opendatacommunities.org/doc/london-borough-council/redbridge","6BADULTSOCIA","Adult Social Care","6CLONGT65","Long-Term Support 65+ Years","REV","Revenue","R4446","Learning Disabilities - Wanstead and Woodford","05-THIRD","Third Party Payments","05H","Private contractors","6904","Day Centres","91124600","202011",14/02/2020 00:00:00,150.75,"17020","Charities and Voluntary Organisations","REDACTED DATA","VIBRANCE","7094318","http://opencorporates.com/companies/gb/7094318",""
"London Borough of Redbridge","http://opendatacommunities.org/doc/london-borough-council/redbridge","6BADULTSOCIA","Adult Social Care","6CLONGT65","Long-Term Support 65+ Years","REV","Revenue","R4446","Learning Disabilities - Wanstead and Woodford","05-THIRD","Third Party Payments","05H","Private contractors","6904","Day Centres","91124602","202011",14/02/2020 00:00:00,209.64,"17020","Charities and Voluntary Organisations","REDACTED DATA","VIBRANCE","7094318","http://opencorporates.com/companies/gb/7094318",""
"London Borough of Redbridge","http://opendatacommunities.org/doc/london-borough-council/redbridge","6BADULTSOCIA","Adult Social Care","6CLONGT65","Long-Term Support 65+ Years","REV","Revenue","R4446","Learning Disabilities - Wanstead and Woodford","05-THIRD","Third Party Payments","05H","Private contractors","6904","Day Centres","91124604","202011",14/02/2020 00:00:00,209.64,"17020","Charities and Voluntary Organisations","REDACTED DATA","VIBRANCE","7094318","http://opencorporates.com/companies/gb/7094318",""
"London Borough of Redbridge","http://opendatacommunities.org/doc/london-borough-council/redbridge","6BADULTSOCIA","Adult Social Care","6CLONGT65","Long-Term Support 65+ Years","REV","Revenue","R4446","Learning Disabilities - Wanstead and Woodford","05-THIRD","Third Party Payments","05H","Private contractors","6904","Day Centres","91124602","202011",14/02/2020 00:00:00,209.61,"17020","Charities and Voluntary Organisations","REDACTED DATA","VIBRANCE","7094318","http://opencorporates.com/companies/gb/7094318",""
"London Borough of Redbridge","http://opendatacommunities.org/doc/london-borough-council/redbridge","6BADULTSOCIA","Adult Social Care","6CLONGT65","Long-Term Support 65+ Years","REV","Revenue","R4446","Learning Disabilities - Wanstead and Woodford","05-THIRD","Third Party Payments","05H","Private contractors","6904","Day Centres","91124602","202011",14/02/2020 00:00:00,150.75,"17020","Charities and Voluntary Organisations","REDACTED DATA","VIBRANCE","7094318","http://opencorporates.com/companies/gb/7094318",""
"London Borough of Redbridge","http://opendatacommunities.org/doc/london-borough-council/redbridge","6BADULTSOCIA","Adult Social Care","6CLONGT65","Long-Term Support 65+ Years","REV","Revenue","R4446","Learning Disabilities - Wanstead and Woodford","05-THIRD","Third Party Payments","05H","Private contractors","6904","Day Centres","91124604","202011",14/02/2020 00:00:00,209.61,"17020","Charities and Voluntary Organisations","REDACTED DATA","VIBRANCE","7094318","http://opencorporates.com/companies/gb/7094318",""
"London Borough of Redbridge","http://opendatacommunities.org/doc/london-borough-council/redbridge","6BADULTSOCIA","Adult Social Care","6CLONGT65","Long-Term Support 65+ Years","REV","Revenue","R4446","Learning Disabilities - Wanstead and Woodford","05-THIRD","Third Party Payments","05H","Private contractors","6904","Day Centres","91124604","202011",14/02/2020 00:00:00,150.75,"17020","Charities and Voluntary Organisations","REDACTED DATA","VIBRANCE","7094318","http://opencorporates.com/companies/gb/7094318",""
"London Borough of Redbridge","http://opendatacommunities.org/doc/london-borough-council/redbridge","6BADULTSOCIA","Adult Social Care","6CLONGT65","Long-Term Support 65+ Years","REV","Revenue","R4444","Older People - Fairlop","05-THIRD","Third Party Payments","05A","Independent units within the council","6502","Agency Homecare","91123312","202011",10/02/2020 00:00:00,569.1,"43419","Home Care Services","REDACTED DATA","ASTHA LIMITED","4914301","http://opencorporates.com/companies/gb/4914301","882333810"
"London Borough of Redbridge","http://opendatacommunities.org/doc/london-borough-council/redbridge","6BSOCIALSERV","Social Services","6CCHILLOOKED","Children Looked After","REV","Revenue","R2117","SEN and CD Care and Support Packages Social Care","06-TRANSFER","Transfer Payments","06B","Social Services Clients","7050","Agency Homecare","60424141","202011",31/01/2020 00:00:00,569,"31230","Employment and Recruitment Agencies","REDACTED DATA","HOPE SUPER JOBS LTD","5081894","http://opencorporates.com/companies/gb/5081894","872555205"
"London Borough of Redbridge","http://opendatacommunities.org/doc/london-borough-council/redbridge","3BINDSCHFUND","Individual School Funds","3CDELPRIMARY","Delegated Individual Primary School Budgets","REV","Revenue","S1029","CHRISTCHURCH : Library","04-SUPPLIES","Supplies And Services","04A","Equipment, furniture and materials","5502","Equipment Purchase","60423912","202011",29/01/2020 00:00:00,473.85,"29340","Educational Equipment and Supplies","REDACTED DATA","TTS GROUP LIMITED(TECHNOLOGY TEACHING SYSTEMS)","4373761","http://opencorporates.com/companies/gb/4373761","789963047"
"London Borough of Redbridge","http://opendatacommunities.org/doc/london-borough-council/redbridge","1BOTHEROPI&E","Other Operating Income & Expenditure","1CTRADSURDEF","Trading Account Surpluses & Deficits","REV","Revenue","R9557","CLM Utilities","02-PREMISES","Premises","02B","Energy costs","4000","Electricity","70112793","202011",30/11/2015 00:00:00,472.65,"39564","Gas Companies","REDACTED DATA","KENT COUNTY COUNCIL (GAS & ELECTRIC)","",,"204269191"
"London Borough of Redbridge","http://opendatacommunities.org/doc/london-borough-council/redbridge","9BNONBVO","Outside the BVACOP Objective Structure","9CNONBVO","Outside the BVACOP Objective Structure","REV","Revenue","R7602","Street Cleansing","04-SUPPLIES","Supplies And Services","04A","Equipment, furniture and materials","5510","Materials","60424413","202011",05/02/2020 00:00:00,472.5,"19000","Cleaning Contractors Equipment and Supplies","REDACTED DATA","BELL BRUSH","",,"229177840"
"London Borough of Redbridge","http://opendatacommunities.org/doc/london-borough-council/redbridge","6BADULTSOCIA","Adult Social Care","6COTHADSERV","Other Adult Services","REV","Revenue","R4447","Older People - Wanstead & Woodford","05-THIRD","Third Party Payments","05A","Independent units within the council","6502","Agency Homecare","91123424","202011",14/02/2020 00:00:00,566.93,"79980","Training Services","REDACTED DATA","K & T MCCORMACK LTD T/A BLUEBIRD CARE REDBRIDGE","6784151","http://opencorporates.com/companies/gb/6784151",""
"London Borough of Redbridge","http://opendatacommunities.org/doc/london-borough-council/redbridge","6BADULTSOCIA","Adult Social Care","6COTHADSERV","Other Adult Services","REV","Revenue","R4447","Older People - Wanstead & Woodford","05-THIRD","Third Party Payments","05A","Independent units within the council","6502","Agency Homecare","91123425","202011",14/02/2020 00:00:00,566.93,"79980","Training Services","REDACTED DATA","K & T MCCORMACK LTD T/A BLUEBIRD CARE REDBRIDGE","6784151","http://opencorporates.com/companies/gb/6784151",""
"London Borough of Redbridge","http://opendatacommunities.org/doc/london-borough-council/redbridge","6BADULTSOCIA","Adult Social Care","6CLONGT1864","Long-Term Support 18 - 64 Years","REV","Revenue","R4437","Learning Disabilities - Cranbrook & Loxford","05-THIRD","Third Party Payments","05H","Private contractors","6904","Day Centres","91124711","202011",11/02/2020 00:00:00,283.32,"17020","Charities and Voluntary Organisations","REDACTED DATA","ELHAP","",,""
"London Borough of Redbridge","http://opendatacommunities.org/doc/london-borough-council/redbridge","6BADULTSOCIA","Adult Social Care","6CLONGT1864","Long-Term Support 18 - 64 Years","REV","Revenue","R4437","Learning Disabilities - Cranbrook & Loxford","05-THIRD","Third Party Payments","05H","Private contractors","6904","Day Centres","91124711","202011",11/02/2020 00:00:00,283.32,"17020","Charities and Voluntary Organisations","REDACTED DATA","ELHAP","",,""
"London Borough of Redbridge","http://opendatacommunities.org/doc/london-borough-council/redbridge","6BADULTSOCIA","Adult Social Care","6CLONGT65","Long-Term Support 65+ Years","REV","Revenue","R4444","Older People - Fairlop","06-TRANSFER","Transfer Payments","06B","Social Services Clients","7053","Direct Payments","3578732","202010",31/01/2020 00:00:00,641.92,"90005","Home Care Services DP","REDACTED DATA","REDACTED DATA","",,""
"London Borough of Redbridge","http://opendatacommunities.org/doc/london-borough-council/redbridge","6BADULTSOCIA","Adult Social Care","6CLONGT65","Long-Term Support 65+ Years","REV","Revenue","R4444","Older People - Fairlop","09-INCOME","Income","09C","Customer and Client Receipts","8545","Direct Payments Income","3578732","202010",31/01/2020 00:00:00,-75.68,"90005","Home Care Services DP","REDACTED DATA","REDACTED DATA","",,""
"London Borough of Redbridge","http://opendatacommunities.org/doc/london-borough-council/redbridge","6BADULTSOCIA","Adult Social Care","6CLONGT1864","Long-Term Support 18 - 64 Years","REV","Revenue","R4441","Older People - Seven Kings","06-TRANSFER","Transfer Payments","06B","Social Services Clients","7053","Direct Payments","3578351","202010",31/01/2020 00:00:00,733.6,"90005","Home Care Services DP","REDACTED DATA","REDACTED DATA","",,""
"London Borough of Redbridge","http://opendatacommunities.org/doc/london-borough-council/redbridge","6BADULTSOCIA","Adult Social Care","6CLONGT1864","Long-Term Support 18 - 64 Years","REV","Revenue","R4441","Older People - Seven Kings","09-INCOME","Income","09C","Customer and Client Receipts","8545","Direct Payments Income","3578351","202010",31/01/2020 00:00:00,-167.8,"90005","Home Care Services DP","REDACTED DATA","REDACTED DATA","",,""
"London Borough of Redbridge","http://opendatacommunities.org/doc/london-borough-council/redbridge","6BADULTSOCIA","Adult Social Care","6CLONGT65","Long-Term Support 65+ Years","REV","Revenue","R4444","Older People - Fairlop","06-TRANSFER","Transfer Payments","06B","Social Services Clients","7053","Direct Payments","3578647","202010",31/01/2020 00:00:00,733.6,"90005","Home Care Services DP","REDACTED DATA","REDACTED DATA","",,""
"London Borough of Redbridge","http://opendatacommunities.org/doc/london-borough-council/redbridge","6BADULTSOCIA","Adult Social Care","6CLONGT65","Long-Term Support 65+ Years","REV","Revenue","R4444","Older People - Fairlop","09-INCOME","Income","09C","Customer and Client Receipts","8545","Direct Payments Income","3578647","202010",31/01/2020 00:00:00,-167.8,"90005","Home Care Services DP","REDACTED DATA","REDACTED DATA","",,""
"London Borough of Redbridge","http://opendatacommunities.org/doc/london-borough-council/redbridge","6BADULTSOCIA","Adult Social Care","6COTHADSERV","Other Adult Services","REV","Revenue","R4447","Older People - Wanstead & Woodford","05-THIRD","Third Party Payments","05A","Independent units within the council","6502","Agency Homecare","91122002","202011",17/02/2020 00:00:00,565.44,"53280","Nursing Agencies","REDACTED DATA","IMMACULATE HEALTHCARE SERVICES LIMITED","",,""
"London Borough of Redbridge","http://opendatacommunities.org/doc/london-borough-council/redbridge","6BADULTSOCIA","Adult Social Care","6COTHADSERV","Other Adult Services","REV","Revenue","R4447","Older People - Wanstead & Woodford","05-THIRD","Third Party Payments","05A","Independent units within the council","6502","Agency Homecare","91124528","202011",17/02/2020 00:00:00,564.74,"43419","Home Care Services","REDACTED DATA","J.C.MICHAEL GROUPS LTD","5571458","http://opencorporates.com/companies/gb/5571458","975674560"
"London Borough of Redbridge","http://opendatacommunities.org/doc/london-borough-council/redbridge","6BADULTSOCIA","Adult Social Care","6CLONGT1864","Long-Term Support 18 - 64 Years","REV","Revenue","R4445","Physical Disabilities - Fairlop","06-TRANSFER","Transfer Payments","06B","Social Services Clients","7053","Direct Payments","3578512","202010",31/01/2020 00:00:00,772.92,"90005","Home Care Services DP","REDACTED DATA","REDACTED DATA","",,""
"London Borough of Redbridge","http://opendatacommunities.org/doc/london-borough-council/redbridge","6BADULTSOCIA","Adult Social Care","6CLONGT1864","Long-Term Support 18 - 64 Years","REV","Revenue","R4445","Physical Disabilities - Fairlop","09-INCOME","Income","09C","Customer and Client Receipts","8545","Direct Payments Income","3578512","202010",31/01/2020 00:00:00,-208.24,"90005","Home Care Services DP","REDACTED DATA","REDACTED DATA","",,""
"London Borough of Redbridge","http://opendatacommunities.org/doc/london-borough-council/redbridge","1BOTHEROPI&E","Other Operating Income & Expenditure","1CTRADSURDEF","Trading Account Surpluses & Deficits","REV","Revenue","R9557","CLM Utilities","02-PREMISES","Premises","02B","Energy costs","4002","Gas","70112303","202011",08/08/2019 00:00:00,470.11,"39564","Gas Companies","REDACTED DATA","KENT COUNTY COUNCIL (GAS & ELECTRIC)","",,"204269191"
"London Borough of Redbridge","http://opendatacommunities.org/doc/london-borough-council/redbridge","6BADULTSOCIA","Adult Social Care","6COTHADSERV","Other Adult Services","REV","Revenue","R4447","Older People - Wanstead & Woodford","05-THIRD","Third Party Payments","05A","Independent units within the council","6502","Agency Homecare","91120363","202011",10/01/2020 00:00:00,563.64,"53280","Nursing Agencies","REDACTED DATA","IMMACULATE HEALTHCARE SERVICES LIMITED","",,""
"London Borough of Redbridge","http://opendatacommunities.org/doc/london-borough-council/redbridge","6BADULTSOCIA","Adult Social Care","6CLONGT1864","Long-Term Support 18 - 64 Years","REV","Revenue","R4441","Older People - Seven Kings","06-TRANSFER","Transfer Payments","06B","Social Services Clients","7053","Direct Payments","3578356","202010",31/01/2020 00:00:00,563.32,"90005","Home Care Services DP","REDACTED DATA","REDACTED DATA","",,""
"London Borough of Redbridge","http://opendatacommunities.org/doc/london-borough-council/redbridge","6BADULTSOCIA","Adult Social Care","6CLONGT65","Long-Term Support 65+ Years","REV","Revenue","R4442","Physical Disabilities - Seven Kings","06-TRANSFER","Transfer Payments","06B","Social Services Clients","7053","Direct Payments","3578273","202010",31/01/2020 00:00:00,563,"90005","Home Care Services DP","REDACTED DATA","REDACTED DATA","",,""
"London Borough of Redbridge","http://opendatacommunities.org/doc/london-borough-council/redbridge","5BGFHOUSING","General Fund Housing","5CHOMELESS","Homelessness","REV","Revenue","R5630","HAC Temporary Accomodation","05-THIRD","Third Party Payments","05H","Private contractors","6900","Nightly Let Plus Charges","3579508","202011",02/02/2020 00:00:00,1891,"31230","Employment and Recruitment Agencies","REDACTED DATA","ADAM HTT LIMITED T/A ADAM","7718565","http://opencorporates.com/companies/gb/7718565","198573349"
"London Borough of Redbridge","http://opendatacommunities.org/doc/london-borough-council/redbridge","5BGFHOUSING","General Fund Housing","5CHOMELESS","Homelessness","REV","Revenue","R5630","HAC Temporary Accomodation","05-THIRD","Third Party Payments","05H","Private contractors","6900","Nightly Let Plus Charges","3579508","202011",02/02/2020 00:00:00,1333,"31230","Employment and Recruitment Agencies","REDACTED DATA","ADAM HTT LIMITED T/A ADAM","7718565","http://opencorporates.com/companies/gb/7718565","198573349"
"London Borough of Redbridge","http://opendatacommunities.org/doc/london-borough-council/redbridge","5BGFHOUSING","General Fund Housing","5CHOMELESS","Homelessness","REV","Revenue","R5630","HAC Temporary Accomodation","05-THIRD","Third Party Payments","05H","Private contractors","6900","Nightly Let Plus Charges","3579508","202011",02/02/2020 00:00:00,1333,"31230","Employment and Recruitment Agencies","REDACTED DATA","ADAM HTT LIMITED T/A ADAM","7718565","http://opencorporates.com/companies/gb/7718565","198573349"
"London Borough of Redbridge","http://opendatacommunities.org/doc/london-borough-council/redbridge","5BGFHOUSING","General Fund Housing","5CHOMELESS","Homelessness","REV","Revenue","R5630","HAC Temporary Accomodation","05-THIRD","Third Party Payments","05H","Private contractors","6900","Nightly Let Plus Charges","3579508","202011",02/02/2020 00:00:00,1660.67,"31230","Employment and Recruitment Agencies","REDACTED DATA","ADAM HTT LIMITED T/A ADAM","7718565","http://opencorporates.com/companies/gb/7718565","198573349"
"London Borough of Redbridge","http://opendatacommunities.org/doc/london-borough-council/redbridge","5BGFHOUSING","General Fund Housing","5CHOMELESS","Homelessness","REV","Revenue","R5630","HAC Temporary Accomodation","05-THIRD","Third Party Payments","05H","Private contractors","6900","Nightly Let Plus Charges","3579508","202011",02/02/2020 00:00:00,1550,"31230","Employment and Recruitment Agencies","REDACTED DATA","ADAM HTT LIMITED T/A ADAM","7718565","http://opencorporates.com/companies/gb/7718565","198573349"
"London Borough of Redbridge","http://opendatacommunities.org/doc/london-borough-council/redbridge","5BGFHOUSING","General Fund Housing","5CHOMELESS","Homelessness","REV","Revenue","R5630","HAC Temporary Accomodation","05-THIRD","Third Party Payments","05H","Private contractors","6900","Nightly Let Plus Charges","3579508","202011",02/02/2020 00:00:00,1705,"31230","Employment and Recruitment Agencies","REDACTED DATA","ADAM HTT LIMITED T/A ADAM","7718565","http://opencorporates.com/companies/gb/7718565","198573349"
"London Borough of Redbridge","http://opendatacommunities.org/doc/london-borough-council/redbridge","5BGFHOUSING","General Fund Housing","5CHOMELESS","Homelessness","REV","Revenue","R5630","HAC Temporary Accomodation","05-THIRD","Third Party Payments","05H","Private contractors","6900","Nightly Let Plus Charges","3579508","202011",24/01/2020 00:00:00,899,"31230","Employment and Recruitment Agencies","REDACTED DATA","ADAM HTT LIMITED T/A ADAM","7718565","http://opencorporates.com/companies/gb/7718565","198573349"
"London Borough of Redbridge","http://opendatacommunities.org/doc/london-borough-council/redbridge","5BGFHOUSING","General Fund Housing","5CHOMELESS","Homelessness","REV","Revenue","R5630","HAC Temporary Accomodation","05-THIRD","Third Party Payments","05H","Private contractors","6900","Nightly Let Plus Charges","3579508","202011",02/02/2020 00:00:00,958.83,"31230","Employment and Recruitment Agencies","REDACTED DATA","ADAM HTT LIMITED T/A ADAM","7718565","http://opencorporates.com/companies/gb/7718565","198573349"
"London Borough of Redbridge","http://opendatacommunities.org/doc/london-borough-council/redbridge","5BGFHOUSING","General Fund Housing","5CHOMELESS","Homelessness","REV","Revenue","R5630","HAC Temporary Accomodation","05-THIRD","Third Party Payments","05H","Private contractors","6900","Nightly Let Plus Charges","3579508","202011",02/02/2020 00:00:00,930,"31230","Employment and Recruitment Agencies","REDACTED DATA","ADAM HTT LIMITED T/A ADAM","7718565","http://opencorporates.com/companies/gb/7718565","198573349"
"London Borough of Redbridge","http://opendatacommunities.org/doc/london-borough-council/redbridge","5BGFHOUSING","General Fund Housing","5CHOMELESS","Homelessness","REV","Revenue","R5630","HAC Temporary Accomodation","05-THIRD","Third Party Payments","05H","Private contractors","6900","Nightly Let Plus Charges","3579508","202011",02/02/2020 00:00:00,930,"31230","Employment and Recruitment Agencies","REDACTED DATA","ADAM HTT LIMITED T/A ADAM","7718565","http://opencorporates.com/companies/gb/7718565","198573349"
"London Borough of Redbridge","http://opendatacommunities.org/doc/london-borough-council/redbridge","5BGFHOUSING","General Fund Housing","5CHOMELESS","Homelessness","REV","Revenue","R5630","HAC Temporary Accomodation","05-THIRD","Third Party Payments","05H","Private contractors","6900","Nightly Let Plus Charges","3579508","202011",30/01/2020 00:00:00,-1333,"31230","Employment and Recruitment Agencies","REDACTED DATA","ADAM HTT LIMITED T/A ADAM","7718565","http://opencorporates.com/companies/gb/7718565","198573349"
"London Borough of Redbridge","http://opendatacommunities.org/doc/london-borough-council/redbridge","6BADULTSOCIA","Adult Social Care","6CLONGT65","Long-Term Support 65+ Years","REV","Revenue","R4444","Older People - Fairlop","05-THIRD","Third Party Payments","05A","Independent units within the council","6502","Agency Homecare","91124541","202011",12/02/2020 00:00:00,562.81,"43419","Home Care Services","REDACTED DATA","RELINE CARE LTD","7728473","http://opencorporates.com/companies/gb/7728473",""
"London Borough of Redbridge","http://opendatacommunities.org/doc/london-borough-council/redbridge","6BADULTSOCIA","Adult Social Care","6CSUPPSERMGT","Support Service & Management Costs","REV","Revenue","R4004","CC - Training General","01-EMPLOYEES","Employees","01B","Indirect employee expenses","2403","External Training","60423097","202010",19/01/2020 00:00:00,562.5,"79980","Training Services","REDACTED DATA","OT4INDEPENDENCE LTD","",,""
"London Borough of Redbridge","http://opendatacommunities.org/doc/london-borough-council/redbridge","4BMANGT&SUPP","Management & Support Services","4CHIGHRDROUT","Highways/Roads (Routine)","REV","Revenue","R7070","Reactive Maintenance","05-THIRD","Third Party Payments","05H","Private contractors","6915","Contractor Payments","3580543","202011",20/02/2020 00:00:00,467.61,"18632","Civil Engineers","REDACTED DATA","KENSON CONTRACTORS BENINGTON LTD","1314691","http://opencorporates.com/companies/gb/1314691","301629589"
"London Borough of Redbridge","http://opendatacommunities.org/doc/london-borough-council/redbridge","4BMANGT&SUPP","Management & Support Services","4CHIGHRDROUT","Highways/Roads (Routine)","REV","Revenue","R7070","Reactive Maintenance","05-THIRD","Third Party Payments","05H","Private contractors","6915","Contractor Payments","3579727","202011",13/02/2020 00:00:00,467.6,"18632","Civil Engineers","REDACTED DATA","KENSON CONTRACTORS BENINGTON LTD","1314691","http://opencorporates.com/companies/gb/1314691","301629589"
"London Borough of Redbridge","http://opendatacommunities.org/doc/london-borough-council/redbridge","5BGFHOUSING","General Fund Housing","5CHOMELESS","Homelessness","REV","Revenue","R5653","GF FTA Income Recovery","04-SUPPLIES","Supplies And Services","04H","Grants and subscriptions","5954","Professional Fees","60423312","202010",16/01/2020 00:00:00,467.26,"6130","Bailiffs","REDACTED DATA","REVENTUS LTD","4714602","http://opencorporates.com/companies/gb/4714602","836065524"
"London Borough of Redbridge","http://opendatacommunities.org/doc/london-borough-council/redbridge","6BADULTSOCIA","Adult Social Care","6CLONGT65","Long-Term Support 65+ Years","REV","Revenue","R4438","Older People - Cranbrook & Loxford","05-THIRD","Third Party Payments","05A","Independent units within the council","6502","Agency Homecare","91124388","202011",17/02/2020 00:00:00,560.64,"43419","Home Care Services","REDACTED DATA","MRA S SANSHU & MR S S SANDHU T/A DE VERE CARE","6573333","http://opencorporates.com/companies/gb/6573333",""
"London Borough of Redbridge","http://opendatacommunities.org/doc/london-borough-council/redbridge","3BNONSCHFUND","Non-School Funding","3CNONSCH","Non Schools","REV","Revenue","R3963","Early Years - 2 Year Olds - Statutory Place Funding","05-THIRD","Third Party Payments","05A","Independent units within the council","6517","Non-Maintained Schools","3580990","202011",18/02/2020 00:00:00,560.34,"59760","Playgroups, Nurseries and Creches","REDACTED DATA","LITTLE BEARS NURSERY SCHOOL LTD","5208881","http://opencorporates.com/companies/gb/5208881",""
"London Borough of Redbridge","http://opendatacommunities.org/doc/london-borough-council/redbridge","6BADULTSOCIA","Adult Social Care","6CLONGT1864","Long-Term Support 18 - 64 Years","REV","Revenue","R4441","Older People - Seven Kings","05-THIRD","Third Party Payments","05A","Independent units within the council","6502","Agency Homecare","91122086","202011",03/02/2020 00:00:00,560.04,"43419","Home Care Services","REDACTED DATA","HAVEN CARE LTD","6762521","http://opencorporates.com/companies/gb/6762521",""
"London Borough of Redbridge","http://opendatacommunities.org/doc/london-borough-council/redbridge","3BOPTIONHLDG","Optional Holding Accounts","3CADULT","Adult Education","REV","Revenue","R3483","RIAE   Exams","04-SUPPLIES","Supplies And Services","04H","Grants and subscriptions","5955","Fees","3578960","202011",31/01/2020 00:00:00,560,"17020","Charities and Voluntary Organisations","REDACTED DATA","GATEWAY QUALIFICATIONS","",,""
"London Borough of Redbridge","http://opendatacommunities.org/doc/london-borough-council/redbridge","6BADULTSOCIA","Adult Social Care","6CLONGT1864","Long-Term Support 18 - 64 Years","REV","Revenue","R4441","Older People - Seven Kings","05-THIRD","Third Party Payments","05A","Independent units within the council","6502","Agency Homecare","91120516","202011",24/01/2020 00:00:00,560,"43419","Home Care Services","REDACTED DATA","RHYTHMIC CARE UK LTD","8400115","http://opencorporates.com/companies/gb/8400115",""
"London Borough of Redbridge","http://opendatacommunities.org/doc/london-borough-council/redbridge","6BADULTSOCIA","Adult Social Care","6COLDINCMENT","Older People (65 or over) incl. Older Mentally Ill","REV","Revenue","R4331","Business HUB","04-SUPPLIES","Supplies And Services","04B","Catering","5600","Catering Contract Payments","60426040","202011",30/01/2020 00:00:00,555.45,"37370","Food Products - Mnfrs","REDACTED DATA","APETITO LTD","233851","http://opencorporates.com/companies/gb/233851","138176066"
"London Borough of Redbridge","http://opendatacommunities.org/doc/london-borough-council/redbridge","6BADULTSOCIA","Adult Social Care","6CLONGT65","Long-Term Support 65+ Years","REV","Revenue","R4439","Physical Disabilities - Cranbrook & Loxford","06-TRANSFER","Transfer Payments","06B","Social Services Clients","7053","Direct Payments","3578684","202010",31/01/2020 00:00:00,746.68,"90005","Home Care Services DP","REDACTED DATA","REDACTED DATA","",,""
"London Borough of Redbridge","http://opendatacommunities.org/doc/london-borough-council/redbridge","5BGFHOUSING","General Fund Housing","5CHOMELESS","Homelessness","REV","Revenue","R5630","HAC Temporary Accomodation","05-THIRD","Third Party Payments","05H","Private contractors","6900","Nightly Let Plus Charges","3579508","202011",02/02/2020 00:00:00,1705,"31230","Employment and Recruitment Agencies","REDACTED DATA","ADAM HTT LIMITED T/A ADAM","7718565","http://opencorporates.com/companies/gb/7718565","198573349"
"London Borough of Redbridge","http://opendatacommunities.org/doc/london-borough-council/redbridge","5BGFHOUSING","General Fund Housing","5CHOMELESS","Homelessness","REV","Revenue","R5630","HAC Temporary Accomodation","05-THIRD","Third Party Payments","05H","Private contractors","6900","Nightly Let Plus Charges","3579508","202011",02/02/2020 00:00:00,1395,"31230","Employment and Recruitment Agencies","REDACTED DATA","ADAM HTT LIMITED T/A ADAM","7718565","http://opencorporates.com/companies/gb/7718565","198573349"
"London Borough of Redbridge","http://opendatacommunities.org/doc/london-borough-council/redbridge","5BGFHOUSING","General Fund Housing","5CHOMELESS","Homelessness","REV","Revenue","R5630","HAC Temporary Accomodation","05-THIRD","Third Party Payments","05H","Private contractors","6900","Nightly Let Plus Charges","3579508","202011",02/02/2020 00:00:00,1705,"31230","Employment and Recruitment Agencies","REDACTED DATA","ADAM HTT LIMITED T/A ADAM","7718565","http://opencorporates.com/companies/gb/7718565","198573349"
"London Borough of Redbridge","http://opendatacommunities.org/doc/london-borough-council/redbridge","5BGFHOUSING","General Fund Housing","5CHOMELESS","Homelessness","REV","Revenue","R5630","HAC Temporary Accomodation","05-THIRD","Third Party Payments","05H","Private contractors","6900","Nightly Let Plus Charges","3579508","202011",02/02/2020 00:00:00,1550,"31230","Employment and Recruitment Agencies","REDACTED DATA","ADAM HTT LIMITED T/A ADAM","7718565","http://opencorporates.com/companies/gb/7718565","198573349"
"London Borough of Redbridge","http://opendatacommunities.org/doc/london-borough-council/redbridge","5BGFHOUSING","General Fund Housing","5CHOMELESS","Homelessness","REV","Revenue","R5630","HAC Temporary Accomodation","05-THIRD","Third Party Payments","05H","Private contractors","6900","Nightly Let Plus Charges","3579508","202011",02/02/2020 00:00:00,883.5,"31230","Employment and Recruitment Agencies","REDACTED DATA","ADAM HTT LIMITED T/A ADAM","7718565","http://opencorporates.com/companies/gb/7718565","198573349"
"London Borough of Redbridge","http://opendatacommunities.org/doc/london-borough-council/redbridge","5BGFHOUSING","General Fund Housing","5CHOMELESS","Homelessness","REV","Revenue","R5630","HAC Temporary Accomodation","05-THIRD","Third Party Payments","05H","Private contractors","6900","Nightly Let Plus Charges","3579508","202011",02/02/2020 00:00:00,930,"31230","Employment and Recruitment Agencies","REDACTED DATA","ADAM HTT LIMITED T/A ADAM","7718565","http://opencorporates.com/companies/gb/7718565","198573349"
"London Borough of Redbridge","http://opendatacommunities.org/doc/london-borough-council/redbridge","5BGFHOUSING","General Fund Housing","5CHOMELESS","Homelessness","REV","Revenue","R5630","HAC Temporary Accomodation","05-THIRD","Third Party Payments","05H","Private contractors","6900","Nightly Let Plus Charges","3579508","202011",02/02/2020 00:00:00,1240,"31230","Employment and Recruitment Agencies","REDACTED DATA","ADAM HTT LIMITED T/A ADAM","7718565","http://opencorporates.com/companies/gb/7718565","198573349"
"London Borough of Redbridge","http://opendatacommunities.org/doc/london-borough-council/redbridge","5BGFHOUSING","General Fund Housing","5CHOMELESS","Homelessness","REV","Revenue","R5630","HAC Temporary Accomodation","05-THIRD","Third Party Payments","05H","Private contractors","6900","Nightly Let Plus Charges","3579508","202011",02/02/2020 00:00:00,1612,"31230","Employment and Recruitment Agencies","REDACTED DATA","ADAM HTT LIMITED T/A ADAM","7718565","http://opencorporates.com/companies/gb/7718565","198573349"
"London Borough of Redbridge","http://opendatacommunities.org/doc/london-borough-council/redbridge","5BGFHOUSING","General Fund Housing","5CHOMELESS","Homelessness","REV","Revenue","R5630","HAC Temporary Accomodation","05-THIRD","Third Party Payments","05H","Private contractors","6900","Nightly Let Plus Charges","3579508","202011",02/02/2020 00:00:00,820.88,"31230","Employment and Recruitment Agencies","REDACTED DATA","ADAM HTT LIMITED T/A ADAM","7718565","http://opencorporates.com/companies/gb/7718565","198573349"
"London Borough of Redbridge","http://opendatacommunities.org/doc/london-borough-council/redbridge","5BGFHOUSING","General Fund Housing","5CHOMELESS","Homelessness","REV","Revenue","R5630","HAC Temporary Accomodation","05-THIRD","Third Party Payments","05H","Private contractors","6900","Nightly Let Plus Charges","3579508","202011",02/02/2020 00:00:00,1878.6,"31230","Employment and Recruitment Agencies","REDACTED DATA","ADAM HTT LIMITED T/A ADAM","7718565","http://opencorporates.com/companies/gb/7718565","198573349"
"London Borough of Redbridge","http://opendatacommunities.org/doc/london-borough-council/redbridge","5BGFHOUSING","General Fund Housing","5CHOMELESS","Homelessness","REV","Revenue","R5630","HAC Temporary Accomodation","05-THIRD","Third Party Payments","05H","Private contractors","6900","Nightly Let Plus Charges","3579508","202011",02/02/2020 00:00:00,1705,"31230","Employment and Recruitment Agencies","REDACTED DATA","ADAM HTT LIMITED T/A ADAM","7718565","http://opencorporates.com/companies/gb/7718565","198573349"
"London Borough of Redbridge","http://opendatacommunities.org/doc/london-borough-council/redbridge","6BADULTSOCIA","Adult Social Care","6CLONGT65","Long-Term Support 65+ Years","REV","Revenue","R4439","Physical Disabilities - Cranbrook & Loxford","09-INCOME","Income","09C","Customer and Client Receipts","8545","Direct Payments Income","3578684","202010",31/01/2020 00:00:00,-187.6,"90005","Home Care Services DP","REDACTED DATA","REDACTED DATA","",,""
"London Borough of Redbridge","http://opendatacommunities.org/doc/london-borough-council/redbridge","3BNONSCHFUND","Non-School Funding","3CNONSCH","Non Schools","REV","Revenue","R3962","Early Years - 3 and 4 Year Olds","05-THIRD","Third Party Payments","05A","Independent units within the council","6517","Non-Maintained Schools","3580941","202011",26/02/2020 00:00:00,558.36,"17600","Childminders","REDACTED DATA","SHAHIDAH PARVIN SHAHIDULLAH","9185270179","http://opencorporates.com/companies/gb/9185270179",""
"London Borough of Redbridge","http://opendatacommunities.org/doc/london-borough-council/redbridge","3BNONSCHFUND","Non-School Funding","3CNONSCH","Non Schools","REV","Revenue","R3962","Early Years - 3 and 4 Year Olds","05-THIRD","Third Party Payments","05A","Independent units within the council","6517","Non-Maintained Schools","3581064","202011",17/02/2020 00:00:00,558.36,"17600","Childminders","REDACTED DATA","ZARA LEAMAN","9012799863","http://opencorporates.com/companies/gb/9012799863",""
"London Borough of Redbridge","http://opendatacommunities.org/doc/london-borough-council/redbridge","1BOTHEROPI&E","Other Operating Income & Expenditure","1CTRADSURDEF","Trading Account Surpluses & Deficits","REV","Revenue","R9551","CLM Maintenance","02-PREMISES","Premises","02A","Repairs, alteration and maintenance of buildings","3026","Minor Maintenance","3577986","202010",23/01/2020 00:00:00,300,"30045","Electrical Engineers","REDACTED DATA","COUNTY ELECTRICAL SOLUTIONS LTD","6476990","http://opencorporates.com/companies/gb/6476990","924889474"
"London Borough of Redbridge","http://opendatacommunities.org/doc/london-borough-council/redbridge","1BOTHEROPI&E","Other Operating Income & Expenditure","1CTRADSURDEF","Trading Account Surpluses & Deficits","REV","Revenue","R9551","CLM Maintenance","02-PREMISES","Premises","02A","Repairs, alteration and maintenance of buildings","3026","Minor Maintenance","3577986","202010",23/01/2020 00:00:00,165,"30045","Electrical Engineers","REDACTED DATA","COUNTY ELECTRICAL SOLUTIONS LTD","6476990","http://opencorporates.com/companies/gb/6476990","924889474"
"London Borough of Redbridge","http://opendatacommunities.org/doc/london-borough-council/redbridge","6BADULTSOCIA","Adult Social Care","6CLONGT65","Long-Term Support 65+ Years","REV","Revenue","R4442","Physical Disabilities - Seven Kings","05-THIRD","Third Party Payments","05A","Independent units within the council","6502","Agency Homecare","91123342","202011",23/01/2020 00:00:00,557.48,"79980","Training Services","REDACTED DATA","CHOSEN CARE GROUP LTD","6942967","http://opencorporates.com/companies/gb/6942967",""
"London Borough of Redbridge","http://opendatacommunities.org/doc/london-borough-council/redbridge","6BADULTSOCIA","Adult Social Care","6CLONGT1864","Long-Term Support 18 - 64 Years","REV","Revenue","R4437","Learning Disabilities - Cranbrook & Loxford","06-TRANSFER","Transfer Payments","06B","Social Services Clients","7053","Direct Payments","3578270","202010",31/01/2020 00:00:00,628.8,"90005","Home Care Services DP","REDACTED DATA","REDACTED DATA","",,""
"London Borough of Redbridge","http://opendatacommunities.org/doc/london-borough-council/redbridge","6BADULTSOCIA","Adult Social Care","6CLONGT1864","Long-Term Support 18 - 64 Years","REV","Revenue","R4437","Learning Disabilities - Cranbrook & Loxford","09-INCOME","Income","09C","Customer and Client Receipts","8545","Direct Payments Income","3578270","202010",31/01/2020 00:00:00,-71.4,"90005","Home Care Services DP","REDACTED DATA","REDACTED DATA","",,""
"London Borough of Redbridge","http://opendatacommunities.org/doc/london-borough-council/redbridge","6BADULTSOCIA","Adult Social Care","6CLONGT65","Long-Term Support 65+ Years","REV","Revenue","R4438","Older People - Cranbrook & Loxford","05-THIRD","Third Party Payments","05A","Independent units within the council","6502","Agency Homecare","91123431","202011",17/02/2020 00:00:00,557.28,"79980","Training Services","REDACTED DATA","ASK CARE LTD","5656634","http://opencorporates.com/companies/gb/5656634",""
"London Borough of Redbridge","http://opendatacommunities.org/doc/london-borough-council/redbridge","9BNONBVO","Outside the BVACOP Objective Structure","9CNONBVO","Outside the BVACOP Objective Structure","BAL","Balance Sheet","B0059","DUMMY VAT ACCOUNT","99-NONBV","Capital, Balance Sheet and Control","50L","Debtors","9359","VAT only invoices","70112629","202011",08/10/2019 00:00:00,-555.23,"24230","Debt Collection Agencies","REDACTED DATA","EQUITA LIMITED","",,""
"London Borough of Redbridge","http://opendatacommunities.org/doc/london-borough-council/redbridge","9BNONBVO","Outside the BVACOP Objective Structure","9CNONBVO","Outside the BVACOP Objective Structure","BAL","Balance Sheet","B0059","DUMMY VAT ACCOUNT","99-NONBV","Capital, Balance Sheet and Control","50L","Debtors","9359","VAT only invoices","70112629","202011",08/10/2019 00:00:00,555.23,"24230","Debt Collection Agencies","REDACTED DATA","EQUITA LIMITED","",,""
"London Borough of Redbridge","http://opendatacommunities.org/doc/london-borough-council/redbridge","6BADULTSOCIA","Adult Social Care","6CLONGT1864","Long-Term Support 18 - 64 Years","REV","Revenue","R4445","Physical Disabilities - Fairlop","06-TRANSFER","Transfer Payments","06B","Social Services Clients","7053","Direct Payments","3578398","202010",31/01/2020 00:00:00,707.4,"90005","Home Care Services DP","REDACTED DATA","REDACTED DATA","",,""
"London Borough of Redbridge","http://opendatacommunities.org/doc/london-borough-council/redbridge","6BADULTSOCIA","Adult Social Care","6CLONGT1864","Long-Term Support 18 - 64 Years","REV","Revenue","R4445","Physical Disabilities - Fairlop","09-INCOME","Income","09C","Customer and Client Receipts","8545","Direct Payments Income","3578398","202010",31/01/2020 00:00:00,-152.24,"90005","Home Care Services DP","REDACTED DATA","REDACTED DATA","",,""
"London Borough of Redbridge","http://opendatacommunities.org/doc/london-borough-council/redbridge","6BADULTSOCIA","Adult Social Care","6CLONGT65","Long-Term Support 65+ Years","REV","Revenue","R4442","Physical Disabilities - Seven Kings","05-THIRD","Third Party Payments","05A","Independent units within the council","6502","Agency Homecare","91124482","202011",07/02/2020 00:00:00,554.76,"31230","Employment and Recruitment Agencies","REDACTED DATA","HOPE SUPER JOBS LTD","5081894","http://opencorporates.com/companies/gb/5081894","872555205"
"London Borough of Redbridge","http://opendatacommunities.org/doc/london-borough-council/redbridge","6BADULTSOCIA","Adult Social Care","6CLONGT65","Long-Term Support 65+ Years","REV","Revenue","R4444","Older People - Fairlop","05-THIRD","Third Party Payments","05A","Independent units within the council","6502","Agency Homecare","91123308","202011",06/02/2020 00:00:00,554.32,"43419","Home Care Services","REDACTED DATA","ASTHA LIMITED","4914301","http://opencorporates.com/companies/gb/4914301","882333810"
"London Borough of Redbridge","http://opendatacommunities.org/doc/london-borough-council/redbridge","6BADULTSOCIA","Adult Social Care","6CLONGT65","Long-Term Support 65+ Years","REV","Revenue","R4438","Older People - Cranbrook & Loxford","05-THIRD","Third Party Payments","05A","Independent units within the council","6502","Agency Homecare","91122276","202011",14/02/2020 00:00:00,554.28,"43419","Home Care Services","REDACTED DATA","HAVEN CARE LTD","6762521","http://opencorporates.com/companies/gb/6762521",""
"London Borough of Redbridge","http://opendatacommunities.org/doc/london-borough-council/redbridge","6BADULTSOCIA","Adult Social Care","6CLONGT1864","Long-Term Support 18 - 64 Years","REV","Revenue","R4441","Older People - Seven Kings","05-THIRD","Third Party Payments","05A","Independent units within the council","6502","Agency Homecare","91124431","202011",11/02/2020 00:00:00,553.71,"53350","Nursing Homes","REDACTED DATA","ELEANOR NURSING & SOCIALCARE LTD","4393038","http://opencorporates.com/companies/gb/4393038",""
"London Borough of Redbridge","http://opendatacommunities.org/doc/london-borough-council/redbridge","6BADULTSOCIA","Adult Social Care","6CLONGT1864","Long-Term Support 18 - 64 Years","REV","Revenue","R4441","Older People - Seven Kings","05-THIRD","Third Party Payments","05A","Independent units within the council","6502","Agency Homecare","91124418","202011",10/02/2020 00:00:00,553.71,"53350","Nursing Homes","REDACTED DATA","ELEANOR NURSING & SOCIALCARE LTD","4393038","http://opencorporates.com/companies/gb/4393038",""
"London Borough of Redbridge","http://opendatacommunities.org/doc/london-borough-council/redbridge","6BADULTSOCIA","Adult Social Care","6CLONGT1864","Long-Term Support 18 - 64 Years","REV","Revenue","R4441","Older People - Seven Kings","05-THIRD","Third Party Payments","05A","Independent units within the council","6502","Agency Homecare","91124391","202011",07/02/2020 00:00:00,553.71,"53350","Nursing Homes","REDACTED DATA","ELEANOR NURSING & SOCIALCARE LTD","4393038","http://opencorporates.com/companies/gb/4393038",""
"London Borough of Redbridge","http://opendatacommunities.org/doc/london-borough-council/redbridge","6BADULTSOCIA","Adult Social Care","6CLONGT1864","Long-Term Support 18 - 64 Years","REV","Revenue","R4441","Older People - Seven Kings","05-THIRD","Third Party Payments","05A","Independent units within the council","6502","Agency Homecare","91124405","202011",10/02/2020 00:00:00,553.71,"53350","Nursing Homes","REDACTED DATA","ELEANOR NURSING & SOCIALCARE LTD","4393038","http://opencorporates.com/companies/gb/4393038",""
"London Borough of Redbridge","http://opendatacommunities.org/doc/london-borough-council/redbridge","4BMANGT&SUPP","Management & Support Services","4CHIGHRDROUT","Highways/Roads (Routine)","REV","Revenue","R7070","Reactive Maintenance","05-THIRD","Third Party Payments","05H","Private contractors","6915","Contractor Payments","3580398","202011",20/02/2020 00:00:00,461.21,"18632","Civil Engineers","REDACTED DATA","KENSON CONTRACTORS BENINGTON LTD","1314691","http://opencorporates.com/companies/gb/1314691","301629589"
"London Borough of Redbridge","http://opendatacommunities.org/doc/london-borough-council/redbridge","3BLEACENTFND","LEA Centrally Held School Funds","3CNONSCH","Non Schools","REV","Revenue","R2231","Special School Top Up Fees","05-THIRD","Third Party Payments","05G","Other establishments","7432","OOB Pre 16 Top Up","60424521","202011",05/02/2020 00:00:00,553,"53385","Occupational Therapists","REDACTED DATA","QUALITY INDEPENDENCE LTD","9355670","http://opencorporates.com/companies/gb/9355670",""
"London Borough of Redbridge","http://opendatacommunities.org/doc/london-borough-council/redbridge","6BADULTSOCIA","Adult Social Care","6CLONGT65","Long-Term Support 65+ Years","REV","Revenue","R4438","Older People - Cranbrook & Loxford","05-THIRD","Third Party Payments","05A","Independent units within the council","6502","Agency Homecare","91122070","202011",03/02/2020 00:00:00,552.53,"43419","Home Care Services","REDACTED DATA","HAVEN CARE LTD","6762521","http://opencorporates.com/companies/gb/6762521",""
"London Borough of Redbridge","http://opendatacommunities.org/doc/london-borough-council/redbridge","6BSOCIALSERV","Social Services","6COTHC&FSERV","Other Children's & Families' Services","REV","Revenue","R2168","NRtPF","06-TRANSFER","Transfer Payments","06B","Social Services Clients","7055","Habitual Residents","60420651","202011",04/11/2019 00:00:00,460.05,"44100","Hotels","REDACTED DATA","THE COURTNEY HOTEL LONDON LTD","6874974","http://opencorporates.com/companies/gb/6874974","719040943"
"London Borough of Redbridge","http://opendatacommunities.org/doc/london-borough-council/redbridge","6BADULTSOCIA","Adult Social Care","6CLONGT65","Long-Term Support 65+ Years","REV","Revenue","R4444","Older People - Fairlop","05-THIRD","Third Party Payments","05A","Independent units within the council","6502","Agency Homecare","91120524","202011",24/01/2020 00:00:00,552,"43419","Home Care Services","REDACTED DATA","RHYTHMIC CARE UK LTD","8400115","http://opencorporates.com/companies/gb/8400115",""
"London Borough of Redbridge","http://opendatacommunities.org/doc/london-borough-council/redbridge","6BADULTSOCIA","Adult Social Care","6CLONGT65","Long-Term Support 65+ Years","REV","Revenue","R4438","Older People - Cranbrook & Loxford","05-THIRD","Third Party Payments","05A","Independent units within the council","6502","Agency Homecare","91122407","202011",16/02/2020 00:00:00,551.58,"43419","Home Care Services","REDACTED DATA","HAVEN CARE LTD","6762521","http://opencorporates.com/companies/gb/6762521",""
"London Borough of Redbridge","http://opendatacommunities.org/doc/london-borough-council/redbridge","6BADULTSOCIA","Adult Social Care","6COTHADSERV","Other Adult Services","REV","Revenue","R4447","Older People - Wanstead & Woodford","05-THIRD","Third Party Payments","05A","Independent units within the council","6502","Agency Homecare","91121066","202011",27/01/2020 00:00:00,551.21,"43419","Home Care Services","REDACTED DATA","LONDON CARE PLC","3117278","http://opencorporates.com/companies/gb/3117278",""
"London Borough of Redbridge","http://opendatacommunities.org/doc/london-borough-council/redbridge","6BADULTSOCIA","Adult Social Care","6CLONGT65","Long-Term Support 65+ Years","REV","Revenue","R4438","Older People - Cranbrook & Loxford","06-TRANSFER","Transfer Payments","06B","Social Services Clients","7053","Direct Payments","3578218","202010",31/01/2020 00:00:00,550.24,"90005","Home Care Services DP","REDACTED DATA","REDACTED DATA","",,""
"London Borough of Redbridge","http://opendatacommunities.org/doc/london-borough-council/redbridge","6BADULTSOCIA","Adult Social Care","6CLONGT65","Long-Term Support 65+ Years","REV","Revenue","R4439","Physical Disabilities - Cranbrook & Loxford","06-TRANSFER","Transfer Payments","06B","Social Services Clients","7053","Direct Payments","3578655","202010",31/01/2020 00:00:00,550.2,"90005","Home Care Services DP","REDACTED DATA","REDACTED DATA","",,""
"London Borough of Redbridge","http://opendatacommunities.org/doc/london-borough-council/redbridge","3BNONSCHFUND","Non-School Funding","3CNONSCH","Non Schools","REV","Revenue","R3962","Early Years - 3 and 4 Year Olds","05-THIRD","Third Party Payments","05A","Independent units within the council","6517","Non-Maintained Schools","3580820","202011",26/02/2020 00:00:00,549.9,"59760","Playgroups, Nurseries and Creches","REDACTED DATA","DAISYCHAIN PRE-SCHOOL","",,""
"London Borough of Redbridge","http://opendatacommunities.org/doc/london-borough-council/redbridge","9BNONBVO","Outside the BVACOP Objective Structure","9CNONBVO","Outside the BVACOP Objective Structure","REV","Revenue","R7702","Vehicle Workshop","04-SUPPLIES","Supplies And Services","04A","Equipment, furniture and materials","5510","Materials","673536","202011",15/01/2020 00:00:00,457.61,"47905","Lifting Equipment","REDACTED DATA","ALFA TAIL LIFT SERVICES","4268864","http://opencorporates.com/companies/gb/4268864","720098358"
"London Borough of Redbridge","http://opendatacommunities.org/doc/london-borough-council/redbridge","1BOTHEROPI&E","Other Operating Income & Expenditure","1CTRADSURDEF","Trading Account Surpluses & Deficits","REV","Revenue","R9576","Broadway Chambers Service Charge Account","02-PREMISES","Premises","02B","Energy costs","4000","Electricity","80036418","202011",12/02/2020 00:00:00,521.68,"30586","Electricity Companies","REDACTED DATA","SCOTTISH & SOUTHERN ENERGY (SOUTHERN ELECTRIC & SWALEC)","2716495","http://opencorporates.com/companies/gb/2716495","553769603"
"London Borough of Redbridge","http://opendatacommunities.org/doc/london-borough-council/redbridge","6BADULTSOCIA","Adult Social Care","6CLONGT1864","Long-Term Support 18 - 64 Years","REV","Revenue","R4441","Older People - Seven Kings","05-THIRD","Third Party Payments","05A","Independent units within the council","6502","Agency Homecare","91122031","202011",03/02/2020 00:00:00,547.09,"43419","Home Care Services","REDACTED DATA","HAVEN CARE LTD","6762521","http://opencorporates.com/companies/gb/6762521",""
"London Borough of Redbridge","http://opendatacommunities.org/doc/london-borough-council/redbridge","6BADULTSOCIA","Adult Social Care","6CLONGT1864","Long-Term Support 18 - 64 Years","REV","Revenue","R4437","Learning Disabilities - Cranbrook & Loxford","05-THIRD","Third Party Payments","05H","Private contractors","6904","Day Centres","91124799","202011",10/02/2020 00:00:00,273.48,"17020","Charities and Voluntary Organisations","REDACTED DATA","UNITING FRIENDS LTD","6495763","http://opencorporates.com/companies/gb/6495763",""
"London Borough of Redbridge","http://opendatacommunities.org/doc/london-borough-council/redbridge","6BADULTSOCIA","Adult Social Care","6CLONGT1864","Long-Term Support 18 - 64 Years","REV","Revenue","R4437","Learning Disabilities - Cranbrook & Loxford","05-THIRD","Third Party Payments","05H","Private contractors","6904","Day Centres","91124799","202011",10/02/2020 00:00:00,273.48,"17020","Charities and Voluntary Organisations","REDACTED DATA","UNITING FRIENDS LTD","6495763","http://opencorporates.com/companies/gb/6495763",""
"London Borough of Redbridge","http://opendatacommunities.org/doc/london-borough-council/redbridge","6BADULTSOCIA","Adult Social Care","6CLONGT1864","Long-Term Support 18 - 64 Years","REV","Revenue","R4437","Learning Disabilities - Cranbrook & Loxford","05-THIRD","Third Party Payments","05H","Private contractors","6904","Day Centres","91124826","202011",17/02/2020 00:00:00,273.48,"17020","Charities and Voluntary Organisations","REDACTED DATA","UNITING FRIENDS LTD","6495763","http://opencorporates.com/companies/gb/6495763",""
"London Borough of Redbridge","http://opendatacommunities.org/doc/london-borough-council/redbridge","6BADULTSOCIA","Adult Social Care","6CLONGT1864","Long-Term Support 18 - 64 Years","REV","Revenue","R4437","Learning Disabilities - Cranbrook & Loxford","05-THIRD","Third Party Payments","05H","Private contractors","6904","Day Centres","91124826","202011",17/02/2020 00:00:00,273.48,"17020","Charities and Voluntary Organisations","REDACTED DATA","UNITING FRIENDS LTD","6495763","http://opencorporates.com/companies/gb/6495763",""
"London Borough of Redbridge","http://opendatacommunities.org/doc/london-borough-council/redbridge","6BADULTSOCIA","Adult Social Care","6CLONGT1864","Long-Term Support 18 - 64 Years","REV","Revenue","R4437","Learning Disabilities - Cranbrook & Loxford","05-THIRD","Third Party Payments","05H","Private contractors","6904","Day Centres","91121129","202011",03/02/2020 00:00:00,273.48,"17020","Charities and Voluntary Organisations","REDACTED DATA","UNITING FRIENDS LTD","6495763","http://opencorporates.com/companies/gb/6495763",""
"London Borough of Redbridge","http://opendatacommunities.org/doc/london-borough-council/redbridge","6BADULTSOCIA","Adult Social Care","6CLONGT1864","Long-Term Support 18 - 64 Years","REV","Revenue","R4437","Learning Disabilities - Cranbrook & Loxford","05-THIRD","Third Party Payments","05H","Private contractors","6904","Day Centres","91121129","202011",03/02/2020 00:00:00,273.48,"17020","Charities and Voluntary Organisations","REDACTED DATA","UNITING FRIENDS LTD","6495763","http://opencorporates.com/companies/gb/6495763",""
"London Borough of Redbridge","http://opendatacommunities.org/doc/london-borough-council/redbridge","1BOTHEROPI&E","Other Operating Income & Expenditure","1CTRADSURDEF","Trading Account Surpluses & Deficits","REV","Revenue","R9557","CLM Utilities","02-PREMISES","Premises","02B","Energy costs","4000","Electricity","70112334","202011",16/02/2019 00:00:00,455.56,"39564","Gas Companies","REDACTED DATA","KENT COUNTY COUNCIL (GAS & ELECTRIC)","",,"204269191"
"London Borough of Redbridge","http://opendatacommunities.org/doc/london-borough-council/redbridge","6BADULTSOCIA","Adult Social Care","6CLONGT65","Long-Term Support 65+ Years","REV","Revenue","R4438","Older People - Cranbrook & Loxford","05-THIRD","Third Party Payments","05A","Independent units within the council","6502","Agency Homecare","91122129","202011",03/02/2020 00:00:00,544.38,"43419","Home Care Services","REDACTED DATA","HAVEN CARE LTD","6762521","http://opencorporates.com/companies/gb/6762521",""
"London Borough of Redbridge","http://opendatacommunities.org/doc/london-borough-council/redbridge","6BADULTSOCIA","Adult Social Care","6CLONGT1864","Long-Term Support 18 - 64 Years","REV","Revenue","R4441","Older People - Seven Kings","05-THIRD","Third Party Payments","05A","Independent units within the council","6502","Agency Homecare","91122154","202011",13/02/2020 00:00:00,544.11,"43419","Home Care Services","REDACTED DATA","HAVEN CARE LTD","6762521","http://opencorporates.com/companies/gb/6762521",""
"London Borough of Redbridge","http://opendatacommunities.org/doc/london-borough-council/redbridge","6BADULTSOCIA","Adult Social Care","6CLONGT1864","Long-Term Support 18 - 64 Years","REV","Revenue","R4437","Learning Disabilities - Cranbrook & Loxford","05-THIRD","Third Party Payments","05H","Private contractors","6904","Day Centres","91124613","202011",14/02/2020 00:00:00,190,"17020","Charities and Voluntary Organisations","REDACTED DATA","VIBRANCE","7094318","http://opencorporates.com/companies/gb/7094318",""
"London Borough of Redbridge","http://opendatacommunities.org/doc/london-borough-council/redbridge","6BADULTSOCIA","Adult Social Care","6CLONGT1864","Long-Term Support 18 - 64 Years","REV","Revenue","R4437","Learning Disabilities - Cranbrook & Loxford","05-THIRD","Third Party Payments","05H","Private contractors","6904","Day Centres","91124613","202011",14/02/2020 00:00:00,164,"17020","Charities and Voluntary Organisations","REDACTED DATA","VIBRANCE","7094318","http://opencorporates.com/companies/gb/7094318",""
"London Borough of Redbridge","http://opendatacommunities.org/doc/london-borough-council/redbridge","6BADULTSOCIA","Adult Social Care","6CLONGT1864","Long-Term Support 18 - 64 Years","REV","Revenue","R4437","Learning Disabilities - Cranbrook & Loxford","05-THIRD","Third Party Payments","05H","Private contractors","6904","Day Centres","91124613","202011",14/02/2020 00:00:00,190,"17020","Charities and Voluntary Organisations","REDACTED DATA","VIBRANCE","7094318","http://opencorporates.com/companies/gb/7094318",""
"London Borough of Redbridge","http://opendatacommunities.org/doc/london-borough-council/redbridge","6BSOCIALSERV","Social Services","6CCHILLOOKED","Children Looked After","REV","Revenue","R2117","SEN and CD Care and Support Packages Social Care","06-TRANSFER","Transfer Payments","06B","Social Services Clients","7050","Agency Homecare","60424830","202011",05/02/2020 00:00:00,544,"31230","Employment and Recruitment Agencies","REDACTED DATA","SHARED CARE SERVICES LTD","4704680","http://opencorporates.com/companies/gb/4704680",""
"London Borough of Redbridge","http://opendatacommunities.org/doc/london-borough-council/redbridge","3BNONSCHFUND","Non-School Funding","3CNONSCH","Non Schools","REV","Revenue","R3963","Early Years - 2 Year Olds - Statutory Place Funding","05-THIRD","Third Party Payments","05A","Independent units within the council","6517","Non-Maintained Schools","3581078","202011",18/02/2020 00:00:00,543.36,"59760","Playgroups, Nurseries and Creches","REDACTED DATA","SELECT ENTERPRISES(S/EAST) LTD - KIDS INC NURSERIES (CLARENCE AVE)","2988507","http://opencorporates.com/companies/gb/2988507",""
"London Borough of Redbridge","http://opendatacommunities.org/doc/london-borough-council/redbridge","6BADULTSOCIA","Adult Social Care","6COTHADSERV","Other Adult Services","REV","Revenue","R4447","Older People - Wanstead & Woodford","05-THIRD","Third Party Payments","05A","Independent units within the council","6502","Agency Homecare","91120496","202011",28/01/2020 00:00:00,542.92,"43419","Home Care Services","REDACTED DATA","ICARE RESOURCE LIMITED","9045427","http://opencorporates.com/companies/gb/9045427",""
"London Borough of Redbridge","http://opendatacommunities.org/doc/london-borough-council/redbridge","6BADULTSOCIA","Adult Social Care","6COTHADSERV","Other Adult Services","REV","Revenue","R4447","Older People - Wanstead & Woodford","05-THIRD","Third Party Payments","05A","Independent units within the council","6502","Agency Homecare","91123406","202011",30/01/2020 00:00:00,542.92,"43419","Home Care Services","REDACTED DATA","ICARE RESOURCE LIMITED","9045427","http://opencorporates.com/companies/gb/9045427",""
"London Borough of Redbridge","http://opendatacommunities.org/doc/london-borough-council/redbridge","6BADULTSOCIA","Adult Social Care","6COTHADSERV","Other Adult Services","REV","Revenue","R4447","Older People - Wanstead & Woodford","05-THIRD","Third Party Payments","05A","Independent units within the council","6502","Agency Homecare","91123415","202011",10/02/2020 00:00:00,542.92,"43419","Home Care Services","REDACTED DATA","ICARE RESOURCE LIMITED","9045427","http://opencorporates.com/companies/gb/9045427",""
"London Borough of Redbridge","http://opendatacommunities.org/doc/london-borough-council/redbridge","6BADULTSOCIA","Adult Social Care","6CLONGT1864","Long-Term Support 18 - 64 Years","REV","Revenue","R4445","Physical Disabilities - Fairlop","06-TRANSFER","Transfer Payments","06B","Social Services Clients","7053","Direct Payments","3578692","202010",31/01/2020 00:00:00,602.6,"90005","Home Care Services DP","REDACTED DATA","REDACTED DATA","",,""
"London Borough of Redbridge","http://opendatacommunities.org/doc/london-borough-council/redbridge","6BADULTSOCIA","Adult Social Care","6CLONGT1864","Long-Term Support 18 - 64 Years","REV","Revenue","R4445","Physical Disabilities - Fairlop","06-TRANSFER","Transfer Payments","06B","Social Services Clients","7053","Direct Payments","3578800","202010",31/01/2020 00:00:00,917,"90005","Home Care Services DP","REDACTED DATA","REDACTED DATA","",,""
"London Borough of Redbridge","http://opendatacommunities.org/doc/london-borough-council/redbridge","6BADULTSOCIA","Adult Social Care","6CLONGT1864","Long-Term Support 18 - 64 Years","REV","Revenue","R4445","Physical Disabilities - Fairlop","09-INCOME","Income","09C","Customer and Client Receipts","8545","Direct Payments Income","3578800","202010",31/01/2020 00:00:00,-374.28,"90005","Home Care Services DP","REDACTED DATA","REDACTED DATA","",,""
"London Borough of Redbridge","http://opendatacommunities.org/doc/london-borough-council/redbridge","6BADULTSOCIA","Adult Social Care","6CLONGT1864","Long-Term Support 18 - 64 Years","REV","Revenue","R4445","Physical Disabilities - Fairlop","09-INCOME","Income","09C","Customer and Client Receipts","8545","Direct Payments Income","3578692","202010",31/01/2020 00:00:00,-59.88,"90005","Home Care Services DP","REDACTED DATA","REDACTED DATA","",,""
"London Borough of Redbridge","http://opendatacommunities.org/doc/london-borough-council/redbridge","6BADULTSOCIA","Adult Social Care","6CLONGT1864","Long-Term Support 18 - 64 Years","REV","Revenue","R4437","Learning Disabilities - Cranbrook & Loxford","06-TRANSFER","Transfer Payments","06B","Social Services Clients","7053","Direct Payments","3578209","202010",31/01/2020 00:00:00,705.4,"90005","Home Care Services DP","REDACTED DATA","REDACTED DATA","",,""
"London Borough of Redbridge","http://opendatacommunities.org/doc/london-borough-council/redbridge","6BADULTSOCIA","Adult Social Care","6CLONGT1864","Long-Term Support 18 - 64 Years","REV","Revenue","R4437","Learning Disabilities - Cranbrook & Loxford","09-INCOME","Income","09C","Customer and Client Receipts","8545","Direct Payments Income","3578209","202010",31/01/2020 00:00:00,-162.8,"90005","Home Care Services DP","REDACTED DATA","REDACTED DATA","",,""
"London Borough of Redbridge","http://opendatacommunities.org/doc/london-borough-council/redbridge","3BNONSCHFUND","Non-School Funding","3CNONSCH","Non Schools","REV","Revenue","R3963","Early Years - 2 Year Olds - Statutory Place Funding","05-THIRD","Third Party Payments","05A","Independent units within the council","6517","Non-Maintained Schools","3581002","202011",18/02/2020 00:00:00,542.45,"59760","Playgroups, Nurseries and Creches","REDACTED DATA","INCEY WINCEYS DAY NURSERY(HANNAH J INCE)","6964545","http://opencorporates.com/companies/gb/6964545",""
"London Borough of Redbridge","http://opendatacommunities.org/doc/london-borough-council/redbridge","6BSOCIALSERV","Social Services","6CCHILLOOKED","Children Looked After","REV","Revenue","R2117","SEN and CD Care and Support Packages Social Care","06-TRANSFER","Transfer Payments","06B","Social Services Clients","7050","Agency Homecare","60424831","202011",05/02/2020 00:00:00,542,"31230","Employment and Recruitment Agencies","REDACTED DATA","SHARED CARE SERVICES LTD","4704680","http://opencorporates.com/companies/gb/4704680",""
"London Borough of Redbridge","http://opendatacommunities.org/doc/london-borough-council/redbridge","9BNONBVO","Outside the BVACOP Objective Structure","9CNONBVO","Outside the BVACOP Objective Structure","REV","Revenue","R5211","Orchard and Manford Office Costs","02-PREMISES","Premises","02F","Fixtures and fittings","4420","Security","80036129","202011",30/12/2019 00:00:00,451.64,"69240","Security Services","REDACTED DATA","KINGDOM SECURITY LTD","2795197","http://opencorporates.com/companies/gb/2795197","582329526"
"London Borough of Redbridge","http://opendatacommunities.org/doc/london-borough-council/redbridge","9BNONBVO","Outside the BVACOP Objective Structure","9CNONBVO","Outside the BVACOP Objective Structure","REV","Revenue","R5211","Orchard and Manford Office Costs","02-PREMISES","Premises","02F","Fixtures and fittings","4420","Security","80036226","202011",27/01/2020 00:00:00,451.64,"69240","Security Services","REDACTED DATA","KINGDOM SECURITY LTD","2795197","http://opencorporates.com/companies/gb/2795197","582329526"
"London Borough of Redbridge","http://opendatacommunities.org/doc/london-borough-council/redbridge","9BNONBVO","Outside the BVACOP Objective Structure","9CNONBVO","Outside the BVACOP Objective Structure","REV","Revenue","R5211","Orchard and Manford Office Costs","02-PREMISES","Premises","02F","Fixtures and fittings","4420","Security","80036397","202011",10/02/2020 00:00:00,451.64,"69240","Security Services","REDACTED DATA","KINGDOM SECURITY LTD","2795197","http://opencorporates.com/companies/gb/2795197","582329526"
"London Borough of Redbridge","http://opendatacommunities.org/doc/london-borough-council/redbridge","9BNONBVO","Outside the BVACOP Objective Structure","9CNONBVO","Outside the BVACOP Objective Structure","BAL","Balance Sheet","B0059","DUMMY VAT ACCOUNT","99-NONBV","Capital, Balance Sheet and Control","50L","Debtors","9359","VAT only invoices","70112538","202011",31/10/2019 00:00:00,541.8,"6130","Bailiffs","REDACTED DATA","REVENTUS LTD","4714602","http://opencorporates.com/companies/gb/4714602","836065524"
"London Borough of Redbridge","http://opendatacommunities.org/doc/london-borough-council/redbridge","9BNONBVO","Outside the BVACOP Objective Structure","9CNONBVO","Outside the BVACOP Objective Structure","BAL","Balance Sheet","B0059","DUMMY VAT ACCOUNT","99-NONBV","Capital, Balance Sheet and Control","50L","Debtors","9359","VAT only invoices","70112538","202011",31/10/2019 00:00:00,-541.8,"6130","Bailiffs","REDACTED DATA","REVENTUS LTD","4714602","http://opencorporates.com/companies/gb/4714602","836065524"
"London Borough of Redbridge","http://opendatacommunities.org/doc/london-borough-council/redbridge","6BADULTSOCIA","Adult Social Care","6CADMENHLTH","Adults Under 65 with Mental Health Needs","REV","Revenue","R4463","Mental Health Capacity Act and Safeguarding Adults","04-SUPPLIES","Supplies And Services","04H","Grants and subscriptions","5954","Professional Fees","60425944","202011",28/01/2020 00:00:00,541.4,"5170","Assessors","REDACTED DATA","NICOLA J WEAVER LTD","12069254","http://opencorporates.com/companies/gb/12069254",""
"London Borough of Redbridge","http://opendatacommunities.org/doc/london-borough-council/redbridge","6BSOCIALSERV","Social Services","6CCHILLOOKED","Children Looked After","REV","Revenue","R2117","SEN and CD Care and Support Packages Social Care","06-TRANSFER","Transfer Payments","06B","Social Services Clients","7050","Agency Homecare","60424167","202011",31/01/2020 00:00:00,540.6,"31230","Employment and Recruitment Agencies","REDACTED DATA","HOPE SUPER JOBS LTD","5081894","http://opencorporates.com/companies/gb/5081894","872555205"
"London Borough of Redbridge","http://opendatacommunities.org/doc/london-borough-council/redbridge","6BADULTSOCIA","Adult Social Care","6CLONGT65","Long-Term Support 65+ Years","REV","Revenue","R4439","Physical Disabilities - Cranbrook & Loxford","06-TRANSFER","Transfer Payments","06B","Social Services Clients","7053","Direct Payments","3578221","202010",31/01/2020 00:00:00,550.2,"90005","Home Care Services DP","REDACTED DATA","REDACTED DATA","",,""
"London Borough of Redbridge","http://opendatacommunities.org/doc/london-borough-council/redbridge","6BADULTSOCIA","Adult Social Care","6CLONGT65","Long-Term Support 65+ Years","REV","Revenue","R4439","Physical Disabilities - Cranbrook & Loxford","09-INCOME","Income","09C","Customer and Client Receipts","8545","Direct Payments Income","3578221","202010",31/01/2020 00:00:00,-9.72,"90005","Home Care Services DP","REDACTED DATA","REDACTED DATA","",,""
"London Borough of Redbridge","http://opendatacommunities.org/doc/london-borough-council/redbridge","6BADULTSOCIA","Adult Social Care","6CLONGT65","Long-Term Support 65+ Years","REV","Revenue","R4438","Older People - Cranbrook & Loxford","05-THIRD","Third Party Payments","05A","Independent units within the council","6502","Agency Homecare","91122337","202011",14/02/2020 00:00:00,540.17,"43419","Home Care Services","REDACTED DATA","HAVEN CARE LTD","6762521","http://opencorporates.com/companies/gb/6762521",""
"London Borough of Redbridge","http://opendatacommunities.org/doc/london-borough-council/redbridge","1BOTHEROPI&E","Other Operating Income & Expenditure","1CTRADSURDEF","Trading Account Surpluses & Deficits","REV","Revenue","R9462","HR Employee Experience","04-SUPPLIES","Supplies And Services","04H","Grants and subscriptions","5954","Professional Fees","60425775","202011",28/01/2020 00:00:00,450,"11584","Oocupational Health","REDACTED DATA","MEDIGOLD HEALTH CONSULTANCY LTD","3507491","http://opencorporates.com/companies/gb/3507491","705029661"
"London Borough of Redbridge","http://opendatacommunities.org/doc/london-borough-council/redbridge","1BOTHEROPI&E","Other Operating Income & Expenditure","1CTRADSURDEF","Trading Account Surpluses & Deficits","REV","Revenue","R9551","CLM Maintenance","02-PREMISES","Premises","02A","Repairs, alteration and maintenance of buildings","3026","Minor Maintenance","3580154","202011",14/01/2020 00:00:00,450,"84085","Water Treatment Equipment and Service","REDACTED DATA","P H WATER TECHNOLOGIES LTD","5042025","http://opencorporates.com/companies/gb/5042025","834219240"
"London Borough of Redbridge","http://opendatacommunities.org/doc/london-borough-council/redbridge","1BOTHEROPI&E","Other Operating Income & Expenditure","1CTRADSURDEF","Trading Account Surpluses & Deficits","REV","Revenue","R9551","CLM Maintenance","02-PREMISES","Premises","02A","Repairs, alteration and maintenance of buildings","3026","Minor Maintenance","3580154","202011",14/01/2020 00:00:00,0,"84085","Water Treatment Equipment and Service","REDACTED DATA","P H WATER TECHNOLOGIES LTD","5042025","http://opencorporates.com/companies/gb/5042025","834219240"
"London Borough of Redbridge","http://opendatacommunities.org/doc/london-borough-council/redbridge","2BECODEV","Economic Development","","","REV","Revenue","R9870","School planned & reactive works","02-PREMISES","Premises","02A","Repairs, alteration and maintenance of buildings","3037","Service Contracts","3581320","202011",31/12/2019 00:00:00,0,"84085","Water Treatment Equipment and Service","REDACTED DATA","P H WATER TECHNOLOGIES LTD","5042025","http://opencorporates.com/companies/gb/5042025","834219240"
"London Borough of Redbridge","http://opendatacommunities.org/doc/london-borough-council/redbridge","2BECODEV","Economic Development","","","REV","Revenue","R9870","School planned & reactive works","02-PREMISES","Premises","02A","Repairs, alteration and maintenance of buildings","3037","Service Contracts","3581320","202011",31/12/2019 00:00:00,450,"84085","Water Treatment Equipment and Service","REDACTED DATA","P H WATER TECHNOLOGIES LTD","5042025","http://opencorporates.com/companies/gb/5042025","834219240"
"London Borough of Redbridge","http://opendatacommunities.org/doc/london-borough-council/redbridge","6BADULTSOCIA","Adult Social Care","6COLDINCMENT","Older People (65 or over) incl. Older Mentally Ill","REV","Revenue","R4329","Elderberries","04-SUPPLIES","Supplies And Services","04K","Miscellaneous expenses","6263","Supportive Activities","60424780","202011",07/02/2020 00:00:00,540,"52437","Music Teachers","REDACTED DATA","GLENN RICHARD BASSETT T/AS GRB TRAINING","5918970364","http://opencorporates.com/companies/gb/5918970364",""
"London Borough of Redbridge","http://opendatacommunities.org/doc/london-borough-council/redbridge","6BSOCIALSERV","Social Services","6CCHILLOOKED","Children Looked After","REV","Revenue","R2117","SEN and CD Care and Support Packages Social Care","06-TRANSFER","Transfer Payments","06B","Social Services Clients","7053","Direct Payments","70112475","202011",23/01/2020 00:00:00,450,"56800","Payroll Services","REDACTED DATA","DAVID HOWARD LTD","3345093","http://opencorporates.com/companies/gb/3345093","788554956"
"London Borough of Redbridge","http://opendatacommunities.org/doc/london-borough-council/redbridge","3BLEACENTFND","LEA Centrally Held School Funds","3CNONSCH","Non Schools","REV","Revenue","R2234","Colleges and ISP Top up fees","05-THIRD","Third Party Payments","05G","Other establishments","7433","OOB Post 16 Top Up","60423985","202011",30/01/2020 00:00:00,539.99,"20342","Colleges - Higher Education","REDACTED DATA","CAPEL MANOR COLLEGE","2795781","http://opencorporates.com/companies/gb/2795781","740485239"
"London Borough of Redbridge","http://opendatacommunities.org/doc/london-borough-council/redbridge","6BADULTSOCIA","Adult Social Care","6CLONGT1864","Long-Term Support 18 - 64 Years","REV","Revenue","R4441","Older People - Seven Kings","05-THIRD","Third Party Payments","05A","Independent units within the council","6502","Agency Homecare","91124453","202011",05/02/2020 00:00:00,539.56,"31230","Employment and Recruitment Agencies","REDACTED DATA","HOPE SUPER JOBS LTD","5081894","http://opencorporates.com/companies/gb/5081894","872555205"
"London Borough of Redbridge","http://opendatacommunities.org/doc/london-borough-council/redbridge","6BADULTSOCIA","Adult Social Care","6CLONGT1864","Long-Term Support 18 - 64 Years","REV","Revenue","R4441","Older People - Seven Kings","05-THIRD","Third Party Payments","05A","Independent units within the council","6502","Agency Homecare","91124476","202011",07/02/2020 00:00:00,539.55,"31230","Employment and Recruitment Agencies","REDACTED DATA","HOPE SUPER JOBS LTD","5081894","http://opencorporates.com/companies/gb/5081894","872555205"
"London Borough of Redbridge","http://opendatacommunities.org/doc/london-borough-council/redbridge","6BADULTSOCIA","Adult Social Care","6CLONGT1864","Long-Term Support 18 - 64 Years","REV","Revenue","R4437","Learning Disabilities - Cranbrook & Loxford","06-TRANSFER","Transfer Payments","06B","Social Services Clients","7066","Supported Living","91125059","202011",04/02/2020 00:00:00,539.22,"17020","Charities and Voluntary Organisations","REDACTED DATA","THREE C'S SUPPORT","2768427","http://opencorporates.com/companies/gb/2768427",""
"London Borough of Redbridge","http://opendatacommunities.org/doc/london-borough-council/redbridge","6BADULTSOCIA","Adult Social Care","6CLONGT1864","Long-Term Support 18 - 64 Years","REV","Revenue","R4437","Learning Disabilities - Cranbrook & Loxford","06-TRANSFER","Transfer Payments","06B","Social Services Clients","7066","Supported Living","91125057","202011",04/02/2020 00:00:00,539.22,"17020","Charities and Voluntary Organisations","REDACTED DATA","THREE C'S SUPPORT","2768427","http://opencorporates.com/companies/gb/2768427",""
"London Borough of Redbridge","http://opendatacommunities.org/doc/london-borough-council/redbridge","9BNONBVO","Outside the BVACOP Objective Structure","9CNONBVO","Outside the BVACOP Objective Structure","BAL","Balance Sheet","B0059","DUMMY VAT ACCOUNT","99-NONBV","Capital, Balance Sheet and Control","50L","Debtors","9359","VAT only invoices","70112489","202011",11/01/2020 00:00:00,539.19,"24230","Debt Collection Agencies","REDACTED DATA","NEWLYN PLC","3770985","http://opencorporates.com/companies/gb/3770985","739828088"
"London Borough of Redbridge","http://opendatacommunities.org/doc/london-borough-council/redbridge","9BNONBVO","Outside the BVACOP Objective Structure","9CNONBVO","Outside the BVACOP Objective Structure","BAL","Balance Sheet","B0059","DUMMY VAT ACCOUNT","99-NONBV","Capital, Balance Sheet and Control","50L","Debtors","9359","VAT only invoices","70112489","202011",11/01/2020 00:00:00,-539.19,"24230","Debt Collection Agencies","REDACTED DATA","NEWLYN PLC","3770985","http://opencorporates.com/companies/gb/3770985","739828088"
"London Borough of Redbridge","http://opendatacommunities.org/doc/london-borough-council/redbridge","6BADULTSOCIA","Adult Social Care","6CLONGT1864","Long-Term Support 18 - 64 Years","REV","Revenue","R4441","Older People - Seven Kings","05-THIRD","Third Party Payments","05A","Independent units within the council","6502","Agency Homecare","91121063","202011",31/01/2020 00:00:00,539,"43419","Home Care Services","REDACTED DATA","RELINE CARE LTD","7728473","http://opencorporates.com/companies/gb/7728473",""
"London Borough of Redbridge","http://opendatacommunities.org/doc/london-borough-council/redbridge","6BADULTSOCIA","Adult Social Care","6CLONGT65","Long-Term Support 65+ Years","REV","Revenue","R4438","Older People - Cranbrook & Loxford","05-THIRD","Third Party Payments","05A","Independent units within the council","6502","Agency Homecare","91122212","202011",13/02/2020 00:00:00,538.91,"43419","Home Care Services","REDACTED DATA","HAVEN CARE LTD","6762521","http://opencorporates.com/companies/gb/6762521",""
"London Borough of Redbridge","http://opendatacommunities.org/doc/london-borough-council/redbridge","3BINDSCHFUND","Individual School Funds","3CDELPRIMARY","Delegated Individual Primary School Budgets","REV","Revenue","S2309","GROVE : CURRICULUM ENRICHMENTS","04-SUPPLIES","Supplies And Services","04A","Equipment, furniture and materials","5502","Equipment Purchase","60424906","202011",03/02/2020 00:00:00,449,"29360","Educational Services","REDACTED DATA","EDUCATION GROUP LTD","4305230","http://opencorporates.com/companies/gb/4305230","726347526"
"London Borough of Redbridge","http://opendatacommunities.org/doc/london-borough-council/redbridge","6BADULTSOCIA","Adult Social Care","6CLONGT65","Long-Term Support 65+ Years","REV","Revenue","R4442","Physical Disabilities - Seven Kings","06-TRANSFER","Transfer Payments","06B","Social Services Clients","7053","Direct Payments","3578338","202010",31/01/2020 00:00:00,655.04,"90005","Home Care Services DP","REDACTED DATA","REDACTED DATA","",,""
"London Borough of Redbridge","http://opendatacommunities.org/doc/london-borough-council/redbridge","6BADULTSOCIA","Adult Social Care","6CLONGT65","Long-Term Support 65+ Years","REV","Revenue","R4442","Physical Disabilities - Seven Kings","09-INCOME","Income","09C","Customer and Client Receipts","8545","Direct Payments Income","3578338","202010",31/01/2020 00:00:00,-116.56,"90005","Home Care Services DP","REDACTED DATA","REDACTED DATA","",,""
"London Borough of Redbridge","http://opendatacommunities.org/doc/london-borough-council/redbridge","6BADULTSOCIA","Adult Social Care","6CLONGT1864","Long-Term Support 18 - 64 Years","REV","Revenue","R4437","Learning Disabilities - Cranbrook & Loxford","05-THIRD","Third Party Payments","05H","Private contractors","6904","Day Centres","91124628","202011",11/02/2020 00:00:00,176.66,"17020","Charities and Voluntary Organisations","REDACTED DATA","VIBRANCE","7094318","http://opencorporates.com/companies/gb/7094318",""
"London Borough of Redbridge","http://opendatacommunities.org/doc/london-borough-council/redbridge","6BADULTSOCIA","Adult Social Care","6CLONGT1864","Long-Term Support 18 - 64 Years","REV","Revenue","R4437","Learning Disabilities - Cranbrook & Loxford","05-THIRD","Third Party Payments","05H","Private contractors","6904","Day Centres","91124628","202011",11/02/2020 00:00:00,184,"17020","Charities and Voluntary Organisations","REDACTED DATA","VIBRANCE","7094318","http://opencorporates.com/companies/gb/7094318",""
"London Borough of Redbridge","http://opendatacommunities.org/doc/london-borough-council/redbridge","6BADULTSOCIA","Adult Social Care","6CLONGT1864","Long-Term Support 18 - 64 Years","REV","Revenue","R4437","Learning Disabilities - Cranbrook & Loxford","05-THIRD","Third Party Payments","05H","Private contractors","6904","Day Centres","91124628","202011",11/02/2020 00:00:00,176.66,"17020","Charities and Voluntary Organisations","REDACTED DATA","VIBRANCE","7094318","http://opencorporates.com/companies/gb/7094318",""
"London Borough of Redbridge","http://opendatacommunities.org/doc/london-borough-council/redbridge","6BADULTSOCIA","Adult Social Care","6COLDINCMENT","Older People (65 or over) incl. Older Mentally Ill","REV","Revenue","R4340","Oakfield Lodge Sheltered Unit","04-SUPPLIES","Supplies And Services","04B","Catering","5601","Catering Provisions (Food & Drink)","60424812","202011",07/01/2020 00:00:00,536.28,"12260","Butchers","REDACTED DATA","WILLIAM WHITE MEATS LIMITED","3027063","http://opencorporates.com/companies/gb/3027063","345632848"
